{"text_format":"1","workbook":"xlsx","n_sheets":15,"sheets":["Instrucciones","Diagnóstico propuesto","Datos generales","Procesos","Inventario general - Preliminar","Formulario de solicitud","Consumos energéticos ","Inventario general","Mejoras","Resumen ejecutivo de mejoras","Matrices de consumo","Auxiliar","Auxiliar consumos","Auxiliar consumos 2","Aux Matriz de rendimiento"],"not_rendered":{"charts":0,"images":10,"macros":1,"external_links":0,"defined_names":3,"comments":0,"pivot_tables":0},"unopened":[],"bounds":{"document_bytes":16777216,"sheet_cells":100000,"rows_first":2000,"rows_last":500,"rows_between":2000,"halvings":0,"cell_chars":16384,"cell_head_chars":4096},"cells_cut":0,"cells_raw":0,"read":"whole","date_system":"1900"}

{"sheet":"Instrucciones","index":0,"n_rows":21,"n_cols":12,"rows_kept":21,"cut":false,"hidden":false,"merged":[[13,9,19,9],[0,0,0,6],[6,0,7,8],[1,0,3,8],[2,11,2,16],[3,11,3,16],[1,11,1,16],[4,0,5,8],[6,9,12,9],[20,0,22,0],[20,1,23,4],[20,5,22,5],[20,6,23,8],[8,0,11,8],[13,0,16,8],[17,0,19,8]]}
["\"PROGRAMA DE EFICIENCIA ENERGÉTICA EN PyMEs”  "]
["INSTRUCCIONES DE USO",null,null,null,null,null,null,null,null,null,null,"Recorda que:"]
[null,null,null,null,null,null,null,null,null,null,null,"Las hojas azules y verdes sólo se completan"]
[null,null,null,null,null,null,null,null,null,null,null,"Las hojas rojas son los formularios a imprimir y presentar "]
["0 - Habilitar contenido de macros."]
[]
["1- Completar las hojas con color azul para completar el formulario de solicitud.",null,null,null,null,null,null,null,null,"SOLICITUD"]
[]
["2 - Una vez completadas las hojas de Diagnostico propuesto, Datos generales, Procesos, Inventario general - Preliminar, para imprimir el formulario se debe apretar el botón                         "]
[]
[]
[]
[]
["3 - Una vez que su industria se encuentre dentro de la lista de empresas beneficiarias del programa, completar el resto de las hojas, que son las siguientes: Consumos energéticos, Inventario general (continuación) y Mejoras",null,null,null,null,null,null,null,null,"DIAGNÓSTICO"]
[]
[]
[]
["4 - Imprimir formularios \"Resumen ejecutivo de mejoras\" y \"Matrices de consumos energéticos\"."]
[]
[]
[null,"Secretaría de Estado de la Energía                                                  Gobierno de la Provincia de Santa Fe",null,null,null,null,"Dirección General de Asistencia Técnica                                                       Ministerio de la Producción"]

{"sheet":"Diagnóstico propuesto","index":1,"n_rows":14,"n_cols":7,"rows_kept":14,"cut":false,"hidden":false,"merged":[[0,0,0,6],[11,0,11,1],[11,2,11,8],[12,0,12,1],[12,2,12,8],[1,0,2,8],[3,0,3,8],[4,0,4,8],[5,0,5,1],[5,2,5,8],[6,0,6,1],[6,2,6,8],[13,0,15,0],[13,1,16,4],[13,5,15,5],[13,6,16,8],[7,0,7,1],[7,2,7,8],[8,0,8,1],[8,2,8,8],[9,0,9,8],[10,0,10,1],[10,2,10,8]]}
["\"PROGRAMA DE EFICIENCIA ENERGÉTICA EN PyMEs”  "]
["Importante: Cumplir Bases y Condiciones (BC-00)"]
[]
["Tabla: Diagnóstico propuesto"]
["General"]
["Inicio"]
["Plazo-duración [días]"]
["Alcance (*)"]
["Costo"]
["Gestor energético"]
["Nombre"]
["Teléfono"]
["E-mail"]
[null,"Secretaría de Estado de la Energía                                                  Gobierno de la Provincia de Santa Fe",null,null,null,null,"Dirección General de Asistencia Técnica                                                       Ministerio de la Producción"]

{"sheet":"Datos generales","index":2,"n_rows":65,"n_cols":11,"rows_kept":65,"cut":false,"hidden":false,"merged":[[23,0,23,11],[27,2,27,11],[33,0,33,1],[24,0,24,11],[27,0,27,1],[28,0,28,1],[29,0,29,1],[30,0,30,1],[32,0,32,1],[31,0,31,11],[25,0,25,11],[26,0,26,11],[28,2,28,11],[33,2,33,11],[29,2,29,11],[30,2,30,11],[34,0,34,1],[32,2,32,11],[64,1,66,5],[64,0,66,0],[64,6,66,6],[64,7,66,11],[61,10,61,11],[62,10,62,11],[45,0,45,3],[45,4,45,7],[45,8,45,11],[57,6,57,7],[58,6,58,7],[59,6,59,7],[60,6,60,7],[61,4,61,5],[61,8,61,9],[47,0,47,11],[59,4,59,5],[59,8,59,9],[60,4,60,5],[62,6,62,7],[35,0,35,1],[12,0,12,11],[13,0,13,11],[14,0,14,11],[15,0,15,11],[16,0,16,11],[17,0,17,11],[3,0,3,11],[4,0,4,11],[18,0,19,2],[18,3,18,4],[5,0,5,11],[6,0,6,11],[7,0,7,11],[19,3,19,4],[18,5,18,11],[8,0,8,11],[9,0,9,11],[11,0,11,5],[10,0,10,5],[10,6,10,11],[11,6,11,11],[22,0,22,11],[63,0,63,11],[44,0,44,11],[37,0,37,11],[38,0,38,11],[36,0,36,11],[49,0,49,11],[58,10,58,11],[59,10,59,11],[60,10,60,11],[61,6,61,7],[58,4,58,5],[58,8,58,9],[62,4,62,5],[62,8,62,9],[58,0,58,3],[59,0,59,3],[43,0,43,1],[57,10,57,11],[54,0,54,11],[57,4,57,5],[57,8,57,9],[57,0,57,3],[34,2,34,11],[21,3,21,11],[0,0,0,9],[55,0,56,3],[55,4,56,5],[60,0,60,3],[61,0,61,3],[62,0,62,3],[60,8,60,9],[50,0,53,11],[35,2,35,11],[39,0,42,11],[43,2,43,11],[46,0,46,3],[46,4,46,7],[46,8,46,11],[48,0,48,11],[55,10,56,11],[55,6,56,7],[55,8,56,9],[20,0,20,2],[20,3,20,11],[1,0,2,11],[19,5,19,11],[21,0,21,2]]}
["\"PROGRAMA DE EFICIENCIA ENERGÉTICA EN PyMEs”  "]
[]
[]
["Tabla: Datos generales de la empresa"]
["Nombre de la empresa"]
[]
["Razón social"]
[]
["CUIT"]
[]
["Rubro ",null,null,null,null,null,"CIIU"]
[]
["Inicio de actividades "]
[]
["Tamaño de la empresa"]
["Seleccione tamaño de empresa"]
["Superficie de la planta [m2]"]
[]
["Ubicación de la empresa",null,null,"Domicilio"]
[null,null,null,"Localidad"]
["Teléfono/s "]
["E-mail"]
["Facturación anual sin IVA en el año base [miles $]"]
[]
[]
["Tabla: Datos de contacto de las personas responsables"]
["Persona de contacto en la empresa"]
["Nombre"]
["Teléfono"]
["E-mail"]
["Cargo"]
["Persona alternativa de contacto en la empresa"]
["Nombre"]
["Teléfono"]
["E-mail"]
["Cargo"]
[]
["Tabla: Datos de producción"]
["Descripción de la industria"]
[]
[]
[]
[]
["N° de empleados"]
["Régimen de funcionamiento"]
["Horas/día",null,null,null,"Días/semana",null,null,null,"Semanas/año"]
[]
["Horario de funcionamiento"]
[]
["Principales materias primas y/o insumos"]
[]
[]
[]
[]
["Principales productos (80% del total)"]
["Producto",null,null,null,"Capacidad instalada",null,"Unidad",null,"Cantidad producida",null,"% de participación sobre ventas"]
[]
[]
[]
[]
[]
[]
[]
[]
[null,"Secretaría de Estado de la Energía                                                  Gobierno de la Provincia de Santa Fe",null,null,null,null,null,"Dirección General de Asistencia Técnica                                   Ministerio de la Producción"]

{"sheet":"Procesos","index":3,"n_rows":27,"n_cols":22,"rows_kept":27,"cut":false,"hidden":false,"merged":[[26,0,28,0],[26,1,28,5],[26,6,28,6],[26,7,28,11],[19,3,19,8],[19,9,19,10],[19,0,19,2],[20,0,20,2],[21,0,21,2],[24,0,24,2],[20,3,20,8],[20,9,20,10],[21,9,21,10],[21,3,21,8],[23,3,24,8],[23,9,24,10],[25,0,25,11],[0,0,2,9],[0,10,2,11],[4,0,4,11],[5,0,5,11],[3,0,3,11],[22,0,22,11],[23,0,23,2],[23,11,24,11],[6,0,13,11],[15,0,18,11],[14,0,14,11]]}
["\"PROGRAMA DE EFICIENCIA ENERGÉTICA EN PyMEs”  ",null,null,null,null,null,null,null,null,null,null,null,null,null,null,null,null,null,null,null,{"$f":"Q24","v":"Seleccione fuente de energía"},{"$f":"L24","v":0}]
[]
[]
[]
["Tabla: Procesos"]
["Descripción del proceso o los procesos"]
[]
[]
[]
[]
[]
[]
[]
[]
["Variables principales"]
[]
[]
[]
[]
[null,null,null,"Breve descripción de usos de la energía",null,null,null,null,null,"Consumo año base",null,"Unidad"]
["Energía eléctrica",null,null,null,null,null,null,null,null,null,null,"kWh",null,null,null,{"$f":"R21*S21","v":0},null,{"$f":"J21","v":0},{"$f":"VLOOKUP(A21,Auxiliar!$B$2:$D$79,3,FALSE)","v":3.3}]
["Gas natural",null,null,null,null,null,null,null,null,null,null,"Nm3",null,null,null,{"$f":"R22*S22","v":0},null,{"$f":"J22","v":0},{"$f":"VLOOKUP(A22,Auxiliar!$B$2:$D$79,3,FALSE)","v":1.25}]
["Otras fuentes energéticas"]
["Seleccione fuente de energía",null,null,null,null,null,null,null,null,null,null,null,null,null,null,0,{"$f":"IF(A24=\"Otra fuente\",A25,A24)","v":"Seleccione fuente de energía"},{"$f":"J24","v":0},{"$f":"VLOOKUP(A24,Auxiliar!$B$2:$D$79,3,FALSE)","v":0}]
[{"$f":"IF(A24=\"Otra fuente\",\"Especifique otra fuente\",\"-----------\")","v":"-----------"}]
[]
[null,"Secretaría de Estado de la Energía                                                  Gobierno de la Provincia de Santa Fe",null,null,null,null,null,"Dirección General de Asistencia Técnica                                   Ministerio de la Producción"]

{"sheet":"Inventario general - Preliminar","index":4,"n_rows":33,"n_cols":28,"rows_kept":33,"cut":false,"hidden":false,"merged":[[14,18,14,20],[15,18,15,20],[8,27,8,28],[9,27,9,28],[10,27,10,28],[11,27,11,28],[12,27,12,28],[13,27,13,28],[14,27,14,28],[10,21,10,24],[8,25,8,26],[9,25,9,26],[10,25,10,26],[11,25,11,26],[12,25,12,26],[15,27,15,28],[11,21,11,24],[12,21,12,24],[13,21,13,24],[14,21,14,24],[15,21,15,24],[13,25,13,26],[14,25,14,26],[15,25,15,26],[22,9,22,10],[23,9,23,10],[24,9,24,10],[25,9,25,10],[26,9,26,10],[27,9,27,10],[28,9,28,10],[29,9,29,10],[22,7,22,8],[23,7,23,8],[24,7,24,8],[25,7,25,8],[26,7,26,8],[27,7,27,8],[23,3,23,6],[25,3,25,6],[26,3,26,6],[27,3,27,6],[28,3,28,6],[29,3,29,6],[15,9,15,10],[16,9,16,10],[5,0,5,6],[18,0,18,6],[24,0,24,2],[25,0,25,2],[26,0,26,2],[24,3,24,6],[22,0,22,2],[23,0,23,2],[19,9,21,10],[19,7,21,8],[19,3,21,6],[22,3,22,6],[18,7,18,8],[18,9,18,10],[19,0,21,2],[28,7,28,8],[17,0,17,10],[9,9,9,10],[10,9,10,10],[11,9,11,10],[12,9,12,10],[13,9,13,10],[14,9,14,10],[16,3,16,6],[9,7,9,8],[10,7,10,8],[11,7,11,8],[12,7,12,8],[13,7,13,8],[14,7,14,8],[15,7,15,8],[16,7,16,8],[14,0,14,2],[15,0,15,2],[14,3,14,6],[15,3,15,6],[12,0,12,2],[16,0,16,2],[32,0,34,0],[32,5,34,5],[32,6,34,10],[32,1,34,4],[31,0,31,10],[30,0,30,10],[27,0,27,2],[28,0,28,2],[29,0,29,2],[29,7,29,8],[4,27,4,28],[5,7,5,8],[5,9,5,10],[5,18,7,20],[12,18,12,20],[13,0,13,2],[13,18,13,20],[12,3,12,6],[13,3,13,6],[10,0,10,2],[10,18,10,20],[11,0,11,2],[11,18,11,20],[10,3,10,6],[11,3,11,6],[4,0,4,10],[5,27,7,28],[5,25,7,26],[4,18,4,24],[5,21,7,24],[8,21,8,24],[9,21,9,24],[0,9,2,10],[4,25,4,26],[8,18,8,20],[9,0,9,2],[9,18,9,20],[6,9,8,10],[6,7,8,8],[6,3,8,6],[9,3,9,6],[6,0,8,2],[0,0,2,8],[3,0,3,10]]}
["\"PROGRAMA DE EFICIENCIA ENERGÉTICA EN PyMEs”  "]
[]
[]
["Importante: Detallar equipos más importantes"]
["Tabla: Inventario general - Preliminar ",null,null,null,null,null,null,null,null,null,null,null,null,null,null,null,null,null,"Seleccione fuente",null,null,null,null,null,null,"Unidad",null,{"$f":"IFERROR(VLOOKUP(S5,Procesos!$U$1:$V$61,2,FALSE),\"-\")","v":"-"}]
["Energía eléctrica",null,null,null,null,null,null,"Unidad",null,{"$f":"VLOOKUP(A6,Auxiliar!$B$2:$E$34,4,FALSE)","v":"kWh"},null,null,null,null,null,null,null,null,"Equipos principales",null,null,"Uso",null,null,null,"Potencia nominal total [Unidad/h]",null,"Cantidad"]
["Equipos principales",null,null,"Uso",null,null,null,"Potencia nominal total [kW]",null,"Cantidad"]
[]
[]
[]
[]
[]
[]
[]
[]
[]
[]
[]
["Gas natural",null,null,null,null,null,null,"Unidad",null,{"$f":"VLOOKUP(A19,Auxiliar!$B$2:$E$34,4,FALSE)","v":"Nm3"}]
["Equipos principales",null,null,"Uso",null,null,null,"Potencia nominal total [Nm3/h]",null,"Cantidad"]
[]
[]
[]
[]
[]
[]
[]
[]
[]
[]
[]
["Nota: Si hay alguno otra fuente de energía agregarla, por ejemplo, GLP, gasoil, etc."]
[null,"Secretaría de Estado de la Energía                                                  Gobierno de la Provincia de Santa Fe",null,null,null,null,"Dirección General de Asistencia Técnica                                   Ministerio de la Producción"]

{"sheet":"Formulario de solicitud","index":5,"n_rows":108,"n_cols":25,"rows_kept":108,"cut":false,"hidden":false,"merged":[[6,0,6,3],[6,4,6,8],[52,3,52,6],[53,0,53,2],[53,3,53,6],[54,0,54,2],[54,3,54,6],[55,0,55,2],[61,0,61,8],[8,0,8,3],[8,4,8,8],[16,0,17,3],[9,0,9,3],[9,4,9,8],[12,0,12,3],[12,4,12,8],[13,0,13,3],[13,4,13,8],[14,0,14,3],[14,4,14,8],[10,0,11,2],[10,4,10,8],[11,4,11,8],[16,4,17,4],[62,0,65,8],[60,0,60,8],[66,0,66,8],[67,0,67,8],[57,0,57,2],[57,3,57,6],[58,0,58,2],[58,3,58,6],[59,0,59,2],[59,3,59,6],[15,0,15,8],[16,7,17,7],[16,8,17,8],[16,5,17,6],[106,0,106,1],[106,2,106,8],[107,0,107,1],[107,2,107,8],[102,0,102,1],[102,2,102,8],[103,0,103,1],[103,2,103,8],[104,0,104,8],[105,0,105,1],[105,2,105,8],[98,0,98,8],[99,0,99,8],[100,0,100,1],[100,2,100,8],[101,0,101,1],[101,2,101,8],[95,0,95,1],[95,2,95,8],[96,0,96,1],[96,2,96,8],[97,0,97,1],[97,2,97,8],[92,0,92,1],[92,2,92,8],[93,0,93,8],[94,0,94,1],[94,2,94,8],[87,0,87,8],[88,0,88,8],[89,0,89,1],[89,2,89,8],[90,0,90,1],[90,2,90,8],[91,0,91,1],[91,2,91,8],[86,0,86,2],[86,3,86,8],[68,0,68,8],[69,0,69,8],[70,0,70,8],[71,0,74,8],[75,0,75,8],[76,0,79,8],[80,0,80,8],[81,0,84,8],[85,0,85,2],[85,3,85,8],[36,7,38,7],[36,3,38,6],[30,0,30,8],[32,0,32,8],[31,0,31,8],[33,0,33,8],[48,20,51,20],[45,0,45,2],[45,3,45,6],[46,0,46,2],[46,3,46,6],[41,0,41,2],[41,3,41,6],[42,0,42,2],[42,3,42,6],[43,0,43,2],[43,3,43,6],[44,3,44,6],[48,7,51,7],[48,8,51,8],[48,21,51,21],[18,0,18,3],[19,0,19,3],[20,0,20,3],[18,5,18,6],[19,5,19,6],[20,5,20,6],[5,0,5,3],[5,4,5,8],[7,0,7,3],[7,4,7,8],[24,0,24,8],[25,0,25,1],[25,2,25,5],[25,6,25,7],[21,0,21,3],[22,0,22,3],[23,0,23,3],[26,0,26,1],[26,2,26,5],[26,6,26,7],[21,5,21,6],[22,5,22,6],[34,0,34,8],[52,16,52,19],[53,13,53,15],[53,16,53,19],[54,13,54,15],[54,16,54,19],[55,13,55,15],[55,16,55,19],[57,16,57,19],[0,0,1,8],[2,0,2,8],[3,0,3,3],[3,4,3,8],[4,0,4,3],[4,4,4,8],[23,5,23,6],[27,0,27,1],[27,2,27,5],[27,6,27,7],[28,0,28,8],[29,0,29,1],[29,2,29,5],[29,6,29,7],[44,0,44,2],[36,8,38,8],[58,13,58,15],[58,16,58,19],[59,13,59,15],[59,16,59,19],[35,0,35,6],[47,0,47,6],[47,13,47,19],[48,13,51,15],[48,16,51,19],[56,13,56,15],[56,16,56,19],[57,13,57,15],[39,0,39,2],[39,3,39,6],[40,0,40,2],[40,3,40,6],[36,0,38,2],[55,3,55,6],[48,0,51,2],[48,3,51,6],[56,0,56,2],[56,3,56,6],[52,0,52,2],[52,13,52,15]]}
["Formulario IS-02"]
[]
["1. Datos generales de la empresa"]
["1.1. Nombre de la empresa",null,null,null,{"$f":"'Datos generales'!A6","v":0}]
["1.2. Razón social",null,null,null,{"$f":"'Datos generales'!A8","v":0}]
["1.3. CUIT",null,null,null,{"$f":"'Datos generales'!A10","v":0}]
["1.4. Rubro ",null,null,null,{"$f":"'Datos generales'!A12","v":0}]
["1.5. CIIU",null,null,null,{"$f":"'Datos generales'!G12","v":0}]
["1.6. Tamaño de la empresa ",null,null,null,{"$f":"'Datos generales'!A16","v":"Seleccione tamaño de empresa"}]
["1.7. Superficie de la planta [m2]",null,null,null,{"$f":"'Datos generales'!A18","v":0}]
["1.8. Ubicación de la empresa",null,null,"Domicilio",{"$f":"'Datos generales'!F19","v":0}]
[null,null,null,"Localidad",{"$f":"'Datos generales'!F20","v":0}]
["1.9. Facturación Anual sin IVA en año base",null,null,null,{"$f":"'Datos generales'!A24*1000","v":0}]
["1.10. N° de empleados",null,null,null,{"$f":"'Datos generales'!C44","v":0}]
["1.11. Régimen de funcionamiento [Hs./año]",null,null,null,{"$f":"'Datos generales'!A47*'Datos generales'!E47*'Datos generales'!I47","v":0}]
["1.12. Principales productos (80% del total)"]
["Productos",null,null,null,"Capacidad instalada","Unidad",null,"Cantidad producida","% de participación sobre ventas"]
[]
[{"$f":"'Datos generales'!A58","v":0},null,null,null,{"$f":"'Datos generales'!E58","v":0},{"$f":"'Datos generales'!G58","v":0},null,{"$f":"'Datos generales'!I58","v":0},{"$f":"'Datos generales'!K58","v":0}]
[{"$f":"'Datos generales'!A59","v":0},null,null,null,{"$f":"'Datos generales'!E59","v":0},{"$f":"'Datos generales'!G59","v":0},null,{"$f":"'Datos generales'!I59","v":0},{"$f":"'Datos generales'!K59","v":0}]
[{"$f":"'Datos generales'!A60","v":0},null,null,null,{"$f":"'Datos generales'!E60","v":0},{"$f":"'Datos generales'!G60","v":0},null,{"$f":"'Datos generales'!I60","v":0},{"$f":"'Datos generales'!K60","v":0}]
[{"$f":"'Datos generales'!A61","v":0},null,null,null,{"$f":"'Datos generales'!E61","v":0},{"$f":"'Datos generales'!G61","v":0},null,{"$f":"'Datos generales'!I61","v":0},{"$f":"'Datos generales'!K61","v":0}]
[{"$f":"'Datos generales'!A62","v":0},null,null,null,{"$f":"'Datos generales'!E62","v":0},{"$f":"'Datos generales'!G62","v":0},null,{"$f":"'Datos generales'!I62","v":0},{"$f":"'Datos generales'!K62","v":0}]
[{"$f":"'Datos generales'!A63","v":0},null,null,null,{"$f":"'Datos generales'!E63","v":0},{"$f":"'Datos generales'!G63","v":0},null,{"$f":"'Datos generales'!I63","v":0},{"$f":"'Datos generales'!K63","v":0},null,1]
["2. Energía"]
["Sofia",null,"Breve descripción de usos de la energía",null,null,null,"Consumo año base",null,"Unidad"]
["Electricidad",null,{"$f":"Procesos!D21","v":0},null,null,null,{"$f":"Procesos!J21","v":0},null,"kWh/año"]
["Gas natural",null,{"$f":"Procesos!D22","v":0},null,null,null,{"$f":"Procesos!J22","v":0},null,"Nm3/año"]
["Otras fuentes energéticas"]
[{"$f":"IF(Procesos!A24=\"Otra fuente\",Procesos!A25,Procesos!A24)","v":"Seleccione fuente de energía"},null,{"$f":"Procesos!D24","v":0},null,null,null,{"$f":"Procesos!J24","v":0},null,{"$f":"Procesos!L24","v":0},null,null,null,1]
["Miles toneladas equivalente de petróleo [ktep]"]
[{"$f":"SUM(Procesos!P21:P239)*1000","v":0}]
["TEP sobre facturación [TEP/$]"]
[{"$f":"IFERROR(A32/E13,0)","v":0}]
["3. Inventario general"]
[{"$f":"IF(Procesos!J21=0,0,Procesos!A21)","v":0},null,null,null,null,null,null,"Unidad",{"$f":"Procesos!L21","v":"kWh"}]
[{"$f":"IF(Procesos!J21=0,0,\"Equipos principales\")","v":0},null,null,"Uso",null,null,null,"Potencia nominal total [kW]","Cantidad",1]
[null,null,null,null,null,null,null,null,null,1]
[null,null,null,null,null,null,null,null,null,1]
[{"$f":"'Inventario general - Preliminar'!A10:C10","v":0},null,null,{"$f":"'Inventario general - Preliminar'!D10:G10","v":0},null,null,null,{"$f":"'Inventario general - Preliminar'!H10:I10","v":0},{"$f":"'Inventario general - Preliminar'!J10","v":0}]
[{"$f":"'Inventario general - Preliminar'!A11:C11","v":0},null,null,{"$f":"'Inventario general - Preliminar'!D11:G11","v":0},null,null,null,{"$f":"'Inventario general - Preliminar'!H11:I11","v":0},{"$f":"'Inventario general - Preliminar'!J11","v":0}]
[{"$f":"'Inventario general - Preliminar'!A12:C12","v":0},null,null,{"$f":"'Inventario general - Preliminar'!D12:G12","v":0},null,null,null,{"$f":"'Inventario general - Preliminar'!H12:I12","v":0},{"$f":"'Inventario general - Preliminar'!J12","v":0}]
[{"$f":"'Inventario general - Preliminar'!A13:C13","v":0},null,null,{"$f":"'Inventario general - Preliminar'!D13:G13","v":0},null,null,null,{"$f":"'Inventario general - Preliminar'!H13:I13","v":0},{"$f":"'Inventario general - Preliminar'!J13","v":0}]
[{"$f":"'Inventario general - Preliminar'!A14:C14","v":0},null,null,{"$f":"'Inventario general - Preliminar'!D14:G14","v":0},null,null,null,{"$f":"'Inventario general - Preliminar'!H14:I14","v":0},{"$f":"'Inventario general - Preliminar'!J14","v":0}]
[{"$f":"'Inventario general - Preliminar'!A15:C15","v":0},null,null,{"$f":"'Inventario general - Preliminar'!D15:G15","v":0},null,null,null,{"$f":"'Inventario general - Preliminar'!H15:I15","v":0},{"$f":"'Inventario general - Preliminar'!J15","v":0}]
[{"$f":"'Inventario general - Preliminar'!A16:C16","v":0},null,null,{"$f":"'Inventario general - Preliminar'!D16:G16","v":0},null,null,null,{"$f":"'Inventario general - Preliminar'!H16:I16","v":0},{"$f":"'Inventario general - Preliminar'!J16","v":0}]
[{"$f":"'Inventario general - Preliminar'!A17:C17","v":0},null,null,{"$f":"'Inventario general - Preliminar'!D17:G17","v":0},null,null,null,{"$f":"'Inventario general - Preliminar'!H17:I17","v":0},{"$f":"'Inventario general - Preliminar'!J17","v":0}]
[{"$f":"IF(Procesos!J22=0,0,Procesos!A22)","v":0},null,null,null,null,null,null,"Unidad",{"$f":"Procesos!L22","v":"Nm3"},null,null,null,null,{"$f":"'Inventario general - Preliminar'!S5","v":"Seleccione fuente"},null,null,null,null,null,null,"Unidad",{"$f":"'Inventario general - Preliminar'!AB5","v":"-"},null,null,1]
[{"$f":"IF(Procesos!J22=0,0,\"Equipos principales\")","v":0},null,null,"Uso",null,null,null,"Potencia nominal total [Nm3/h]","Cantidad",1,null,null,null,"Equipos principales",null,null,"Uso",null,null,null,"Potencia nominal total [Unidad/h]","Cantidad",1]
[null,null,null,null,null,null,null,null,null,1,null,null,null,null,null,null,null,null,null,null,null,null,1]
[null,null,null,null,null,null,null,null,null,1,null,null,null,null,null,null,null,null,null,null,null,null,1]
[null,null,null,null,null,null,null,null,null,1,null,null,null,null,null,null,null,null,null,null,null,null,1]
[{"$f":"'Inventario general - Preliminar'!A23:C23","v":0},null,null,{"$f":"'Inventario general - Preliminar'!D23:G23","v":0},null,null,null,{"$f":"'Inventario general - Preliminar'!H23:I23","v":0},{"$f":"'Inventario general - Preliminar'!J23","v":0},null,null,null,null,{"$f":"'Inventario general - Preliminar'!S9","v":0},null,null,{"$f":"'Inventario general - Preliminar'!V9","v":0},null,null,null,{"$f":"'Inventario general - Preliminar'!Z9","v":0},{"$f":"'Inventario general - Preliminar'!AB9","v":0}]
[{"$f":"'Inventario general - Preliminar'!A24:C24","v":0},null,null,{"$f":"'Inventario general - Preliminar'!D24:G24","v":0},null,null,null,{"$f":"'Inventario general - Preliminar'!H24:I24","v":0},{"$f":"'Inventario general - Preliminar'!J24","v":0},null,null,null,null,{"$f":"'Inventario general - Preliminar'!S10","v":0},null,null,{"$f":"'Inventario general - Preliminar'!V10","v":0},null,null,null,{"$f":"'Inventario general - Preliminar'!Z10","v":0},{"$f":"'Inventario general - Preliminar'!AB10","v":0}]
[{"$f":"'Inventario general - Preliminar'!A25:C25","v":0},null,null,{"$f":"'Inventario general - Preliminar'!D25:G25","v":0},null,null,null,{"$f":"'Inventario general - Preliminar'!H25:I25","v":0},{"$f":"'Inventario general - Preliminar'!J25","v":0},null,null,null,null,{"$f":"'Inventario general - Preliminar'!S11","v":0},null,null,{"$f":"'Inventario general - Preliminar'!V11","v":0},null,null,null,{"$f":"'Inventario general - Preliminar'!Z11","v":0},{"$f":"'Inventario general - Preliminar'!AB11","v":0}]
[{"$f":"'Inventario general - Preliminar'!A26:C26","v":0},null,null,{"$f":"'Inventario general - Preliminar'!D26:G26","v":0},null,null,null,{"$f":"'Inventario general - Preliminar'!H26:I26","v":0},{"$f":"'Inventario general - Preliminar'!J26","v":0},null,null,null,null,{"$f":"'Inventario general - Preliminar'!S12","v":0},null,null,{"$f":"'Inventario general - Preliminar'!V12","v":0},null,null,null,{"$f":"'Inventario general - Preliminar'!Z12","v":0},{"$f":"'Inventario general - Preliminar'!AB12","v":0}]
[{"$f":"'Inventario general - Preliminar'!A27:C27","v":0},null,null,{"$f":"'Inventario general - Preliminar'!D27:G27","v":0},null,null,null,{"$f":"'Inventario general - Preliminar'!H27:I27","v":0},{"$f":"'Inventario general - Preliminar'!J27","v":0},null,null,null,null,{"$f":"'Inventario general - Preliminar'!S13","v":0},null,null,{"$f":"'Inventario general - Preliminar'!V13","v":0},null,null,null,{"$f":"'Inventario general - Preliminar'!Z13","v":0},{"$f":"'Inventario general - Preliminar'!AB13","v":0}]
[{"$f":"'Inventario general - Preliminar'!A28:C28","v":0},null,null,{"$f":"'Inventario general - Preliminar'!D28:G28","v":0},null,null,null,{"$f":"'Inventario general - Preliminar'!H28:I28","v":0},{"$f":"'Inventario general - Preliminar'!J28","v":0},null,null,null,null,{"$f":"'Inventario general - Preliminar'!S14","v":0},null,null,{"$f":"'Inventario general - Preliminar'!V14","v":0},null,null,null,{"$f":"'Inventario general - Preliminar'!Z14","v":0},{"$f":"'Inventario general - Preliminar'!AB14","v":0}]
[{"$f":"'Inventario general - Preliminar'!A29:C29","v":0},null,null,{"$f":"'Inventario general - Preliminar'!D29:G29","v":0},null,null,null,{"$f":"'Inventario general - Preliminar'!H29:I29","v":0},{"$f":"'Inventario general - Preliminar'!J29","v":0},null,null,null,null,{"$f":"'Inventario general - Preliminar'!S15","v":0},null,null,{"$f":"'Inventario general - Preliminar'!V15","v":0},null,null,null,{"$f":"'Inventario general - Preliminar'!Z15","v":0},{"$f":"'Inventario general - Preliminar'!AB15","v":0}]
[{"$f":"'Inventario general - Preliminar'!A30:C30","v":0},null,null,{"$f":"'Inventario general - Preliminar'!D30:G30","v":0},null,null,null,{"$f":"'Inventario general - Preliminar'!H30:I30","v":0},{"$f":"'Inventario general - Preliminar'!J30","v":0},null,null,null,null,{"$f":"'Inventario general - Preliminar'!S16","v":0},null,null,{"$f":"'Inventario general - Preliminar'!V16","v":0},null,null,null,{"$f":"'Inventario general - Preliminar'!Z16","v":0},{"$f":"'Inventario general - Preliminar'!AB16","v":0}]
["4. Otras características de la empresa"]
["4.1. Descripción de la empresa"]
[{"$f":"'Datos generales'!A40","v":0}]
[]
[]
[]
["4.2. Inicio de actividades (incluir remodelaciones y ampliaciones importantes)"]
[{"$f":"'Datos generales'!A14:L14","v":"00:00:00"}]
["4.3. Horario de funcionamiento"]
[{"$f":"'Datos generales'!A49","v":0}]
["4.4. Principales materias primas"]
[{"$f":"'Datos generales'!A51","v":0}]
[]
[]
[]
["4.5. Descripción del proceso o los procesos"]
[{"$f":"Procesos!A7","v":0}]
[]
[]
[]
["4.6. Variables principales"]
[{"$f":"Procesos!A16","v":0}]
[]
[]
[]
["4.7. Teléfono/s ",null,null,{"$f":"'Datos generales'!D21","v":0}]
["4.8. E-mail",null,null,{"$f":"'Datos generales'!D22","v":0}]
["5. Datos de contacto de las personas responsables"]
["5.1. Persona de contacto en la empresa"]
["Nombre",null,{"$f":"'Datos generales'!C28","v":0}]
["Teléfono",null,{"$f":"'Datos generales'!C29","v":0}]
["E-mail",null,{"$f":"'Datos generales'!C30","v":0}]
["Cargo",null,{"$f":"'Datos generales'!C31","v":0}]
["5.2. Persona alternativa de contacto en la empresa"]
["Nombre",null,{"$f":"'Datos generales'!C33","v":0}]
["Teléfono",null,{"$f":"'Datos generales'!C34","v":0}]
["E-mail",null,{"$f":"'Datos generales'!C35","v":0}]
["Cargo",null,{"$f":"'Datos generales'!C36","v":0}]
["6. Diagnostico propuesto"]
["6.1. General"]
["Inicio",null,{"$f":"'Diagnóstico propuesto'!C6","v":"00:00:00"}]
["Plazo-duración",null,{"$f":"'Diagnóstico propuesto'!C7","v":0}]
["Alcance (*)",null,{"$f":"'Diagnóstico propuesto'!C8","v":0}]
["Costo",null,{"$f":"'Diagnóstico propuesto'!C9","v":0}]
["6.2. Gestor energético"]
["Nombre",null,{"$f":"'Diagnóstico propuesto'!C11","v":0}]
["Teléfono",null,{"$f":"'Diagnóstico propuesto'!C12","v":0}]
["E-mail",null,{"$f":"'Diagnóstico propuesto'!C13","v":0}]

{"sheet":"Consumos energéticos ","index":6,"n_rows":141,"n_cols":22,"rows_kept":141,"cut":false,"hidden":false,"merged":[[65,9,66,10],[25,0,25,1],[28,0,28,1],[29,2,29,4],[30,2,30,4],[31,2,31,4],[25,2,25,8],[64,4,66,8],[53,0,53,1],[58,0,59,0],[53,2,53,4],[57,2,57,4],[58,2,58,4],[59,2,59,4],[61,2,61,4],[56,0,57,0],[54,6,62,8],[54,2,54,4],[55,2,55,4],[56,2,56,4],[60,0,61,0],[62,0,62,1],[64,0,66,0],[64,1,66,2],[62,2,62,4],[54,0,55,0],[60,2,60,4],[63,0,63,8],[52,0,52,8],[49,2,49,4],[50,2,50,4],[42,6,51,8],[53,7,53,8],[42,0,42,1],[43,0,44,0],[45,0,46,0],[49,0,50,0],[51,0,51,1],[51,2,51,4],[47,0,48,0],[48,2,48,4],[47,2,47,4],[42,2,42,4],[46,2,46,4],[8,0,8,1],[17,2,17,8],[23,2,23,6],[22,8,23,8],[24,0,24,1],[24,2,24,8],[18,0,18,1],[41,2,41,4],[26,0,26,8],[28,6,41,8],[38,2,38,4],[29,0,30,0],[39,0,40,0],[31,0,32,0],[41,0,41,1],[33,0,34,0],[28,2,28,4],[35,2,35,4],[36,2,36,4],[37,2,37,4],[32,2,32,4],[33,2,33,4],[34,2,34,4],[39,2,39,4],[40,2,40,4],[43,2,43,4],[44,2,44,4],[45,2,45,4],[0,0,2,6],[0,7,2,8],[8,2,8,6],[7,2,7,6],[8,7,9,7],[8,8,9,8],[9,2,9,6],[15,7,16,7],[15,8,16,8],[14,2,14,6],[15,2,15,6],[16,2,16,6],[3,0,4,8],[5,0,5,8],[6,0,6,8],[11,2,11,8],[13,0,13,8],[14,0,14,1],[7,0,7,1],[17,0,17,1],[10,0,10,1],[11,0,11,1],[12,0,12,1],[15,0,15,1],[16,0,16,1],[10,2,10,8],[12,2,12,8],[9,0,9,1],[37,0,38,0],[19,0,19,1],[21,0,21,1],[22,7,23,7],[22,2,22,6],[35,0,36,0],[27,0,27,8],[18,2,18,8],[19,2,19,8],[21,2,21,6],[22,0,22,1],[23,0,23,1],[20,0,20,8]]}
["\"PROGRAMA DE EFICIENCIA ENERGÉTICA EN PyMEs”  "]
[null,null,null,null,null,null,null,null,null,null,null,null,null,null,"",null,null,null,null,null,null,{"$f":"IF(S2<>\"\",COUNTIF(Auxiliar!$B$5:$B$33,'Consumos energéticos '!S2),\"\")","v":""}]
[null,null,null,null,null,null,null,null,null,null,null,null,null,null,null,null,null,null,null,null,null,{"$f":"IF(S3<>\"\",COUNTIF(Auxiliar!$B$5:$B$33,'Consumos energéticos '!S3),\"\")","v":""}]
[null,null,null,null,null,null,null,null,null,null,null,null,null,null,null,null,null,null,null,null,null,{"$f":"IF(S4<>\"\",COUNTIF(Auxiliar!$B$5:$B$33,'Consumos energéticos '!S4),\"\")","v":""}]
[null,null,null,null,null,null,null,null,null,null,null,null,null,null,null,null,null,null,null,null,null,{"$f":"IF(S5<>\"\",COUNTIF(Auxiliar!$B$5:$B$33,'Consumos energéticos '!S5),\"\")","v":""}]
["Tabla: Consumo energético ",null,null,null,null,null,null,null,null,null,null,null,null,null,null,null,null,null,null,null,null,{"$f":"IF(S6<>\"\",COUNTIF(Auxiliar!$B$5:$B$33,'Consumos energéticos '!S6),\"\")","v":""}]
["Energia eléctrica",null,null,null,null,null,null,null,null,null,null,null,null,null,null,null,null,null,null,null,null,{"$f":"IF(S7<>\"\",COUNTIF(Auxiliar!$B$5:$B$33,'Consumos energéticos '!S7),\"\")","v":""}]
["Tipo de consumidor de energía eléctrica",null,null,null,null,null,null,"Unidad","kWh",null,1,null,null,null,null,"Energía eléctrica",null,null,null,null,null,{"$f":"IF(S8<>\"\",COUNTIF(Auxiliar!$B$5:$B$33,'Consumos energéticos '!S8),\"\")","v":""}]
["Consumo de energía eléctrica en año base ",null,{"$f":"Procesos!J21","v":0},null,null,null,null,"Costo total anual [$]",{"$f":"C9*C10","v":0},{"$f":"I9","v":0},null,null,null,null,null,null,null,null,null,null,null,{"$f":"IF(S9<>\"\",COUNTIF(Auxiliar!$B$5:$B$33,'Consumos energéticos '!S9),\"\")","v":""}]
["Costo unitario de energía eléctrica [$/kWh]",null,null,null,null,null,null,null,null,null,null,null,null,null,null,null,null,null,null,null,null,{"$f":"IF(S10<>\"\",COUNTIF(Auxiliar!$B$5:$B$33,'Consumos energéticos '!S10),\"\")","v":""}]
["Costo marginal de energía eléctrica",null,null,null,null,null,null,null,null,null,null,null,null,null,null,null,null,null,null,null,null,{"$f":"IF(S11<>\"\",COUNTIF(Auxiliar!$B$5:$B$33,'Consumos energéticos '!S11),\"\")","v":""}]
["Costo total anual [$]",null,{"$f":"C9*C10","v":0},null,null,null,null,null,null,null,null,null,null,null,null,null,null,null,null,null,null,{"$f":"IF(S12<>\"\",COUNTIF(Auxiliar!$B$5:$B$33,'Consumos energéticos '!S12),\"\")","v":""}]
["% sobre los costos energéticos totales",null,{"$f":"IFERROR(I9/SUM(J:J),0)","v":0},null,null,null,null,null,null,null,null,null,null,null,null,null,null,null,null,null,null,{"$f":"IF(S13<>\"\",COUNTIF(Auxiliar!$B$5:$B$33,'Consumos energéticos '!S13),\"\")","v":""}]
["Gas natural",null,null,null,null,null,null,null,null,null,null,null,null,null,null,null,null,null,null,null,null,{"$f":"IF(S14<>\"\",COUNTIF(Auxiliar!$B$5:$B$33,'Consumos energéticos '!S14),\"\")","v":""}]
["Tipo de consumidor de gas natural",null,null,null,null,null,null,"Unidad","Nm3",null,1,null,null,null,null,"Gas natural",null,null,null,null,null,{"$f":"IF(S15<>\"\",COUNTIF(Auxiliar!$B$5:$B$33,'Consumos energéticos '!S15),\"\")","v":""}]
["Consumo de gas natural en año base [Nm3/año]",null,{"$f":"Procesos!J22","v":0},null,null,null,null,"Costo total anual [$]",{"$f":"C16*C17","v":0},{"$f":"I16","v":0},null,null,null,null,null,null,null,null,null,null,null,{"$f":"IF(S16<>\"\",COUNTIF(Auxiliar!$B$5:$B$33,'Consumos energéticos '!S16),\"\")","v":""}]
["Costo unitario de gas natural [$/Nm3]",null,null,null,null,null,null,null,null,null,null,null,null,null,null,null,null,null,null,null,null,{"$f":"IF(S17<>\"\",COUNTIF(Auxiliar!$B$5:$B$33,'Consumos energéticos '!S17),\"\")","v":""}]
["Costo marginal de gas natural",null,null,null,null,null,null,null,null,null,null,null,null,null,null,null,null,null,null,null,null,{"$f":"IF(S18<>\"\",COUNTIF(Auxiliar!$B$5:$B$33,'Consumos energéticos '!S18),\"\")","v":""}]
["Costo total anual [$]",null,{"$f":"C16*C17","v":0},null,null,null,null,null,null,null,null,null,null,null,null,null,null,null,null,null,null,{"$f":"IF(S19<>\"\",COUNTIF(Auxiliar!$B$5:$B$33,'Consumos energéticos '!S19),\"\")","v":""}]
["% sobre los costos energéticos totales",null,{"$f":"IFERROR(I16/SUM(J:J),0)","v":0},null,null,null,null,null,null,null,null,null,null,null,null,null,null,null,null,null,null,{"$f":"IF(S20<>\"\",COUNTIF(Auxiliar!$B$5:$B$33,'Consumos energéticos '!S20),\"\")","v":""}]
["Otras fuentes energéticas",null,null,null,null,null,null,null,null,null,null,null,null,null,null,null,null,null,null,null,null,{"$f":"IF(S21<>\"\",COUNTIF(Auxiliar!$B$5:$B$33,'Consumos energéticos '!S21),\"\")","v":""}]
["Nombre de la fuente energética",null,{"$f":"IF(Procesos!A24=\"Seleccione fuente de energía\",\"--------------------\",IF(Procesos!A24=\"Otra fuente\",Procesos!A25,Procesos!A24))","v":"--------------------"},null,null,null,null,"Unidad",{"$f":"Procesos!L24","v":0},null,1,null,null,null,null,{"$f":"IF(C22=\"Seleccione fuente de energía\",\"\",C22)","v":"--------------------"},{"$f":"IF(C22=\"Seleccione fuente de energía\",\"\",I22)","v":0},{"$f":"IF(C22=\"Seleccione fuente de energía\",\"\",C25)","v":0},null,null,null,{"$f":"IF(S22<>\"\",COUNTIF(Auxiliar!$B$5:$B$33,'Consumos energéticos '!S22),\"\")","v":""}]
["Consumo en el año base ",null,{"$f":"Procesos!J24","v":0},null,null,null,null,"Costo total anual [$]",{"$f":"C23*C24","v":0},{"$f":"I23","v":0},null,null,null,null,null,null,null,null,null,null,null,{"$f":"IF(S23<>\"\",COUNTIF(Auxiliar!$B$5:$B$33,'Consumos energéticos '!S23),\"\")","v":""}]
["Costo unitario [$/unidad de energía]",null,null,null,null,null,null,null,null,null,null,null,null,null,null,null,null,null,null,null,null,{"$f":"IF(S24<>\"\",COUNTIF(Auxiliar!$B$5:$B$33,'Consumos energéticos '!S24),\"\")","v":""}]
["Costo marginal de la fuente energética",null,null,null,null,null,null,null,null,null,null,null,null,null,null,null,null,null,null,null,null,{"$f":"IF(S25<>\"\",COUNTIF(Auxiliar!$B$5:$B$33,'Consumos energéticos '!S25),\"\")","v":""}]
["% sobre los costos energéticos totales",null,{"$f":"IFERROR(I23/SUM(J:J),0)","v":0},null,null,null,null,null,null,null,null,null,null,null,null,null,null,null,null,null,null,{"$f":"IF(S26<>\"\",COUNTIF(Auxiliar!$B$5:$B$33,'Consumos energéticos '!S26),\"\")","v":""}]
["Tabla: Distribución de consumos"]
["Observación: Completar de mayor a menor consumo y con 0 las utilidades no empleadas en la industria. Realizar ajustes de ser necesario. "]
["Distribución de los consumos eléctricos ",null,"Consumo en el año base [kWh]",null,null,"%",null,null,null,null,null,{"$f":"IF(M29<>\"\",1,\"\")","v":""}]
[1,"Seleccione uso de la energía",null,null,null,{"$f":"IFERROR(C30*100/$C$42,0)","v":0},null,null,null,null,null,{"$f":"IF(M30<>\"\",1,\"\")","v":""},{"$f":"IF(B30=\"Seleccione uso de la energía\",\"\",IF(B30=\"Otros usos\",B31,\"\"))","v":""}]
[null,{"$f":"IF(B30=\"Otros usos\",\"Especifique utilidad\",\"-\")","v":"-"},{"$f":"C30","v":0},null,null,null,null,null,null,null,null,""]
[2,"Seleccione uso de la energía",null,null,null,{"$f":"IFERROR(C32*100/$C$42,0)","v":0},null,null,null,null,null,"",{"$f":"IF(B32=\"Seleccione uso de la energía\",\"\",IF(B32=\"Otros usos\",B33,\"\"))","v":""}]
[null,{"$f":"IF(B32=\"Otros usos\",\"Especifique utilidad\",\"-\")","v":"-"},{"$f":"C32","v":0},null,null,null,null,null,null,null,null,""]
[3,"Seleccione uso de la energía",null,null,null,{"$f":"IFERROR(C34*100/$C$42,0)","v":0},null,null,null,null,null,"",""]
[null,{"$f":"IF(B34=\"Otros usos\",\"Especifique utilidad\",\"-\")","v":"-"},{"$f":"C34","v":0},null,null,null,null,null,null,null,null,""]
[4,"Seleccione uso de la energía",null,null,null,{"$f":"IFERROR(C36*100/$C$42,0)","v":0},null,null,null,null,null,"",""]
[null,{"$f":"IF(B36=\"Otros usos\",\"Especifique utilidad\",\"-\")","v":"-"},{"$f":"C36","v":0},null,null,null,null,null,null,null,null,{"$f":"IF(M37<>\"\",1,\"\")","v":""}]
[5,"Seleccione uso de la energía",null,null,null,{"$f":"IFERROR(C38*100/$C$42,0)","v":0},null,null,null,null,null,"",""]
[null,{"$f":"IF(B38=\"Otros usos\",\"Especifique utilidad\",\"-\")","v":"-"},{"$f":"C38","v":0},null,null,null,null,null,null,null,null,""]
[6,"Seleccione uso de la energía",null,null,null,{"$f":"IFERROR(C40*100/$C$42,0)","v":0},null,null,null,null,null,"",""]
[null,{"$f":"IF(B40=\"Otros usos\",\"Especifique utilidad\",\"-\")","v":"-"},{"$f":"C40","v":0},null,null,null,null,null,null,null,null,""]
["Total de la planta",null,{"$f":"C9","v":0},null,null,{"$f":"SUM(F30:F41)","v":0},null,null,null,null,null,""]
["Distribución de los consumos de gas natural",null,"Consumo en el año base [Nm3]",null,null,"%",null,null,null,null,null,""]
[1,"Seleccione uso de la energía",null,null,null,{"$f":"IFERROR(C44*100/$C$52,0)","v":0},null,null,null,null,null,"",""]
[null,{"$f":"IF(B44=\"Otros usos\",\"Especifique utilidad\",\"-\")","v":"-"},{"$f":"C44","v":0},null,null,null,null,null,null,null,null,""]
[2,"Seleccione uso de la energía",null,null,null,{"$f":"IFERROR(C46*100/$C$52,0)","v":0},null,null,null,null,null,"",""]
[null,{"$f":"IF(B46=\"Otros usos\",\"Especifique utilidad\",\"-\")","v":"-"},{"$f":"C46","v":0},null,null,null,null,null,null,null,null,""]
[3,"Seleccione uso de la energía",null,null,null,{"$f":"IFERROR(C48*100/$C$52,0)","v":0},null,null,null,null,null,"",""]
[null,{"$f":"IF(B48=\"Otros usos\",\"Especifique utilidad\",\"-\")","v":"-"},{"$f":"C48","v":0},null,null,null,null,null,null,null,null,""]
[4,"Seleccione uso de la energía",null,null,null,{"$f":"IFERROR(C50*100/$C$52,0)","v":0},null,null,null,null,null,"",""]
[null,{"$f":"IF(B50=\"Otros usos\",\"Especifique utilidad\",\"-\")","v":"-"},{"$f":"C50","v":0},null,null,null,null,null,null,null,null,""]
["Total de la planta",null,{"$f":"C16","v":0},null,null,{"$f":"SUM(F44:F51)","v":0},null,null,null,null,null,""]
["Distribución de los consumos de otras fuentes",null,null,null,null,null,null,null,null,null,null,""]
[{"$f":"C22","v":"--------------------"},null,"Consumo en el año base ",null,null,"%","Unidad:",{"$f":"I22","v":0},null,null,null,""]
[1,"Seleccione uso de la energía",null,null,null,{"$f":"IFERROR(C55*100/C63,0)","v":0},null,null,null,null,null,"",""]
[null,{"$f":"IF(B55=\"Otros usos\",\"Especifique utilidad\",\"-\")","v":"-"},{"$f":"C55","v":0},null,null,null,null,null,null,null,null,""]
[2,"Seleccione uso de la energía",null,null,null,{"$f":"IFERROR(C57*100/C63,0)","v":0},null,null,null,null,null,"",""]
[null,{"$f":"IF(B57=\"Otros usos\",\"Especifique utilidad\",\"-\")","v":"-"},{"$f":"C57","v":0},null,null,null,null,null,null,null,null,""]
[3,"Seleccione uso de la energía",null,null,null,{"$f":"IFERROR(C59*100/C63,0)","v":0},null,null,null,null,null,"",""]
[null,{"$f":"IF(B59=\"Otros usos\",\"Especifique utilidad\",\"-\")","v":"-"},{"$f":"C59","v":0},null,null,null,null,null,null,null,null,""]
[4,"Seleccione uso de la energía",null,null,null,{"$f":"IFERROR(C61*100/C63,0)","v":0},null,null,null,null,null,"",""]
[null,{"$f":"IF(B61=\"Otros usos\",\"Especifique utilidad\",\"-\")","v":"-"},{"$f":"C61","v":0},null,null,null,null,null,null,null,null,""]
["Total de la planta",null,{"$f":"C23","v":0},null,null,{"$f":"SUM(F55:F62)","v":0},null,null,null,null,null,""]
["Importante: NO pasar a \"Inventario General\" sin apretar CONTINUAR (Botón abajo a la derecha)"]
[null,"Secretaría de Estado de la Energía                                                  Gobierno de la Provincia de Santa Fe",null,null,"Dirección General de Asistencia Técnica                                   Ministerio de la Producción",null,null,null,null,null,null,""]
[null,null,null,null,null,null,null,null,null,null,null,""]
[null,null,null,null,null,null,null,null,null,null,null,""]
[null,null,null,null,null,null,null,null,null,null,null,""]
[null,null,null,null,null,null,null,null,null,null,null,""]
[null,null,null,null,null,null,null,null,null,null,null,""]
[null,null,null,null,null,null,null,null,null,null,null,""]
[null,null,null,null,null,null,null,null,null,null,null,""]
[null,null,null,null,null,null,null,null,null,null,null,""]
[null,null,null,null,null,null,null,null,null,null,null,""]
[null,null,null,null,null,null,null,null,null,null,null,""]
[null,null,null,null,null,null,null,null,null,null,null,""]
[null,null,null,null,null,null,null,null,null,null,null,""]
[null,null,null,null,null,null,null,null,null,null,null,""]
[null,null,null,null,null,null,null,null,null,null,null,""]
[null,null,null,null,null,null,null,null,null,null,null,""]
[null,null,null,null,null,null,null,null,null,null,null,""]
[null,null,null,null,null,null,null,null,null,null,null,""]
[null,null,null,null,null,null,null,null,null,null,null,""]
[null,null,null,null,null,null,null,null,null,null,null,""]
[null,null,null,null,null,null,null,null,null,null,null,""]
[null,null,null,null,null,null,null,null,null,null,null,""]
[null,null,null,null,null,null,null,null,null,null,null,""]
[null,null,null,null,null,null,null,null,null,null,null,""]
[null,null,null,null,null,null,null,null,null,null,null,""]
[null,null,null,null,null,null,null,null,null,null,null,""]
[null,null,null,null,null,null,null,null,null,null,null,""]
[null,null,null,null,null,null,null,null,null,null,null,""]
[null,null,null,null,null,null,null,null,null,null,null,""]
[null,null,null,null,null,null,null,null,null,null,null,""]
[null,null,null,null,null,null,null,null,null,null,null,""]
[null,null,null,null,null,null,null,null,null,null,null,""]
[null,null,null,null,null,null,null,null,null,null,null,""]
[null,null,null,null,null,null,null,null,null,null,null,""]
[null,null,null,null,null,null,null,null,null,null,null,""]
[null,null,null,null,null,null,null,null,null,null,null,""]
[null,null,null,null,null,null,null,null,null,null,null,""]
[null,null,null,null,null,null,null,null,null,null,null,{"$f":"IF(M102<>\"\",1,\"\")","v":""}]
[null,null,null,null,null,null,null,null,null,null,null,""]
[null,null,null,null,null,null,null,null,null,null,null,""]
[null,null,null,null,null,null,null,null,null,null,null,""]
[null,null,null,null,null,null,null,null,null,null,null,""]
[null,null,null,null,null,null,null,null,null,null,null,""]
[null,null,null,null,null,null,null,null,null,null,null,""]
[null,null,null,null,null,null,null,null,null,null,null,""]
[null,null,null,null,null,null,null,null,null,null,null,""]
[null,null,null,null,null,null,null,null,null,null,null,""]
[null,null,null,null,null,null,null,null,null,null,null,""]
[null,null,null,null,null,null,null,null,null,null,null,""]
[null,null,null,null,null,null,null,null,null,null,null,""]
[null,null,null,null,null,null,null,null,null,null,null,""]
[null,null,null,null,null,null,null,null,null,null,null,""]
[null,null,null,null,null,null,null,null,null,null,null,""]
[null,null,null,null,null,null,null,null,null,null,null,""]
[null,null,null,null,null,null,null,null,null,null,null,""]
[null,null,null,null,null,null,null,null,null,null,null,""]
[null,null,null,null,null,null,null,null,null,null,null,""]
[null,null,null,null,null,null,null,null,null,null,null,""]
[null,null,null,null,null,null,null,null,null,null,null,""]
[null,null,null,null,null,null,null,null,null,null,null,""]
[null,null,null,null,null,null,null,null,null,null,null,""]
[null,null,null,null,null,null,null,null,null,null,null,""]
[null,null,null,null,null,null,null,null,null,null,null,""]
[null,null,null,null,null,null,null,null,null,null,null,""]
[null,null,null,null,null,null,null,null,null,null,null,""]
[null,null,null,null,null,null,null,null,null,null,null,""]
[null,null,null,null,null,null,null,null,null,null,null,""]
[null,null,null,null,null,null,null,null,null,null,null,""]
[null,null,null,null,null,null,null,null,null,null,null,""]
[null,null,null,null,null,null,null,null,null,null,null,""]
[null,null,null,null,null,null,null,null,null,null,null,""]
[null,null,null,null,null,null,null,null,null,null,null,""]
[null,null,null,null,null,null,null,null,null,null,null,""]
[null,null,null,null,null,null,null,null,null,null,null,""]
[null,null,null,null,null,null,null,null,null,null,null,""]
[null,null,null,null,null,null,null,null,null,null,null,""]
[null,null,null,null,null,null,null,null,null,null,null,""]

{"sheet":"Inventario general","index":7,"n_rows":32,"n_cols":15,"rows_kept":32,"cut":false,"hidden":false,"merged":[[32,15,33,16],[31,2,33,6],[31,1,33,1],[31,7,33,7],[31,8,33,12],[24,5,24,7],[25,5,25,7],[26,5,26,7],[27,5,27,7],[16,0,16,2],[19,3,21,3],[19,4,21,4],[19,5,21,7],[16,5,16,7],[29,0,29,2],[27,0,27,2],[28,0,28,2],[28,5,28,7],[29,5,29,7],[30,0,30,12],[0,0,2,10],[6,12,8,12],[6,8,8,8],[6,9,8,9],[6,10,8,10],[0,11,2,12],[6,11,8,11],[5,9,5,10],[5,11,5,12],[6,3,8,3],[6,4,8,4],[6,5,8,7],[19,9,21,9],[19,10,21,10],[19,11,21,11],[19,12,21,12],[23,0,23,2],[6,0,8,2],[5,0,5,8],[4,0,4,12],[22,5,22,7],[23,5,23,7],[3,0,3,12],[18,9,18,10],[18,11,18,12],[14,5,14,7],[15,5,15,7],[9,5,9,7],[10,5,10,7],[11,5,11,7],[12,5,12,7],[13,5,13,7],[31,0,33,0],[19,0,21,2],[9,0,9,2],[12,0,12,2],[13,0,13,2],[14,0,14,2],[18,0,18,8],[17,0,17,12],[26,0,26,2],[15,0,15,2],[10,0,10,2],[11,0,11,2],[22,0,22,2],[24,0,24,2],[25,0,25,2],[19,8,21,8]]}
["\"PROGRAMA DE EFICIENCIA ENERGÉTICA EN PyMEs”  "]
[]
[]
[]
["Tabla: Inventario general"]
["Energía eléctrica",null,null,null,null,null,null,null,null,"Unidad",null,{"$f":"VLOOKUP(A6,Auxiliar!$B$2:$E$50,4,FALSE)","v":"kWh"}]
["Equipos principales",null,null,"Potencia nominal total [kW]","Cantidad","Uso de los equipos",null,null,"Factor de carga","Horas en servicio / año","Rendimiento neto","Energía secundaria total consumida [kWh/año] ","Energía útil consumida [kWh/año] "]
[]
[]
[{"$f":"'Inventario general - Preliminar'!A10:C10","v":0},null,null,{"$f":"'Inventario general - Preliminar'!H10","v":0},{"$f":"'Inventario general - Preliminar'!J10","v":0},"Seleccione uso del equipo",null,null,null,null,null,{"$f":"D10*E10*I10*J10","v":0},{"$f":"L10*K10","v":0}]
[{"$f":"'Inventario general - Preliminar'!A11:C11","v":0},null,null,{"$f":"'Inventario general - Preliminar'!H11","v":0},{"$f":"'Inventario general - Preliminar'!J11","v":0},"Seleccione uso del equipo",null,null,null,null,null,{"$f":"D11*E11*I11*J11","v":0},{"$f":"L11*K11","v":0}]
[{"$f":"'Inventario general - Preliminar'!A12:C12","v":0},null,null,{"$f":"'Inventario general - Preliminar'!H12","v":0},{"$f":"'Inventario general - Preliminar'!J12","v":0},"Seleccione uso del equipo",null,null,null,null,null,0,0]
[{"$f":"'Inventario general - Preliminar'!A13:C13","v":0},null,null,{"$f":"'Inventario general - Preliminar'!H13","v":0},{"$f":"'Inventario general - Preliminar'!J13","v":0},"Seleccione uso del equipo",null,null,null,null,null,0,0]
[{"$f":"'Inventario general - Preliminar'!A14:C14","v":0},null,null,{"$f":"'Inventario general - Preliminar'!H14","v":0},{"$f":"'Inventario general - Preliminar'!J14","v":0},"Seleccione uso del equipo",null,null,null,null,null,0,0]
[{"$f":"'Inventario general - Preliminar'!A15:C15","v":0},null,null,{"$f":"'Inventario general - Preliminar'!H15","v":0},{"$f":"'Inventario general - Preliminar'!J15","v":0},"Seleccione uso del equipo",null,null,null,null,null,0,0]
[{"$f":"'Inventario general - Preliminar'!A16:C16","v":0},null,null,{"$f":"'Inventario general - Preliminar'!H16","v":0},{"$f":"'Inventario general - Preliminar'!J16","v":0},"Seleccione uso del equipo",null,null,null,null,null,0,0]
[{"$f":"'Inventario general - Preliminar'!A17:C17","v":0},null,null,{"$f":"'Inventario general - Preliminar'!H17","v":0},{"$f":"'Inventario general - Preliminar'!J17","v":0},"Seleccione uso del equipo",null,null,null,null,null,0,0]
[" (*) Para el consumo total, tener en cuenta la carga de los equipos además de las horas en servicio. "]
["Gas natural",null,null,null,null,null,null,null,null,"Unidad",null,{"$f":"VLOOKUP(A19,Auxiliar!$B$2:$E$50,4,FALSE)","v":"Nm3"}]
["Equipos principales",null,null,"Potencia nominal total [Nm3/h]","Cantidad","Uso de los equipos",null,null,"Factor de carga","Horas en servicio / año","Rendimiento neto","Energía secundaria total consumida [Nm3/año] ","Energía útil consumida [Nm3/año]"]
[]
[null,null,null,null,null,null,null,null,null,null,null,null,null,"Fuente","Uso"]
[{"$f":"'Inventario general - Preliminar'!A23:C23","v":0},null,null,{"$f":"'Inventario general - Preliminar'!H23","v":0},{"$f":"'Inventario general - Preliminar'!J23","v":0},"Seleccione uso del equipo",null,null,null,null,null,{"$f":"D23*E23*I23*J23","v":0},{"$f":"L23*K23","v":0},{"$f":"A19","v":"Gas natural"},{"$f":"F23","v":"Seleccione uso del equipo"}]
[{"$f":"'Inventario general - Preliminar'!A24:C24","v":0},null,null,{"$f":"'Inventario general - Preliminar'!H24","v":0},{"$f":"'Inventario general - Preliminar'!J24","v":0},"Seleccione uso del equipo",null,null,null,null,null,{"$f":"D24*E24*I24*J24","v":0},{"$f":"L24*K24","v":0},{"$f":"A19","v":"Gas natural"},{"$f":"F24","v":"Seleccione uso del equipo"}]
[{"$f":"'Inventario general - Preliminar'!A25:C25","v":0},null,null,{"$f":"'Inventario general - Preliminar'!H25","v":0},{"$f":"'Inventario general - Preliminar'!J25","v":0},"Seleccione uso del equipo",null,null,null,null,null,0,0,{"$f":"A19","v":"Gas natural"},"Seleccione uso del equipo"]
[{"$f":"'Inventario general - Preliminar'!A26:C26","v":0},null,null,{"$f":"'Inventario general - Preliminar'!H26","v":0},{"$f":"'Inventario general - Preliminar'!J26","v":0},"Seleccione uso del equipo",null,null,null,null,null,0,0,{"$f":"A19","v":"Gas natural"},"Seleccione uso del equipo"]
[{"$f":"'Inventario general - Preliminar'!A27:C27","v":0},null,null,{"$f":"'Inventario general - Preliminar'!H27","v":0},{"$f":"'Inventario general - Preliminar'!J27","v":0},"Seleccione uso del equipo",null,null,null,null,null,0,0,{"$f":"A19","v":"Gas natural"},"Seleccione uso del equipo"]
[{"$f":"'Inventario general - Preliminar'!A28:C28","v":0},null,null,{"$f":"'Inventario general - Preliminar'!H28","v":0},{"$f":"'Inventario general - Preliminar'!J28","v":0},"Seleccione uso del equipo",null,null,null,null,null,0,0,{"$f":"A19","v":"Gas natural"},"Seleccione uso del equipo"]
[{"$f":"'Inventario general - Preliminar'!A29:C29","v":0},null,null,{"$f":"'Inventario general - Preliminar'!H29","v":0},{"$f":"'Inventario general - Preliminar'!J29","v":0},"Seleccione uso del equipo",null,null,null,null,null,0,0,{"$f":"A19","v":"Gas natural"},"Seleccione uso del equipo"]
[{"$f":"'Inventario general - Preliminar'!A30:C30","v":0},null,null,{"$f":"'Inventario general - Preliminar'!H30","v":0},{"$f":"'Inventario general - Preliminar'!J30","v":0},"Seleccione uso del equipo",null,null,null,null,null,0,0,{"$f":"A19","v":"Gas natural"},"Seleccione uso del equipo"]
["(*) Para el consumo total, tener en cuenta la carga de los equipos además de las horas en servicio. "]
[null,null,"Secretaría de Estado de la Energía                                                  Gobierno de la Provincia de Santa Fe",null,null,null,null,null,"Dirección General de Asistencia Técnica                                   Ministerio de la Producción"]

{"sheet":"Mejoras","index":8,"n_rows":381,"n_cols":24,"rows_kept":381,"cut":false,"hidden":false,"merged":[[0,0,2,7],[0,8,2,9],[9,0,10,1],[9,2,10,9],[15,2,16,4],[15,5,16,5],[15,8,16,8],[15,9,16,9],[11,2,14,9],[11,0,14,1],[15,0,32,1],[15,6,32,7],[17,2,20,2],[21,2,25,2],[18,3,18,4],[17,3,17,4],[3,0,4,9],[5,0,5,9],[7,7,8,8],[7,9,8,9],[7,0,8,1],[7,2,8,6],[6,2,6,9],[18,8,21,8],[18,9,21,9],[22,8,24,8],[22,9,24,9],[19,3,19,4],[20,3,20,4],[25,3,25,4],[23,3,24,3],[21,3,22,3],[27,2,27,4],[28,2,28,4],[26,8,29,8],[26,9,29,9],[30,8,32,9],[26,2,26,4],[29,2,29,4],[31,2,31,4],[304,9,304,11],[303,9,303,11],[30,2,30,4],[32,2,32,4],[301,9,301,11],[302,9,302,11],[34,1,36,4],[33,0,33,9],[34,0,36,0],[34,5,36,5],[34,6,36,9]]}
["\"PROGRAMA DE EFICIENCIA ENERGÉTICA EN PyMEs”  "]
[]
[]
["Importante: completar todos los campos"]
[]
["Tabla: Mejoras"]
["Mejora N° ",1,"Escriba nombre de la mejora",null,null,null,null,null,null,null,null,1,null,{"$f":"C7","v":"Escriba nombre de la mejora"},{"$f":"B7","v":1},{"$f":"C8","v":0},{"$f":"C10","v":0},{"$f":"J16","v":0},{"$f":"J8","v":""},{"$f":"F16","v":0},{"$f":"F30","v":0},{"$f":"F31","v":0},{"$f":"F33","v":0},{"$f":"F32","v":0}]
["Vector energético involucrado",null,null,null,null,null,null,"Unidad",null,{"$f":"IFERROR(VLOOKUP(C8,Auxiliar!$B$2:$E$60,4,FALSE),\"\")","v":""}]
[]
["Uso involucrado"]
[]
["Descripción"]
[]
[]
[]
["Datos económicos y financieros",null,"Inversión inicial estimada [USD]",null,null,null,"Ahorro energético",null,"Ahorro anual del vector"]
[]
[null,null,"Otras inversiones diferidas en el tiempo [USD]","Año asociado a la inv. Diferida",null,"Inversión [USD]",null,null,"Unidad",{"$f":"J8","v":""},null,null,{"$f":"IFERROR(IF(F18=\"Inversión [USD]\",0,F18/1.05^D18),0)","v":0}]
[null,null,null,"Año asociado a la inv. Diferida",null,"Inversión [USD]",null,null,"% de ahorro energético sobre el vector energético",{"$f":"IFERROR(J16/HLOOKUP(Mejoras!C8,'Auxiliar consumos'!$B$3:$M$36,34,FALSE),0)","v":0},null,null,{"$f":"IFERROR(IF(F19=\"Inversión [USD]\",0,F19/1.05^D19),0)","v":0}]
[null,null,null,"Año asociado a la inv. Diferida",null,"Inversión [USD]",null,null,null,null,null,null,0]
[null,null,null,"Año asociado a la inv. Diferida",null,"Inversión [USD]",null,null,null,null,null,null,0]
[null,null,"Costo de operación y mantenimiento anual [USD/año]","Sin mejoras","Fijo"]
[null,null,null,null,"Variable",null,null,null,"Ahorro anual de energía primaria",{"$f":"IFERROR(J16*VLOOKUP(Mejoras!C8,Auxiliar!$B$2:$E$34,3,FALSE),0)","v":0}]
[null,null,null,"Con mejoras","Fijo "]
[null,null,null,null,"Variable"]
[null,null,null,"Diferencia",null,{"$f":"(F22+F23)-(F24+F25)","v":0},null,null,"Unidad","TEP"]
[null,null,"Horizonte [años]",null,null,null,null,null,"% de ahorro energético sobre el consumo total de la fábrica",{"$f":"IFERROR(J23/(HLOOKUP(Mejoras!C8,'Auxiliar consumos'!$B$3:$M$36,34,FALSE)*VLOOKUP(Mejoras!C8,Auxiliar!$B$2:$E$34,3,FALSE)),0)","v":0}]
[null,null,"Ahorro económico [USD/año]",null,null,{"$f":"IFERROR(J16*VLOOKUP(Mejoras!C8,Auxiliar!$B$2:$E$34,2,FALSE),0)","v":0}]
[null,null,"Tasa de descuento real en USD",null,null,0.05]
[null,null,"LCOE [USD/unidad de energía]",null,null,{"$f":"IFERROR((F16+((SUMIF(A217:A296,\"<=\"&F27,D217:D296)))+SUM(M18:M21))/((SUMIF(A217:A296,\"<=\"&F27,E217:E296))),0)","v":0}]
[null,null,"LCOE [USD/unidad de energía primaria]",null,null,{"$f":"IFERROR(F30/VLOOKUP(C8,Auxiliar!$B$2:$E$60,3,FALSE),0)","v":0}]
[null,null,"Período recuperación simple de inversión [años]",null,null,{"$f":"IFERROR(M305,0)","v":0}]
[null,null,"TIR",null,null,{"$f":"IFERROR(IRR(E302:E381),0)","v":0}]
[]
[null,"Secretaría de Estado de la Energía                                                  Gobierno de la Provincia de Santa Fe",null,null,null,null,"Dirección General de Asistencia Técnica                                   Ministerio de la Producción"]
[]
[]
[]
[]
[]
[]
[]
[]
[]
[]
[]
[]
[]
[]
[]
[]
[]
[]
[]
[]
[]
[]
[]
[]
[]
[]
[]
[]
[]
[]
[]
[]
[]
[]
[]
[]
[]
[]
[]
[]
[]
[]
[]
[]
[]
[]
[]
[]
[]
[]
[]
[]
[]
[]
[]
[]
[]
[]
[]
[]
[]
[]
[]
[]
[]
[]
[]
[]
[]
[]
[]
[]
[]
[]
[]
[]
[]
[]
[]
[]
[]
[]
[]
[]
[]
[]
[]
[]
[]
[]
[]
[]
[]
[]
[]
[]
[]
[]
[]
[]
[]
[]
[]
[]
[]
[]
[]
[]
[]
[]
[]
[]
[]
[]
[]
[]
[]
[]
[]
[]
[]
[]
[]
[]
[]
[]
[]
[]
[]
[]
[]
[]
[]
[]
[]
[]
[]
[]
[]
[]
[]
[]
[]
[]
[]
[]
[]
[]
[]
[]
[]
[]
[]
[]
[]
[]
[]
[]
[]
[]
[]
[]
[]
[]
[]
[]
[]
[]
[]
[]
[]
[]
[]
[]
[]
[]
[]
[]
["Auxiliar LCOE"]
["MEJORA N°",1]
["Año","Tasa act 0,05",null,"CM&O act","Ahorro de en act","Inv diferidas"]
[1,{"$f":"1.05^A217","v":1.05},null,{"$f":"$F$26/B217","v":0},{"$f":"$J$16/B217","v":0},"arriba"]
[2,1.1025,null,0,{"$f":"$J$16/B218","v":0}]
[3,1.1576250000000001,null,0,0]
[4,1.21550625,null,0,0]
[5,1.2762815625000001,null,0,0]
[6,1.340095640625,null,0,0]
[7,1.4071004226562502,null,0,0]
[8,1.4774554437890626,null,0,0]
[9,1.5513282159785158,null,0,0]
[10,1.6288946267774416,null,0,0]
[11,1.7103393581163138,null,0,0]
[12,1.7958563260221292,null,0,0]
[13,1.885649142323236,null,0,0]
[14,1.9799315994393973,null,0,0]
[15,2.0789281794113679,null,0,0]
[16,2.182874588381936,null,0,0]
[17,2.2920183178010332,null,0,0]
[18,2.4066192336910848,null,0,0]
[19,2.526950195375639,null,0,0]
[20,2.6532977051444209,null,0,0]
[21,2.7859625904016418,null,0,0]
[22,2.9252607199217238,null,0,0]
[23,3.0715237559178106,null,0,0]
[24,3.2250999437137007,null,0,0]
[25,3.3863549408993858,null,0,0]
[26,3.5556726879443552,null,0,0]
[27,3.7334563223415733,null,0,0]
[28,3.9201291384586514,null,0,0]
[29,4.1161355953815848,null,0,0]
[30,4.3219423751506625,null,0,0]
[31,4.5380394939081974,null,0,0]
[32,4.7649414686036069,null,0,0]
[33,5.0031885420337874,null,{"$f":"$F$26/B249","v":0},0]
[34,5.2533479691354765,null,0,0]
[35,5.5160153675922512,null,0,0]
[36,5.791816135971863,null,0,0]
[37,6.0814069427704567,null,0,0]
[38,6.3854772899089784,null,0,0]
[39,6.7047511544044287,null,0,0]
[40,7.0399887121246492,null,0,0]
[41,7.3919881477308822,null,0,0]
[42,7.7615875551174263,null,0,0]
[43,8.1496669328732985,null,0,0]
[44,8.5571502795169625,null,0,0]
[45,8.9850077934928123,null,0,0]
[46,9.4342581831674508,null,0,0]
[47,9.9059710923258262,null,0,0]
[48,10.401269646942117,null,0,0]
[49,10.921333129289224,null,0,0]
[50,11.467399785753685,null,0,0]
[51,12.040769775041369,null,0,0]
[52,12.642808263793437,null,0,0]
[53,13.274948676983108,null,0,0]
[54,13.938696110832263,null,0,0]
[55,14.635630916373879,null,0,0]
[56,15.36741246219257,null,0,0]
[57,16.135783085302201,null,0,0]
[58,16.942572239567312,null,0,0]
[59,17.789700851545678,null,0,0]
[60,18.679185894122959,null,0,0]
[61,19.613145188829112,null,0,0]
[62,20.593802448270559,null,0,0]
[63,21.623492570684096,null,0,0]
[64,22.704667199218299,null,0,0]
[65,{"$f":"1.05^A281","v":23.839900559179217},null,{"$f":"$F$26/B281","v":0},0]
[66,25.031895587138177,null,0,{"$f":"$J$16/B282","v":0}]
[67,26.283490366495087,null,0,0]
[68,27.597664884819839,null,0,0]
[69,28.977548129060832,null,0,0]
[70,30.426425535513872,null,0,0]
[71,31.947746812289569,null,0,0]
[72,33.545134152904048,null,0,0]
[73,35.222390860549247,null,0,0]
[74,36.983510403576709,null,0,0]
[75,38.832685923755548,null,0,0]
[76,40.77432021994332,null,0,0]
[77,42.813036230940497,null,0,0]
[78,44.953688042487506,null,0,0]
[79,47.201372444611899,null,0,0]
[80,49.561441066842491,null,0,0]
[]
[]
["Auxiliar TIR"]
[]
["Año","Ingresos - Ahorro","Egresos - COyM","Inv. Diferidas","Flujo de efectivo neto","Flujo acumulado","Flujo actualizado","Flujo act. Acumulado"]
["Año asociado a la inv. Diferida",null,{"$f":"F16","v":0},null,{"$f":"-C302","v":0},{"$f":"E302","v":0},null,{"$f":"F302","v":0},null,"Último periodo con FA negativo",null,null,{"$f":"COUNTIF(H303:H381,\"<0\")","v":0}]
[1,{"$f":"IF(A303<=$F$27,$F$28,0)","v":0},{"$f":"IF(A303<=$F$27,$F$26,0)","v":0},{"$f":"IFERROR(VLOOKUP(A303,$D$18:$F$21,3,FALSE),0)","v":0},{"$f":"B303-C303-D303","v":0},{"$f":"E303+F302","v":0},{"$f":"E303/(1+0.05)^A303","v":0},{"$f":"G303+H302","v":0},null,"Valor absoluto último FA negativo",null,null,{"$f":"ABS(INDEX(H303:H381,M302,1))","v":0}]
[2,0,0,0,0,0,0,{"$f":"G304+H303","v":0},null,"Valor FC del periodo siguiente",null,null,{"$f":"INDEX(G303:G381,M302+1,1)","v":0}]
[3,0,0,0,0,{"$f":"E305+F304","v":0},0,0,null,"Periodo de retorno de inversion",null,null,{"$f":"M302+M303/M304","v":{"$error":"#DIV/0!"}}]
[4,0,0,0,0,0,0,0]
[5,0,0,0,0,0,0,0]
[6,0,0,0,0,0,0,0]
[7,0,0,0,0,0,0,0]
[8,0,0,0,0,0,0,0]
[9,0,0,0,0,0,0,0]
[10,0,0,0,0,0,0,0]
[11,0,0,0,0,0,0,0]
[12,0,0,0,0,0,0,0]
[13,0,0,0,0,0,0,0]
[14,0,0,0,0,0,0,0]
[15,0,0,0,0,0,0,0]
[16,0,0,0,0,0,0,0]
[17,0,0,0,0,0,0,0]
[18,0,0,0,0,0,0,0]
[19,0,0,0,0,0,0,0]
[20,0,0,0,0,0,0,0]
[21,0,0,0,0,0,0,0]
[22,0,0,0,0,0,0,0]
[23,0,0,0,0,0,0,0]
[24,0,0,0,0,0,0,0]
[25,0,0,0,0,0,0,0]
[26,0,0,0,0,0,0,0]
[27,0,0,0,0,0,0,0]
[28,0,0,0,0,0,0,0]
[29,0,0,0,0,0,0,0]
[30,0,0,0,0,0,0,0]
[31,0,0,0,0,0,0,0]
[32,0,0,0,0,0,0,0]
[33,{"$f":"IF(A335<=$F$27,$F$28,0)","v":0},{"$f":"IF(A335<=$F$27,$F$26,0)","v":0},{"$f":"IFERROR(VLOOKUP(A335,$D$18:$F$21,3,FALSE),0)","v":0},{"$f":"B335-C335-D335","v":0},{"$f":"E335+F334","v":0},{"$f":"E335/(1+0.05)^A335","v":0},0]
[34,0,0,0,0,0,0,0]
[35,0,0,0,0,0,0,0]
[36,0,0,0,0,0,0,0]
[37,0,0,0,0,0,0,0]
[38,0,0,0,0,0,0,0]
[39,0,0,0,0,0,0,0]
[40,0,0,0,0,0,0,0]
[41,0,0,0,0,0,0,0]
[42,0,0,0,0,0,0,0]
[43,0,0,0,0,0,0,0]
[44,0,0,0,0,0,0,0]
[45,0,0,0,0,0,0,0]
[46,0,0,0,0,0,0,0]
[47,0,0,0,0,0,0,0]
[48,0,0,0,0,0,0,0]
[49,0,0,0,0,0,0,0]
[50,0,0,0,0,0,0,0]
[51,0,0,0,0,0,0,0]
[52,0,0,0,0,0,0,0]
[53,0,0,0,0,0,0,0]
[54,0,0,0,0,0,0,0]
[55,0,0,0,0,0,0,0]
[56,0,0,0,0,0,0,0]
[57,0,0,0,0,0,0,0]
[58,0,0,0,0,0,0,0]
[59,0,0,0,0,0,0,0]
[60,0,0,0,0,0,0,0]
[61,0,0,0,0,0,0,0]
[62,0,0,0,0,0,0,0]
[63,0,0,0,0,0,0,0]
[64,0,0,0,0,0,0,0]
[65,{"$f":"IF(A367<=$F$27,$F$28,0)","v":0},{"$f":"IF(A367<=$F$27,$F$26,0)","v":0},{"$f":"IFERROR(VLOOKUP(A367,$D$18:$F$21,3,FALSE),0)","v":0},{"$f":"B367-C367-D367","v":0},{"$f":"E367+F366","v":0},{"$f":"E367/(1+0.05)^A367","v":0},0]
[66,0,0,0,0,0,0,{"$f":"G368+H367","v":0}]
[67,0,0,0,0,0,0,0]
[68,0,0,0,0,0,0,0]
[69,0,0,0,0,0,0,0]
[70,0,0,0,0,0,0,0]
[71,0,0,0,0,0,0,0]
[72,0,0,0,0,0,0,0]
[73,0,0,0,0,0,0,0]
[74,0,0,0,0,0,0,0]
[75,0,0,0,0,0,0,0]
[76,0,0,0,0,0,0,0]
[77,0,0,0,0,0,0,0]
[78,0,0,0,0,0,0,0]
[79,0,0,0,0,0,0,0]

{"sheet":"Resumen ejecutivo de mejoras","index":9,"n_rows":8,"n_cols":12,"rows_kept":8,"cut":false,"hidden":false,"merged":[[6,11,8,11],[6,4,6,5],[5,0,5,11],[6,0,8,0],[6,1,8,1],[6,2,8,2],[6,3,8,3],[7,4,8,4],[7,5,8,5],[6,6,8,6],[6,7,8,7],[6,8,8,8],[6,9,8,9],[6,10,8,10],[0,0,1,11],[3,4,3,5],[4,4,4,5],[3,6,3,8],[4,6,4,8],[4,1,4,3],[2,9,2,11],[2,1,2,3],[2,4,2,5],[2,6,2,8],[3,1,3,3],[3,9,4,11]]}
["Formulario ID-01"]
[]
["Nombre de la empresa",{"$f":"'Datos generales'!A6","v":0},null,null,"Razón social",null,{"$f":"'Datos generales'!A8","v":0},null,null,"Gestor energético"]
["Rubro",{"$f":"'Datos generales'!A12","v":0},null,null,"Tamaño",null,{"$f":"'Datos generales'!A16","v":"Seleccione tamaño de empresa"},null,null,{"$f":"'Diagnóstico propuesto'!C11","v":0}]
["Dirección de la empresa",{"$f":"'Datos generales'!F19","v":0},null,null,"Localidad",null,{"$f":"'Datos generales'!F20","v":0}]
["Resumen ejecutivo de las mejoras"]
["Nombre Mejora","Mejora N°","Vector energético","Uso","Consumo",null,"Unidad","Inversión inicial estimada [USD]","LCOE [USD/unidad de energía]","LCOE [USD/u. de energía primaria]","TIR","Período recuperación simple de la inversión [años]"]
[null,null,null,null,"Antes","Después"]

{"sheet":"Matrices de consumo","index":10,"n_rows":5,"n_cols":19,"rows_kept":5,"cut":false,"hidden":false,"merged":[[0,0,1,12],[2,9,2,12],[3,9,4,12],[3,1,3,3],[3,4,3,5],[3,6,3,8],[4,1,4,3],[4,4,4,5],[4,6,4,8],[2,1,2,3],[2,4,2,5],[2,6,2,8]]}
["Formulario ID-02",null,null,null,null,null,null,null,null,null,null,null,null,null,null,null,null,null,{"$f":"COUNTA(A:A)+1","v":5}]
[]
["Nombre de la empresa",{"$f":"'Datos generales'!A6","v":0},null,null,"Razón social",null,{"$f":"'Datos generales'!A8","v":0},null,null,"Gestor energético"]
["Rubro",{"$f":"'Datos generales'!A12","v":0},null,null,"Tamaño",null,{"$f":"'Datos generales'!A16","v":"Seleccione tamaño de empresa"},null,null,{"$f":"'Diagnóstico propuesto'!C11","v":0}]
["Dirección de la empresa",{"$f":"'Datos generales'!F19","v":0},null,null,"Localidad",null,{"$f":"'Datos generales'!F20","v":0}]

{"sheet":"Auxiliar","index":11,"n_rows":80,"n_cols":8,"rows_kept":80,"cut":false,"hidden":true,"merged":[]}
["Tamaño empresa","Fuentes de energía","Costo marginal","Factor conversión a EP","Unidad","Uso de energia ",null,"Las fuentes energéticas a relevar en el sector Industrial son:"]
["Seleccione tamaño de empresa","Energía eléctrica",{"$f":"'Consumos energéticos '!C11:I11","v":0},3.3,{"$f":"Procesos!L21","v":"kWh"},"Seleccione uso de la energía"]
["Micro","Gas natural",{"$f":"'Consumos energéticos '!C18:I18","v":0},1.25,{"$f":"Procesos!L22","v":"Nm3"},"Iluminación"]
["Pequeña ","Seleccione fuente de energía",null,null,null,"Vapor",null,".   Electricidad"]
["Mediana","Aserrín",{"$f":"IFERROR(VLOOKUP(B5,'Consumos energéticos '!$S$2:$U$26,3,FALSE),\"\")","v":""},1.6,{"$f":"IFERROR(VLOOKUP(B5,'Consumos energéticos '!$S$2:$U$26,2,FALSE),\"\")","v":""},"Calor Directo ",null,".   Gas Distribuido por redes"]
[null,"Bagazo",{"$f":"IFERROR(VLOOKUP(B6,'Consumos energéticos '!$S$2:$U$26,3,FALSE),\"\")","v":""},1.6,{"$f":"IFERROR(VLOOKUP(B6,'Consumos energéticos '!$S$2:$U$26,2,FALSE),\"\")","v":""},"Fuerza Motriz (general)",null,".   Gas Licuado"]
[null,"Biodiesel",{"$f":"IFERROR(VLOOKUP(B7,'Consumos energéticos '!$S$2:$U$26,3,FALSE),\"\")","v":""},1.2,{"$f":"IFERROR(VLOOKUP(B7,'Consumos energéticos '!$S$2:$U$26,2,FALSE),\"\")","v":""},"Frío de Proceso ",null,".   Gas Oil"]
[null,"Bioetanol",{"$f":"IFERROR(VLOOKUP(B8,'Consumos energéticos '!$S$2:$U$26,3,FALSE),\"\")","v":""},1.2,{"$f":"IFERROR(VLOOKUP(B8,'Consumos energéticos '!$S$2:$U$26,2,FALSE),\"\")","v":""},"Transporte Interno",null,".   Fuel Oil "]
[null,"Biomasa",{"$f":"IFERROR(VLOOKUP(B9,'Consumos energéticos '!$S$2:$U$26,3,FALSE),\"\")","v":""},1.6,{"$f":"IFERROR(VLOOKUP(B9,'Consumos energéticos '!$S$2:$U$26,2,FALSE),\"\")","v":""},"Otros Usos",null,".   Carbón Mineral"]
[null,"Carbón mineral",{"$f":"IFERROR(VLOOKUP(B10,'Consumos energéticos '!$S$2:$U$26,3,FALSE),\"\")","v":""},1.6,{"$f":"IFERROR(VLOOKUP(B10,'Consumos energéticos '!$S$2:$U$26,2,FALSE),\"\")","v":""},null,null,".   Leña"]
[null,"Carbón vegetal",{"$f":"IFERROR(VLOOKUP(B11,'Consumos energéticos '!$S$2:$U$26,3,FALSE),\"\")","v":""},1.6,{"$f":"IFERROR(VLOOKUP(B11,'Consumos energéticos '!$S$2:$U$26,2,FALSE),\"\")","v":""},null,null,".   Carbón Vegetal"]
[null,"Cáscara de arroz",{"$f":"IFERROR(VLOOKUP(B12,'Consumos energéticos '!$S$2:$U$26,3,FALSE),\"\")","v":""},1.6,{"$f":"IFERROR(VLOOKUP(B12,'Consumos energéticos '!$S$2:$U$26,2,FALSE),\"\")","v":""},null,null,".   Residuos de Biomasa"]
[null,"Cáscara de girasol",{"$f":"IFERROR(VLOOKUP(B13,'Consumos energéticos '!$S$2:$U$26,3,FALSE),\"\")","v":""},1.6,{"$f":"IFERROR(VLOOKUP(B13,'Consumos energéticos '!$S$2:$U$26,2,FALSE),\"\")","v":""},null,null,".   Otras Fuentes (que se detecten en el trabajo de campo)"]
[null,"Casullo de cebada",{"$f":"IFERROR(VLOOKUP(B14,'Consumos energéticos '!$S$2:$U$26,3,FALSE),\"\")","v":""},1.6,{"$f":"IFERROR(VLOOKUP(B14,'Consumos energéticos '!$S$2:$U$26,2,FALSE),\"\")","v":""}]
[null,"Chips",{"$f":"IFERROR(VLOOKUP(B15,'Consumos energéticos '!$S$2:$U$26,3,FALSE),\"\")","v":""},1.6,{"$f":"IFERROR(VLOOKUP(B15,'Consumos energéticos '!$S$2:$U$26,2,FALSE),\"\")","v":""}]
[null,"Coque de carbón",{"$f":"IFERROR(VLOOKUP(B16,'Consumos energéticos '!$S$2:$U$26,3,FALSE),\"\")","v":""},1.6,{"$f":"IFERROR(VLOOKUP(B16,'Consumos energéticos '!$S$2:$U$26,2,FALSE),\"\")","v":""}]
[null,"Coque de petróleo",{"$f":"IFERROR(VLOOKUP(B17,'Consumos energéticos '!$S$2:$U$26,3,FALSE),\"\")","v":""},1.1000000000000001,{"$f":"IFERROR(VLOOKUP(B17,'Consumos energéticos '!$S$2:$U$26,2,FALSE),\"\")","v":""}]
[null,"Diesel oil",{"$f":"IFERROR(VLOOKUP(B18,'Consumos energéticos '!$S$2:$U$26,3,FALSE),\"\")","v":""},1.1000000000000001,{"$f":"IFERROR(VLOOKUP(B18,'Consumos energéticos '!$S$2:$U$26,2,FALSE),\"\")","v":""}]
[null,"Fuel oil",{"$f":"IFERROR(VLOOKUP(B19,'Consumos energéticos '!$S$2:$U$26,3,FALSE),\"\")","v":""},1.1000000000000001,{"$f":"IFERROR(VLOOKUP(B19,'Consumos energéticos '!$S$2:$U$26,2,FALSE),\"\")","v":""}]
[null,"Fuel oil calefacción",{"$f":"IFERROR(VLOOKUP(B20,'Consumos energéticos '!$S$2:$U$26,3,FALSE),\"\")","v":""},1.1000000000000001,{"$f":"IFERROR(VLOOKUP(B20,'Consumos energéticos '!$S$2:$U$26,2,FALSE),\"\")","v":""}]
[null,"Fuel oil intermedio",{"$f":"IFERROR(VLOOKUP(B21,'Consumos energéticos '!$S$2:$U$26,3,FALSE),\"\")","v":""},1.1000000000000001,{"$f":"IFERROR(VLOOKUP(B21,'Consumos energéticos '!$S$2:$U$26,2,FALSE),\"\")","v":""}]
[null,"Fuel oil pesado",{"$f":"IFERROR(VLOOKUP(B22,'Consumos energéticos '!$S$2:$U$26,3,FALSE),\"\")","v":""},1.1000000000000001,{"$f":"IFERROR(VLOOKUP(B22,'Consumos energéticos '!$S$2:$U$26,2,FALSE),\"\")","v":""}]
[null,"Gas fuel",{"$f":"IFERROR(VLOOKUP(B23,'Consumos energéticos '!$S$2:$U$26,3,FALSE),\"\")","v":""},1.1000000000000001,{"$f":"IFERROR(VLOOKUP(B23,'Consumos energéticos '!$S$2:$U$26,2,FALSE),\"\")","v":""}]
[null,"Gas licuado de petróleo",{"$f":"IFERROR(VLOOKUP(B24,'Consumos energéticos '!$S$2:$U$26,3,FALSE),\"\")","v":""},1.1000000000000001,{"$f":"IFERROR(VLOOKUP(B24,'Consumos energéticos '!$S$2:$U$26,2,FALSE),\"\")","v":""}]
[null,"Gas oil",{"$f":"IFERROR(VLOOKUP(B25,'Consumos energéticos '!$S$2:$U$26,3,FALSE),\"\")","v":""},1.1000000000000001,{"$f":"IFERROR(VLOOKUP(B25,'Consumos energéticos '!$S$2:$U$26,2,FALSE),\"\")","v":""}]
[null,"Gas propano",{"$f":"IFERROR(VLOOKUP(B26,'Consumos energéticos '!$S$2:$U$26,3,FALSE),\"\")","v":""},1.1000000000000001,{"$f":"IFERROR(VLOOKUP(B26,'Consumos energéticos '!$S$2:$U$26,2,FALSE),\"\")","v":""}]
[null,"Gasolina Premium",{"$f":"IFERROR(VLOOKUP(B27,'Consumos energéticos '!$S$2:$U$26,3,FALSE),\"\")","v":""},1.1000000000000001,{"$f":"IFERROR(VLOOKUP(B27,'Consumos energéticos '!$S$2:$U$26,2,FALSE),\"\")","v":""}]
[null,"Gasolina Super",{"$f":"IFERROR(VLOOKUP(B28,'Consumos energéticos '!$S$2:$U$26,3,FALSE),\"\")","v":""},1.1000000000000001,{"$f":"IFERROR(VLOOKUP(B28,'Consumos energéticos '!$S$2:$U$26,2,FALSE),\"\")","v":""}]
[null,"Leña",{"$f":"IFERROR(VLOOKUP(B29,'Consumos energéticos '!$S$2:$U$26,3,FALSE),\"\")","v":""},1.6,{"$f":"IFERROR(VLOOKUP(B29,'Consumos energéticos '!$S$2:$U$26,2,FALSE),\"\")","v":""}]
[null,"Licor negro",{"$f":"IFERROR(VLOOKUP(B30,'Consumos energéticos '!$S$2:$U$26,3,FALSE),\"\")","v":""},1.2,{"$f":"IFERROR(VLOOKUP(B30,'Consumos energéticos '!$S$2:$U$26,2,FALSE),\"\")","v":""}]
[null,"Queroseno",{"$f":"IFERROR(VLOOKUP(B31,'Consumos energéticos '!$S$2:$U$26,3,FALSE),\"\")","v":""},1.1000000000000001,{"$f":"IFERROR(VLOOKUP(B31,'Consumos energéticos '!$S$2:$U$26,2,FALSE),\"\")","v":""}]
[null,"Residuos forestales",{"$f":"IFERROR(VLOOKUP(B32,'Consumos energéticos '!$S$2:$U$26,3,FALSE),\"\")","v":""},1.6,{"$f":"IFERROR(VLOOKUP(B32,'Consumos energéticos '!$S$2:$U$26,2,FALSE),\"\")","v":""}]
[null,"Supergas",{"$f":"IFERROR(VLOOKUP(B33,'Consumos energéticos '!$S$2:$U$26,3,FALSE),\"\")","v":""},1.1000000000000001,{"$f":"IFERROR(VLOOKUP(B33,'Consumos energéticos '!$S$2:$U$26,2,FALSE),\"\")","v":""}]
[null,"Otra fuente"]
[null,"fuente1",1,{"$f":"IFERROR(VLOOKUP(B35,Procesos!$Q$24:$S$79,3,FALSE),\"\")","v":""},"u2"]
[null,null,null,{"$f":"IFERROR(VLOOKUP(B36,Procesos!$Q$24:$S$79,3,FALSE),\"\")","v":""}]
[null,null,null,{"$f":"IFERROR(VLOOKUP(B37,Procesos!$Q$24:$S$79,3,FALSE),\"\")","v":""}]
[null,null,null,{"$f":"IFERROR(VLOOKUP(B38,Procesos!$Q$24:$S$79,3,FALSE),\"\")","v":""}]
[null,null,null,{"$f":"IFERROR(VLOOKUP(B39,Procesos!$Q$24:$S$79,3,FALSE),\"\")","v":""}]
[null,null,null,{"$f":"IFERROR(VLOOKUP(B40,Procesos!$Q$24:$S$79,3,FALSE),\"\")","v":""}]
[null,null,null,{"$f":"IFERROR(VLOOKUP(B41,Procesos!$Q$24:$S$79,3,FALSE),\"\")","v":""}]
[null,null,null,{"$f":"IFERROR(VLOOKUP(B42,Procesos!$Q$24:$S$79,3,FALSE),\"\")","v":""}]
[null,null,null,{"$f":"IFERROR(VLOOKUP(B43,Procesos!$Q$24:$S$79,3,FALSE),\"\")","v":""}]
[null,null,null,{"$f":"IFERROR(VLOOKUP(B44,Procesos!$Q$24:$S$79,3,FALSE),\"\")","v":""}]
[null,null,null,{"$f":"IFERROR(VLOOKUP(B45,Procesos!$Q$24:$S$79,3,FALSE),\"\")","v":""}]
[null,null,null,{"$f":"IFERROR(VLOOKUP(B46,Procesos!$Q$24:$S$79,3,FALSE),\"\")","v":""}]
[null,null,null,{"$f":"IFERROR(VLOOKUP(B47,Procesos!$Q$24:$S$79,3,FALSE),\"\")","v":""}]
[null,null,null,{"$f":"IFERROR(VLOOKUP(B48,Procesos!$Q$24:$S$79,3,FALSE),\"\")","v":""}]
[null,null,null,{"$f":"IFERROR(VLOOKUP(B49,Procesos!$Q$24:$S$79,3,FALSE),\"\")","v":""}]
[null,null,null,{"$f":"IFERROR(VLOOKUP(B50,Procesos!$Q$24:$S$79,3,FALSE),\"\")","v":""}]
[null,null,null,{"$f":"IFERROR(VLOOKUP(B51,Procesos!$Q$24:$S$79,3,FALSE),\"\")","v":""}]
[null,null,null,{"$f":"IFERROR(VLOOKUP(B52,Procesos!$Q$24:$S$79,3,FALSE),\"\")","v":""}]
[null,null,null,{"$f":"IFERROR(VLOOKUP(B53,Procesos!$Q$24:$S$79,3,FALSE),\"\")","v":""}]
[null,null,null,{"$f":"IFERROR(VLOOKUP(B54,Procesos!$Q$24:$S$79,3,FALSE),\"\")","v":""}]
[null,null,null,{"$f":"IFERROR(VLOOKUP(B55,Procesos!$Q$24:$S$79,3,FALSE),\"\")","v":""}]
[null,null,null,{"$f":"IFERROR(VLOOKUP(B56,Procesos!$Q$24:$S$79,3,FALSE),\"\")","v":""}]
[null,null,null,{"$f":"IFERROR(VLOOKUP(B57,Procesos!$Q$24:$S$79,3,FALSE),\"\")","v":""}]
[null,null,null,{"$f":"IFERROR(VLOOKUP(B58,Procesos!$Q$24:$S$79,3,FALSE),\"\")","v":""}]
[null,null,null,{"$f":"IFERROR(VLOOKUP(B59,Procesos!$Q$24:$S$79,3,FALSE),\"\")","v":""}]
[null,null,null,{"$f":"IFERROR(VLOOKUP(B60,Procesos!$Q$24:$S$79,3,FALSE),\"\")","v":""}]
[null,null,null,{"$f":"IFERROR(VLOOKUP(B61,Procesos!$Q$24:$S$79,3,FALSE),\"\")","v":""}]
[null,null,null,{"$f":"IFERROR(VLOOKUP(B62,Procesos!$Q$24:$S$79,3,FALSE),\"\")","v":""}]
[null,null,null,{"$f":"IFERROR(VLOOKUP(B63,Procesos!$Q$24:$S$79,3,FALSE),\"\")","v":""}]
[null,null,null,{"$f":"IFERROR(VLOOKUP(B64,Procesos!$Q$24:$S$79,3,FALSE),\"\")","v":""}]
[null,null,null,{"$f":"IFERROR(VLOOKUP(B65,Procesos!$Q$24:$S$79,3,FALSE),\"\")","v":""}]
[null,null,null,{"$f":"IFERROR(VLOOKUP(B66,Procesos!$Q$24:$S$79,3,FALSE),\"\")","v":""}]
[null,null,null,{"$f":"IFERROR(VLOOKUP(B67,Procesos!$Q$24:$S$79,3,FALSE),\"\")","v":""}]
[null,null,null,{"$f":"IFERROR(VLOOKUP(B68,Procesos!$Q$24:$S$79,3,FALSE),\"\")","v":""}]
[null,null,null,{"$f":"IFERROR(VLOOKUP(B69,Procesos!$Q$24:$S$79,3,FALSE),\"\")","v":""}]
[null,null,null,{"$f":"IFERROR(VLOOKUP(B70,Procesos!$Q$24:$S$79,3,FALSE),\"\")","v":""}]
[null,null,null,{"$f":"IFERROR(VLOOKUP(B71,Procesos!$Q$24:$S$79,3,FALSE),\"\")","v":""}]
[null,null,null,{"$f":"IFERROR(VLOOKUP(B72,Procesos!$Q$24:$S$79,3,FALSE),\"\")","v":""}]
[null,null,null,{"$f":"IFERROR(VLOOKUP(B73,Procesos!$Q$24:$S$79,3,FALSE),\"\")","v":""}]
[null,null,null,{"$f":"IFERROR(VLOOKUP(B74,Procesos!$Q$24:$S$79,3,FALSE),\"\")","v":""}]
[null,null,null,{"$f":"IFERROR(VLOOKUP(B75,Procesos!$Q$24:$S$79,3,FALSE),\"\")","v":""}]
[null,null,null,{"$f":"IFERROR(VLOOKUP(B76,Procesos!$Q$24:$S$79,3,FALSE),\"\")","v":""}]
[null,null,null,{"$f":"IFERROR(VLOOKUP(B77,Procesos!$Q$24:$S$79,3,FALSE),\"\")","v":""}]
[null,null,null,{"$f":"IFERROR(VLOOKUP(B78,Procesos!$Q$24:$S$79,3,FALSE),\"\")","v":""}]
[null,null,null,{"$f":"IFERROR(VLOOKUP(B79,Procesos!$Q$24:$S$79,3,FALSE),\"\")","v":""}]
[null,null,null,{"$f":"IFERROR(VLOOKUP(B80,Procesos!$Q$24:$S$79,3,FALSE),\"\")","v":""}]

{"sheet":"Auxiliar consumos","index":12,"n_rows":60,"n_cols":42,"rows_kept":60,"cut":false,"hidden":true,"merged":[[38,4,38,5],[1,0,1,12],[1,29,1,41]]}
[]
["Matriz de consumo antes de mejoras",null,null,null,null,null,null,null,null,null,null,null,null,null,null,null,null,null,null,null,null,null,null,null,null,null,null,null,null,"Matriz de consumo después de mejoras"]
["Usos/Fuentes","Energía eléctrica","Gas natural","Coque de petróleo","Fuel oil","fuente1",null,null,null,null,null,null,null,null,null,null,null,null,null,null,null,null,null,null,null,null,null,null,null,"Usos/Fuentes","Electricidad","Gas natural","Coque de petróleo","Fuel oil","fuente1"]
["o",{"$f":"IFERROR(VLOOKUP(B3,Auxiliar!$B$2:$E$80,4,FALSE),\"\")","v":"kWh"},{"$f":"IFERROR(VLOOKUP(C3,Auxiliar!$B$2:$E$80,4,FALSE),\"\")","v":"Nm3"},{"$f":"IFERROR(VLOOKUP(D3,Auxiliar!$B$2:$E$80,4,FALSE),\"\")","v":""},{"$f":"IFERROR(VLOOKUP(E3,Auxiliar!$B$2:$E$80,4,FALSE),\"\")","v":""},{"$f":"IFERROR(VLOOKUP(F3,Auxiliar!$B$2:$E$80,4,FALSE),\"\")","v":"u2"},{"$f":"IFERROR(VLOOKUP(G3,Auxiliar!$B$2:$E$80,4,FALSE),\"\")","v":""},{"$f":"IFERROR(VLOOKUP(H3,Auxiliar!$B$2:$E$80,4,FALSE),\"\")","v":""},{"$f":"IFERROR(VLOOKUP(I3,Auxiliar!$B$2:$E$80,4,FALSE),\"\")","v":""},{"$f":"IFERROR(VLOOKUP(J3,Auxiliar!$B$2:$E$80,4,FALSE),\"\")","v":""},{"$f":"IFERROR(VLOOKUP(K3,Auxiliar!$B$2:$E$80,4,FALSE),\"\")","v":""},{"$f":"IFERROR(VLOOKUP(L3,Auxiliar!$B$2:$E$80,4,FALSE),\"\")","v":""},{"$f":"IFERROR(VLOOKUP(M3,Auxiliar!$B$2:$E$80,4,FALSE),\"\")","v":""},null,null,null,null,null,null,null,null,null,null,null,null,null,null,null,null,"o",{"$f":"IFERROR(VLOOKUP(AE3,Auxiliar!$B$2:$E$80,4,FALSE),\"\")","v":""},{"$f":"IFERROR(VLOOKUP(AF3,Auxiliar!$B$2:$E$80,4,FALSE),\"\")","v":"Nm3"},{"$f":"IFERROR(VLOOKUP(AG3,Auxiliar!$B$2:$E$80,4,FALSE),\"\")","v":""},{"$f":"IFERROR(VLOOKUP(AH3,Auxiliar!$B$2:$E$80,4,FALSE),\"\")","v":""},{"$f":"IFERROR(VLOOKUP(AI3,Auxiliar!$B$2:$E$80,4,FALSE),\"\")","v":"u2"},{"$f":"IFERROR(VLOOKUP(AJ3,Auxiliar!$B$2:$E$80,4,FALSE),\"\")","v":""},{"$f":"IFERROR(VLOOKUP(AK3,Auxiliar!$B$2:$E$80,4,FALSE),\"\")","v":""},{"$f":"IFERROR(VLOOKUP(AL3,Auxiliar!$B$2:$E$80,4,FALSE),\"\")","v":""},{"$f":"IFERROR(VLOOKUP(AM3,Auxiliar!$B$2:$E$80,4,FALSE),\"\")","v":""},{"$f":"IFERROR(VLOOKUP(AN3,Auxiliar!$B$2:$E$80,4,FALSE),\"\")","v":""},{"$f":"IFERROR(VLOOKUP(AO3,Auxiliar!$B$2:$E$80,4,FALSE),\"\")","v":""},{"$f":"IFERROR(VLOOKUP(AP3,Auxiliar!$B$2:$E$80,4,FALSE),\"\")","v":""}]
["Iluminación",{"$f":"IFERROR(VLOOKUP(A5,'Auxiliar consumos 2'!$B$2:$E$13,2,FALSE),0)","v":0},{"$f":"IFERROR(VLOOKUP(A5,'Auxiliar consumos 2'!$B$16:$E$23,2,FALSE),0)","v":0},{"$f":"IFERROR(VLOOKUP(A5,'Auxiliar consumos 2'!$B$27:$E$34,2,FALSE),0)","v":0},{"$f":"IFERROR(VLOOKUP(A5,'Auxiliar consumos 2'!$B$37:$E$44,2,FALSE),0)","v":0},{"$f":"IFERROR(VLOOKUP(A5,'Auxiliar consumos 2'!$B$47:$E$54,2,FALSE),0)","v":0},{"$f":"IFERROR(VLOOKUP(A5,'Auxiliar consumos 2'!$B$57:$E$64,2,FALSE),0)","v":0},{"$f":"IFERROR(VLOOKUP(A5,'Auxiliar consumos 2'!$B$67:$E$74,2,FALSE),0)","v":0},{"$f":"IFERROR(VLOOKUP(A5,'Auxiliar consumos 2'!$B$77:$E$84,2,FALSE),0)","v":0},{"$f":"IFERROR(VLOOKUP(A5,'Auxiliar consumos 2'!$B$87:$E$94,2,FALSE),0)","v":0},{"$f":"IFERROR(VLOOKUP(A5,'Auxiliar consumos 2'!$B$97:$E$104,2,FALSE),0)","v":0},{"$f":"IFERROR(VLOOKUP(A5,'Auxiliar consumos 2'!$B$107:$E$114,2,FALSE),0)","v":0},{"$f":"IFERROR(VLOOKUP(A5,'Auxiliar consumos 2'!$B$117:$E$124,2,FALSE),0)","v":0},null,null,null,null,null,null,null,null,null,null,null,null,null,null,null,null,"Iluminación",-42233.5,{"$f":"IFERROR(VLOOKUP(AD5,'Auxiliar consumos 2'!$B$16:$E$23,2,FALSE),0)","v":0},{"$f":"IFERROR(VLOOKUP(AD5,'Auxiliar consumos 2'!$B$27:$E$34,2,FALSE),0)","v":0},{"$f":"IFERROR(VLOOKUP(AD5,'Auxiliar consumos 2'!$B$37:$E$44,2,FALSE),0)","v":0},{"$f":"IFERROR(VLOOKUP(AD5,'Auxiliar consumos 2'!$B$47:$E$54,2,FALSE),0)","v":0},{"$f":"IFERROR(VLOOKUP(AD5,'Auxiliar consumos 2'!$B$57:$E$64,2,FALSE),0)","v":0},{"$f":"IFERROR(VLOOKUP(AD5,'Auxiliar consumos 2'!$B$67:$E$74,2,FALSE),0)","v":0},{"$f":"IFERROR(VLOOKUP(AD5,'Auxiliar consumos 2'!$B$77:$E$84,2,FALSE),0)","v":0},{"$f":"IFERROR(VLOOKUP(AD5,'Auxiliar consumos 2'!$B$87:$E$94,2,FALSE),0)","v":0},{"$f":"IFERROR(VLOOKUP(AD5,'Auxiliar consumos 2'!$B$97:$E$104,2,FALSE),0)","v":0},{"$f":"IFERROR(VLOOKUP(AD5,'Auxiliar consumos 2'!$B$107:$E$114,2,FALSE),0)","v":0},{"$f":"IFERROR(VLOOKUP(AD5,'Auxiliar consumos 2'!$B$117:$E$124,2,FALSE),0)","v":0}]
["Vapor",{"$f":"IFERROR(VLOOKUP(A6,'Auxiliar consumos 2'!$B$2:$E$13,2,FALSE),0)","v":0},{"$f":"IFERROR(VLOOKUP(A6,'Auxiliar consumos 2'!$B$16:$E$23,2,FALSE),0)","v":0},{"$f":"IFERROR(VLOOKUP(A6,'Auxiliar consumos 2'!$B$27:$E$34,2,FALSE),0)","v":0},{"$f":"IFERROR(VLOOKUP(A6,'Auxiliar consumos 2'!$B$37:$E$44,2,FALSE),0)","v":0},{"$f":"IFERROR(VLOOKUP(A6,'Auxiliar consumos 2'!$B$47:$E$54,2,FALSE),0)","v":0},{"$f":"IFERROR(VLOOKUP(A6,'Auxiliar consumos 2'!$B$57:$E$64,2,FALSE),0)","v":0},{"$f":"IFERROR(VLOOKUP(A6,'Auxiliar consumos 2'!$B$67:$E$74,2,FALSE),0)","v":0},{"$f":"IFERROR(VLOOKUP(A6,'Auxiliar consumos 2'!$B$77:$E$84,2,FALSE),0)","v":0},{"$f":"IFERROR(VLOOKUP(A6,'Auxiliar consumos 2'!$B$87:$E$94,2,FALSE),0)","v":0},{"$f":"IFERROR(VLOOKUP(A6,'Auxiliar consumos 2'!$B$97:$E$104,2,FALSE),0)","v":0},{"$f":"IFERROR(VLOOKUP(A6,'Auxiliar consumos 2'!$B$107:$E$114,2,FALSE),0)","v":0},{"$f":"IFERROR(VLOOKUP(A6,'Auxiliar consumos 2'!$B$117:$E$124,2,FALSE),0)","v":0},null,null,null,null,null,null,null,null,null,null,null,null,null,null,null,null,"Vapor",{"$f":"IFERROR(VLOOKUP(AD6,'Auxiliar consumos 2'!$B$2:$E$13,2,FALSE),0)","v":0},{"$f":"IFERROR(VLOOKUP(AD6,'Auxiliar consumos 2'!$B$16:$E$23,2,FALSE),0)","v":0},{"$f":"IFERROR(VLOOKUP(AD6,'Auxiliar consumos 2'!$B$27:$E$34,2,FALSE),0)","v":0},{"$f":"IFERROR(VLOOKUP(AD6,'Auxiliar consumos 2'!$B$37:$E$44,2,FALSE),0)","v":0},{"$f":"IFERROR(VLOOKUP(AD6,'Auxiliar consumos 2'!$B$47:$E$54,2,FALSE),0)","v":0},{"$f":"IFERROR(VLOOKUP(AD6,'Auxiliar consumos 2'!$B$57:$E$64,2,FALSE),0)","v":0},{"$f":"IFERROR(VLOOKUP(AD6,'Auxiliar consumos 2'!$B$67:$E$74,2,FALSE),0)","v":0},{"$f":"IFERROR(VLOOKUP(AD6,'Auxiliar consumos 2'!$B$77:$E$84,2,FALSE),0)","v":0},{"$f":"IFERROR(VLOOKUP(AD6,'Auxiliar consumos 2'!$B$87:$E$94,2,FALSE),0)","v":0},{"$f":"IFERROR(VLOOKUP(AD6,'Auxiliar consumos 2'!$B$97:$E$104,2,FALSE),0)","v":0},{"$f":"IFERROR(VLOOKUP(AD6,'Auxiliar consumos 2'!$B$107:$E$114,2,FALSE),0)","v":0},{"$f":"IFERROR(VLOOKUP(AD6,'Auxiliar consumos 2'!$B$117:$E$124,2,FALSE),0)","v":0}]
["Calor Directo ",{"$f":"IFERROR(VLOOKUP(A7,'Auxiliar consumos 2'!$B$2:$E$13,2,FALSE),0)","v":0},{"$f":"IFERROR(VLOOKUP(A7,'Auxiliar consumos 2'!$B$16:$E$23,2,FALSE),0)","v":0},{"$f":"IFERROR(VLOOKUP(A7,'Auxiliar consumos 2'!$B$27:$E$34,2,FALSE),0)","v":0},{"$f":"IFERROR(VLOOKUP(A7,'Auxiliar consumos 2'!$B$37:$E$44,2,FALSE),0)","v":0},{"$f":"IFERROR(VLOOKUP(A7,'Auxiliar consumos 2'!$B$47:$E$54,2,FALSE),0)","v":0},{"$f":"IFERROR(VLOOKUP(A7,'Auxiliar consumos 2'!$B$57:$E$64,2,FALSE),0)","v":0},{"$f":"IFERROR(VLOOKUP(A7,'Auxiliar consumos 2'!$B$67:$E$74,2,FALSE),0)","v":0},{"$f":"IFERROR(VLOOKUP(A7,'Auxiliar consumos 2'!$B$77:$E$84,2,FALSE),0)","v":0},{"$f":"IFERROR(VLOOKUP(A7,'Auxiliar consumos 2'!$B$87:$E$94,2,FALSE),0)","v":0},{"$f":"IFERROR(VLOOKUP(A7,'Auxiliar consumos 2'!$B$97:$E$104,2,FALSE),0)","v":0},{"$f":"IFERROR(VLOOKUP(A7,'Auxiliar consumos 2'!$B$107:$E$114,2,FALSE),0)","v":0},{"$f":"IFERROR(VLOOKUP(A7,'Auxiliar consumos 2'!$B$117:$E$124,2,FALSE),0)","v":0},null,null,null,null,null,null,null,null,null,null,null,null,null,null,null,null,"Calor Directo ",{"$f":"IFERROR(VLOOKUP(AD7,'Auxiliar consumos 2'!$B$2:$E$13,2,FALSE),0)","v":0},{"$f":"IFERROR(VLOOKUP(AD7,'Auxiliar consumos 2'!$B$16:$E$23,2,FALSE),0)","v":0},{"$f":"IFERROR(VLOOKUP(AD7,'Auxiliar consumos 2'!$B$27:$E$34,2,FALSE),0)","v":0},{"$f":"IFERROR(VLOOKUP(AD7,'Auxiliar consumos 2'!$B$37:$E$44,2,FALSE),0)","v":0},{"$f":"IFERROR(VLOOKUP(AD7,'Auxiliar consumos 2'!$B$47:$E$54,2,FALSE),0)","v":0},{"$f":"IFERROR(VLOOKUP(AD7,'Auxiliar consumos 2'!$B$57:$E$64,2,FALSE),0)","v":0},{"$f":"IFERROR(VLOOKUP(AD7,'Auxiliar consumos 2'!$B$67:$E$74,2,FALSE),0)","v":0},{"$f":"IFERROR(VLOOKUP(AD7,'Auxiliar consumos 2'!$B$77:$E$84,2,FALSE),0)","v":0},{"$f":"IFERROR(VLOOKUP(AD7,'Auxiliar consumos 2'!$B$87:$E$94,2,FALSE),0)","v":0},{"$f":"IFERROR(VLOOKUP(AD7,'Auxiliar consumos 2'!$B$97:$E$104,2,FALSE),0)","v":0},{"$f":"IFERROR(VLOOKUP(AD7,'Auxiliar consumos 2'!$B$107:$E$114,2,FALSE),0)","v":0},{"$f":"IFERROR(VLOOKUP(AD7,'Auxiliar consumos 2'!$B$117:$E$124,2,FALSE),0)","v":0}]
["Fuerza Motriz (general)",{"$f":"IFERROR(VLOOKUP(A8,'Auxiliar consumos 2'!$B$2:$E$13,2,FALSE),0)","v":0},{"$f":"IFERROR(VLOOKUP(A8,'Auxiliar consumos 2'!$B$16:$E$23,2,FALSE),0)","v":0},{"$f":"IFERROR(VLOOKUP(A8,'Auxiliar consumos 2'!$B$27:$E$34,2,FALSE),0)","v":0},{"$f":"IFERROR(VLOOKUP(A8,'Auxiliar consumos 2'!$B$37:$E$44,2,FALSE),0)","v":0},{"$f":"IFERROR(VLOOKUP(A8,'Auxiliar consumos 2'!$B$47:$E$54,2,FALSE),0)","v":0},{"$f":"IFERROR(VLOOKUP(A8,'Auxiliar consumos 2'!$B$57:$E$64,2,FALSE),0)","v":0},{"$f":"IFERROR(VLOOKUP(A8,'Auxiliar consumos 2'!$B$67:$E$74,2,FALSE),0)","v":0},{"$f":"IFERROR(VLOOKUP(A8,'Auxiliar consumos 2'!$B$77:$E$84,2,FALSE),0)","v":0},{"$f":"IFERROR(VLOOKUP(A8,'Auxiliar consumos 2'!$B$87:$E$94,2,FALSE),0)","v":0},{"$f":"IFERROR(VLOOKUP(A8,'Auxiliar consumos 2'!$B$97:$E$104,2,FALSE),0)","v":0},{"$f":"IFERROR(VLOOKUP(A8,'Auxiliar consumos 2'!$B$107:$E$114,2,FALSE),0)","v":0},{"$f":"IFERROR(VLOOKUP(A8,'Auxiliar consumos 2'!$B$117:$E$124,2,FALSE),0)","v":0},null,null,null,null,null,null,null,null,null,null,null,null,null,null,null,null,"Fuerza Motriz (general)",{"$f":"IFERROR(VLOOKUP(AD8,'Auxiliar consumos 2'!$B$2:$E$13,2,FALSE),0)","v":0},{"$f":"IFERROR(VLOOKUP(AD8,'Auxiliar consumos 2'!$B$16:$E$23,2,FALSE),0)","v":0},{"$f":"IFERROR(VLOOKUP(AD8,'Auxiliar consumos 2'!$B$27:$E$34,2,FALSE),0)","v":0},{"$f":"IFERROR(VLOOKUP(AD8,'Auxiliar consumos 2'!$B$37:$E$44,2,FALSE),0)","v":0},{"$f":"IFERROR(VLOOKUP(AD8,'Auxiliar consumos 2'!$B$47:$E$54,2,FALSE),0)","v":0},{"$f":"IFERROR(VLOOKUP(AD8,'Auxiliar consumos 2'!$B$57:$E$64,2,FALSE),0)","v":0},{"$f":"IFERROR(VLOOKUP(AD8,'Auxiliar consumos 2'!$B$67:$E$74,2,FALSE),0)","v":0},{"$f":"IFERROR(VLOOKUP(AD8,'Auxiliar consumos 2'!$B$77:$E$84,2,FALSE),0)","v":0},{"$f":"IFERROR(VLOOKUP(AD8,'Auxiliar consumos 2'!$B$87:$E$94,2,FALSE),0)","v":0},{"$f":"IFERROR(VLOOKUP(AD8,'Auxiliar consumos 2'!$B$97:$E$104,2,FALSE),0)","v":0},{"$f":"IFERROR(VLOOKUP(AD8,'Auxiliar consumos 2'!$B$107:$E$114,2,FALSE),0)","v":0},{"$f":"IFERROR(VLOOKUP(AD8,'Auxiliar consumos 2'!$B$117:$E$124,2,FALSE),0)","v":0}]
["Frío de Proceso ",{"$f":"IFERROR(VLOOKUP(A9,'Auxiliar consumos 2'!$B$2:$E$13,2,FALSE),0)","v":0},{"$f":"IFERROR(VLOOKUP(A9,'Auxiliar consumos 2'!$B$16:$E$23,2,FALSE),0)","v":0},{"$f":"IFERROR(VLOOKUP(A9,'Auxiliar consumos 2'!$B$27:$E$34,2,FALSE),0)","v":0},{"$f":"IFERROR(VLOOKUP(A9,'Auxiliar consumos 2'!$B$37:$E$44,2,FALSE),0)","v":0},{"$f":"IFERROR(VLOOKUP(A9,'Auxiliar consumos 2'!$B$47:$E$54,2,FALSE),0)","v":0},{"$f":"IFERROR(VLOOKUP(A9,'Auxiliar consumos 2'!$B$57:$E$64,2,FALSE),0)","v":0},{"$f":"IFERROR(VLOOKUP(A9,'Auxiliar consumos 2'!$B$67:$E$74,2,FALSE),0)","v":0},{"$f":"IFERROR(VLOOKUP(A9,'Auxiliar consumos 2'!$B$77:$E$84,2,FALSE),0)","v":0},{"$f":"IFERROR(VLOOKUP(A9,'Auxiliar consumos 2'!$B$87:$E$94,2,FALSE),0)","v":0},{"$f":"IFERROR(VLOOKUP(A9,'Auxiliar consumos 2'!$B$97:$E$104,2,FALSE),0)","v":0},{"$f":"IFERROR(VLOOKUP(A9,'Auxiliar consumos 2'!$B$107:$E$114,2,FALSE),0)","v":0},{"$f":"IFERROR(VLOOKUP(A9,'Auxiliar consumos 2'!$B$117:$E$124,2,FALSE),0)","v":0},null,null,null,null,null,null,null,null,null,null,null,null,null,null,null,null,"Frío de Proceso ",{"$f":"IFERROR(VLOOKUP(AD9,'Auxiliar consumos 2'!$B$2:$E$13,2,FALSE),0)","v":0},{"$f":"IFERROR(VLOOKUP(AD9,'Auxiliar consumos 2'!$B$16:$E$23,2,FALSE),0)","v":0},{"$f":"IFERROR(VLOOKUP(AD9,'Auxiliar consumos 2'!$B$27:$E$34,2,FALSE),0)","v":0},{"$f":"IFERROR(VLOOKUP(AD9,'Auxiliar consumos 2'!$B$37:$E$44,2,FALSE),0)","v":0},{"$f":"IFERROR(VLOOKUP(AD9,'Auxiliar consumos 2'!$B$47:$E$54,2,FALSE),0)","v":0},{"$f":"IFERROR(VLOOKUP(AD9,'Auxiliar consumos 2'!$B$57:$E$64,2,FALSE),0)","v":0},{"$f":"IFERROR(VLOOKUP(AD9,'Auxiliar consumos 2'!$B$67:$E$74,2,FALSE),0)","v":0},{"$f":"IFERROR(VLOOKUP(AD9,'Auxiliar consumos 2'!$B$77:$E$84,2,FALSE),0)","v":0},{"$f":"IFERROR(VLOOKUP(AD9,'Auxiliar consumos 2'!$B$87:$E$94,2,FALSE),0)","v":0},{"$f":"IFERROR(VLOOKUP(AD9,'Auxiliar consumos 2'!$B$97:$E$104,2,FALSE),0)","v":0},{"$f":"IFERROR(VLOOKUP(AD9,'Auxiliar consumos 2'!$B$107:$E$114,2,FALSE),0)","v":0},{"$f":"IFERROR(VLOOKUP(AD9,'Auxiliar consumos 2'!$B$117:$E$124,2,FALSE),0)","v":0}]
["Transporte Interno",{"$f":"IFERROR(VLOOKUP(A10,'Auxiliar consumos 2'!$B$2:$E$13,2,FALSE),0)","v":0},{"$f":"IFERROR(VLOOKUP(A10,'Auxiliar consumos 2'!$B$16:$E$23,2,FALSE),0)","v":0},{"$f":"IFERROR(VLOOKUP(A10,'Auxiliar consumos 2'!$B$27:$E$34,2,FALSE),0)","v":0},{"$f":"IFERROR(VLOOKUP(A10,'Auxiliar consumos 2'!$B$37:$E$44,2,FALSE),0)","v":0},{"$f":"IFERROR(VLOOKUP(A10,'Auxiliar consumos 2'!$B$47:$E$54,2,FALSE),0)","v":0},{"$f":"IFERROR(VLOOKUP(A10,'Auxiliar consumos 2'!$B$57:$E$64,2,FALSE),0)","v":0},{"$f":"IFERROR(VLOOKUP(A10,'Auxiliar consumos 2'!$B$67:$E$74,2,FALSE),0)","v":0},{"$f":"IFERROR(VLOOKUP(A10,'Auxiliar consumos 2'!$B$77:$E$84,2,FALSE),0)","v":0},{"$f":"IFERROR(VLOOKUP(A10,'Auxiliar consumos 2'!$B$87:$E$94,2,FALSE),0)","v":0},{"$f":"IFERROR(VLOOKUP(A10,'Auxiliar consumos 2'!$B$97:$E$104,2,FALSE),0)","v":0},{"$f":"IFERROR(VLOOKUP(A10,'Auxiliar consumos 2'!$B$107:$E$114,2,FALSE),0)","v":0},{"$f":"IFERROR(VLOOKUP(A10,'Auxiliar consumos 2'!$B$117:$E$124,2,FALSE),0)","v":0},null,null,null,null,null,null,null,null,null,null,null,null,null,null,null,null,"Transporte Interno",{"$f":"IFERROR(VLOOKUP(AD10,'Auxiliar consumos 2'!$B$2:$E$13,2,FALSE),0)","v":0},{"$f":"IFERROR(VLOOKUP(AD10,'Auxiliar consumos 2'!$B$16:$E$23,2,FALSE),0)","v":0},{"$f":"IFERROR(VLOOKUP(AD10,'Auxiliar consumos 2'!$B$27:$E$34,2,FALSE),0)","v":0},{"$f":"IFERROR(VLOOKUP(AD10,'Auxiliar consumos 2'!$B$37:$E$44,2,FALSE),0)","v":0},{"$f":"IFERROR(VLOOKUP(AD10,'Auxiliar consumos 2'!$B$47:$E$54,2,FALSE),0)","v":0},{"$f":"IFERROR(VLOOKUP(AD10,'Auxiliar consumos 2'!$B$57:$E$64,2,FALSE),0)","v":0},{"$f":"IFERROR(VLOOKUP(AD10,'Auxiliar consumos 2'!$B$67:$E$74,2,FALSE),0)","v":0},{"$f":"IFERROR(VLOOKUP(AD10,'Auxiliar consumos 2'!$B$77:$E$84,2,FALSE),0)","v":0},{"$f":"IFERROR(VLOOKUP(AD10,'Auxiliar consumos 2'!$B$87:$E$94,2,FALSE),0)","v":0},{"$f":"IFERROR(VLOOKUP(AD10,'Auxiliar consumos 2'!$B$97:$E$104,2,FALSE),0)","v":0},{"$f":"IFERROR(VLOOKUP(AD10,'Auxiliar consumos 2'!$B$107:$E$114,2,FALSE),0)","v":0},{"$f":"IFERROR(VLOOKUP(AD10,'Auxiliar consumos 2'!$B$117:$E$124,2,FALSE),0)","v":0}]
["Angeles",{"$f":"IFERROR(VLOOKUP(A11,'Auxiliar consumos 2'!$B$2:$E$13,2,FALSE),0)","v":0},{"$f":"IFERROR(VLOOKUP(A11,'Auxiliar consumos 2'!$B$16:$E$23,2,FALSE),0)","v":0},{"$f":"IFERROR(VLOOKUP(A11,'Auxiliar consumos 2'!$B$27:$E$34,2,FALSE),0)","v":0},{"$f":"IFERROR(VLOOKUP(A11,'Auxiliar consumos 2'!$B$37:$E$44,2,FALSE),0)","v":0},{"$f":"IFERROR(VLOOKUP(A11,'Auxiliar consumos 2'!$B$47:$E$54,2,FALSE),0)","v":0},{"$f":"IFERROR(VLOOKUP(A11,'Auxiliar consumos 2'!$B$57:$E$64,2,FALSE),0)","v":0},{"$f":"IFERROR(VLOOKUP(A11,'Auxiliar consumos 2'!$B$67:$E$74,2,FALSE),0)","v":0},{"$f":"IFERROR(VLOOKUP(A11,'Auxiliar consumos 2'!$B$77:$E$84,2,FALSE),0)","v":0},{"$f":"IFERROR(VLOOKUP(A11,'Auxiliar consumos 2'!$B$87:$E$94,2,FALSE),0)","v":0},{"$f":"IFERROR(VLOOKUP(A11,'Auxiliar consumos 2'!$B$97:$E$104,2,FALSE),0)","v":0},{"$f":"IFERROR(VLOOKUP(A11,'Auxiliar consumos 2'!$B$107:$E$114,2,FALSE),0)","v":0},{"$f":"IFERROR(VLOOKUP(A11,'Auxiliar consumos 2'!$B$117:$E$124,2,FALSE),0)","v":0},null,null,null,null,null,null,null,null,null,null,null,null,null,null,null,null,"Angeles",{"$f":"IFERROR(VLOOKUP(AD11,'Auxiliar consumos 2'!$B$2:$E$13,2,FALSE),0)","v":0},{"$f":"IFERROR(VLOOKUP(AD11,'Auxiliar consumos 2'!$B$16:$E$23,2,FALSE),0)","v":0},{"$f":"IFERROR(VLOOKUP(AD11,'Auxiliar consumos 2'!$B$27:$E$34,2,FALSE),0)","v":0},{"$f":"IFERROR(VLOOKUP(AD11,'Auxiliar consumos 2'!$B$37:$E$44,2,FALSE),0)","v":0},{"$f":"IFERROR(VLOOKUP(AD11,'Auxiliar consumos 2'!$B$47:$E$54,2,FALSE),0)","v":0},{"$f":"IFERROR(VLOOKUP(AD11,'Auxiliar consumos 2'!$B$57:$E$64,2,FALSE),0)","v":0},{"$f":"IFERROR(VLOOKUP(AD11,'Auxiliar consumos 2'!$B$67:$E$74,2,FALSE),0)","v":0},{"$f":"IFERROR(VLOOKUP(AD11,'Auxiliar consumos 2'!$B$77:$E$84,2,FALSE),0)","v":0},{"$f":"IFERROR(VLOOKUP(AD11,'Auxiliar consumos 2'!$B$87:$E$94,2,FALSE),0)","v":0},{"$f":"IFERROR(VLOOKUP(AD11,'Auxiliar consumos 2'!$B$97:$E$104,2,FALSE),0)","v":0},{"$f":"IFERROR(VLOOKUP(AD11,'Auxiliar consumos 2'!$B$107:$E$114,2,FALSE),0)","v":0},{"$f":"IFERROR(VLOOKUP(AD11,'Auxiliar consumos 2'!$B$117:$E$124,2,FALSE),0)","v":0}]
["Hola",{"$f":"IFERROR(VLOOKUP(A12,'Auxiliar consumos 2'!$B$2:$E$13,2,FALSE),0)","v":0},{"$f":"IFERROR(VLOOKUP(A12,'Auxiliar consumos 2'!$B$16:$E$23,2,FALSE),0)","v":0},{"$f":"IFERROR(VLOOKUP(A12,'Auxiliar consumos 2'!$B$27:$E$34,2,FALSE),0)","v":0},{"$f":"IFERROR(VLOOKUP(A12,'Auxiliar consumos 2'!$B$37:$E$44,2,FALSE),0)","v":0},{"$f":"IFERROR(VLOOKUP(A12,'Auxiliar consumos 2'!$B$47:$E$54,2,FALSE),0)","v":0},{"$f":"IFERROR(VLOOKUP(A12,'Auxiliar consumos 2'!$B$57:$E$64,2,FALSE),0)","v":0},{"$f":"IFERROR(VLOOKUP(A12,'Auxiliar consumos 2'!$B$67:$E$74,2,FALSE),0)","v":0},{"$f":"IFERROR(VLOOKUP(A12,'Auxiliar consumos 2'!$B$77:$E$84,2,FALSE),0)","v":0},{"$f":"IFERROR(VLOOKUP(A12,'Auxiliar consumos 2'!$B$87:$E$94,2,FALSE),0)","v":0},{"$f":"IFERROR(VLOOKUP(A12,'Auxiliar consumos 2'!$B$97:$E$104,2,FALSE),0)","v":0},{"$f":"IFERROR(VLOOKUP(A12,'Auxiliar consumos 2'!$B$107:$E$114,2,FALSE),0)","v":0},{"$f":"IFERROR(VLOOKUP(A12,'Auxiliar consumos 2'!$B$117:$E$124,2,FALSE),0)","v":0},null,null,null,null,null,null,null,null,null,null,null,null,null,null,null,null,"Hola",{"$f":"IFERROR(VLOOKUP(AD12,'Auxiliar consumos 2'!$B$2:$E$13,2,FALSE),0)","v":0},{"$f":"IFERROR(VLOOKUP(AD12,'Auxiliar consumos 2'!$B$16:$E$23,2,FALSE),0)","v":0},{"$f":"IFERROR(VLOOKUP(AD12,'Auxiliar consumos 2'!$B$27:$E$34,2,FALSE),0)","v":0},{"$f":"IFERROR(VLOOKUP(AD12,'Auxiliar consumos 2'!$B$37:$E$44,2,FALSE),0)","v":0},{"$f":"IFERROR(VLOOKUP(AD12,'Auxiliar consumos 2'!$B$47:$E$54,2,FALSE),0)","v":0},{"$f":"IFERROR(VLOOKUP(AD12,'Auxiliar consumos 2'!$B$57:$E$64,2,FALSE),0)","v":0},{"$f":"IFERROR(VLOOKUP(AD12,'Auxiliar consumos 2'!$B$67:$E$74,2,FALSE),0)","v":0},{"$f":"IFERROR(VLOOKUP(AD12,'Auxiliar consumos 2'!$B$77:$E$84,2,FALSE),0)","v":0},{"$f":"IFERROR(VLOOKUP(AD12,'Auxiliar consumos 2'!$B$87:$E$94,2,FALSE),0)","v":0},{"$f":"IFERROR(VLOOKUP(AD12,'Auxiliar consumos 2'!$B$97:$E$104,2,FALSE),0)","v":0},{"$f":"IFERROR(VLOOKUP(AD12,'Auxiliar consumos 2'!$B$107:$E$114,2,FALSE),0)","v":0},{"$f":"IFERROR(VLOOKUP(AD12,'Auxiliar consumos 2'!$B$117:$E$124,2,FALSE),0)","v":0}]
["ROSARIO",{"$f":"IFERROR(VLOOKUP(A13,'Auxiliar consumos 2'!$B$2:$E$13,2,FALSE),0)","v":0},{"$f":"IFERROR(VLOOKUP(A13,'Auxiliar consumos 2'!$B$16:$E$23,2,FALSE),0)","v":0},{"$f":"IFERROR(VLOOKUP(A13,'Auxiliar consumos 2'!$B$27:$E$34,2,FALSE),0)","v":0},{"$f":"IFERROR(VLOOKUP(A13,'Auxiliar consumos 2'!$B$37:$E$44,2,FALSE),0)","v":0},{"$f":"IFERROR(VLOOKUP(A13,'Auxiliar consumos 2'!$B$47:$E$54,2,FALSE),0)","v":0},{"$f":"IFERROR(VLOOKUP(A13,'Auxiliar consumos 2'!$B$57:$E$64,2,FALSE),0)","v":0},{"$f":"IFERROR(VLOOKUP(A13,'Auxiliar consumos 2'!$B$67:$E$74,2,FALSE),0)","v":0},{"$f":"IFERROR(VLOOKUP(A13,'Auxiliar consumos 2'!$B$77:$E$84,2,FALSE),0)","v":0},{"$f":"IFERROR(VLOOKUP(A13,'Auxiliar consumos 2'!$B$87:$E$94,2,FALSE),0)","v":0},{"$f":"IFERROR(VLOOKUP(A13,'Auxiliar consumos 2'!$B$97:$E$104,2,FALSE),0)","v":0},{"$f":"IFERROR(VLOOKUP(A13,'Auxiliar consumos 2'!$B$107:$E$114,2,FALSE),0)","v":0},{"$f":"IFERROR(VLOOKUP(A13,'Auxiliar consumos 2'!$B$117:$E$124,2,FALSE),0)","v":0},null,null,null,null,null,null,null,null,null,null,null,null,null,null,null,null,"ROSARIO",{"$f":"IFERROR(VLOOKUP(AD13,'Auxiliar consumos 2'!$B$2:$E$13,2,FALSE),0)","v":0},{"$f":"IFERROR(VLOOKUP(AD13,'Auxiliar consumos 2'!$B$16:$E$23,2,FALSE),0)","v":0},{"$f":"IFERROR(VLOOKUP(AD13,'Auxiliar consumos 2'!$B$27:$E$34,2,FALSE),0)","v":0},{"$f":"IFERROR(VLOOKUP(AD13,'Auxiliar consumos 2'!$B$37:$E$44,2,FALSE),0)","v":0},{"$f":"IFERROR(VLOOKUP(AD13,'Auxiliar consumos 2'!$B$47:$E$54,2,FALSE),0)","v":0},{"$f":"IFERROR(VLOOKUP(AD13,'Auxiliar consumos 2'!$B$57:$E$64,2,FALSE),0)","v":0},{"$f":"IFERROR(VLOOKUP(AD13,'Auxiliar consumos 2'!$B$67:$E$74,2,FALSE),0)","v":0},{"$f":"IFERROR(VLOOKUP(AD13,'Auxiliar consumos 2'!$B$77:$E$84,2,FALSE),0)","v":0},{"$f":"IFERROR(VLOOKUP(AD13,'Auxiliar consumos 2'!$B$87:$E$94,2,FALSE),0)","v":0},{"$f":"IFERROR(VLOOKUP(AD13,'Auxiliar consumos 2'!$B$97:$E$104,2,FALSE),0)","v":0},{"$f":"IFERROR(VLOOKUP(AD13,'Auxiliar consumos 2'!$B$107:$E$114,2,FALSE),0)","v":0},{"$f":"IFERROR(VLOOKUP(AD13,'Auxiliar consumos 2'!$B$117:$E$124,2,FALSE),0)","v":0}]
["Green Day",{"$f":"IFERROR(VLOOKUP(A14,'Auxiliar consumos 2'!$B$2:$E$13,2,FALSE),0)","v":0},{"$f":"IFERROR(VLOOKUP(A14,'Auxiliar consumos 2'!$B$16:$E$23,2,FALSE),0)","v":0},{"$f":"IFERROR(VLOOKUP(A14,'Auxiliar consumos 2'!$B$27:$E$34,2,FALSE),0)","v":0},{"$f":"IFERROR(VLOOKUP(A14,'Auxiliar consumos 2'!$B$37:$E$44,2,FALSE),0)","v":0},{"$f":"IFERROR(VLOOKUP(A14,'Auxiliar consumos 2'!$B$47:$E$54,2,FALSE),0)","v":0},{"$f":"IFERROR(VLOOKUP(A14,'Auxiliar consumos 2'!$B$57:$E$64,2,FALSE),0)","v":0},{"$f":"IFERROR(VLOOKUP(A14,'Auxiliar consumos 2'!$B$67:$E$74,2,FALSE),0)","v":0},{"$f":"IFERROR(VLOOKUP(A14,'Auxiliar consumos 2'!$B$77:$E$84,2,FALSE),0)","v":0},{"$f":"IFERROR(VLOOKUP(A14,'Auxiliar consumos 2'!$B$87:$E$94,2,FALSE),0)","v":0},{"$f":"IFERROR(VLOOKUP(A14,'Auxiliar consumos 2'!$B$97:$E$104,2,FALSE),0)","v":0},{"$f":"IFERROR(VLOOKUP(A14,'Auxiliar consumos 2'!$B$107:$E$114,2,FALSE),0)","v":0},{"$f":"IFERROR(VLOOKUP(A14,'Auxiliar consumos 2'!$B$117:$E$124,2,FALSE),0)","v":0},null,null,null,null,null,null,null,null,null,null,null,null,null,null,null,null,"Green Day",{"$f":"IFERROR(VLOOKUP(AD14,'Auxiliar consumos 2'!$B$2:$E$13,2,FALSE),0)","v":0},{"$f":"IFERROR(VLOOKUP(AD14,'Auxiliar consumos 2'!$B$16:$E$23,2,FALSE),0)","v":0},{"$f":"IFERROR(VLOOKUP(AD14,'Auxiliar consumos 2'!$B$27:$E$34,2,FALSE),0)","v":0},{"$f":"IFERROR(VLOOKUP(AD14,'Auxiliar consumos 2'!$B$37:$E$44,2,FALSE),0)","v":0},{"$f":"IFERROR(VLOOKUP(AD14,'Auxiliar consumos 2'!$B$47:$E$54,2,FALSE),0)","v":0},{"$f":"IFERROR(VLOOKUP(AD14,'Auxiliar consumos 2'!$B$57:$E$64,2,FALSE),0)","v":0},{"$f":"IFERROR(VLOOKUP(AD14,'Auxiliar consumos 2'!$B$67:$E$74,2,FALSE),0)","v":0},{"$f":"IFERROR(VLOOKUP(AD14,'Auxiliar consumos 2'!$B$77:$E$84,2,FALSE),0)","v":0},{"$f":"IFERROR(VLOOKUP(AD14,'Auxiliar consumos 2'!$B$87:$E$94,2,FALSE),0)","v":0},{"$f":"IFERROR(VLOOKUP(AD14,'Auxiliar consumos 2'!$B$97:$E$104,2,FALSE),0)","v":0},{"$f":"IFERROR(VLOOKUP(AD14,'Auxiliar consumos 2'!$B$107:$E$114,2,FALSE),0)","v":0},{"$f":"IFERROR(VLOOKUP(AD14,'Auxiliar consumos 2'!$B$117:$E$124,2,FALSE),0)","v":0}]
["ACDC",{"$f":"IFERROR(VLOOKUP(A15,'Auxiliar consumos 2'!$B$2:$E$13,2,FALSE),0)","v":0},{"$f":"IFERROR(VLOOKUP(A15,'Auxiliar consumos 2'!$B$16:$E$23,2,FALSE),0)","v":0},{"$f":"IFERROR(VLOOKUP(A15,'Auxiliar consumos 2'!$B$27:$E$34,2,FALSE),0)","v":0},{"$f":"IFERROR(VLOOKUP(A15,'Auxiliar consumos 2'!$B$37:$E$44,2,FALSE),0)","v":0},{"$f":"IFERROR(VLOOKUP(A15,'Auxiliar consumos 2'!$B$47:$E$54,2,FALSE),0)","v":0},{"$f":"IFERROR(VLOOKUP(A15,'Auxiliar consumos 2'!$B$57:$E$64,2,FALSE),0)","v":0},{"$f":"IFERROR(VLOOKUP(A15,'Auxiliar consumos 2'!$B$67:$E$74,2,FALSE),0)","v":0},{"$f":"IFERROR(VLOOKUP(A15,'Auxiliar consumos 2'!$B$77:$E$84,2,FALSE),0)","v":0},{"$f":"IFERROR(VLOOKUP(A15,'Auxiliar consumos 2'!$B$87:$E$94,2,FALSE),0)","v":0},{"$f":"IFERROR(VLOOKUP(A15,'Auxiliar consumos 2'!$B$97:$E$104,2,FALSE),0)","v":0},{"$f":"IFERROR(VLOOKUP(A15,'Auxiliar consumos 2'!$B$107:$E$114,2,FALSE),0)","v":0},{"$f":"IFERROR(VLOOKUP(A15,'Auxiliar consumos 2'!$B$117:$E$124,2,FALSE),0)","v":0},null,null,null,null,null,null,null,null,null,null,null,null,null,null,null,null,"ACDC",{"$f":"IFERROR(VLOOKUP(AD15,'Auxiliar consumos 2'!$B$2:$E$13,2,FALSE),0)","v":0},{"$f":"IFERROR(VLOOKUP(AD15,'Auxiliar consumos 2'!$B$16:$E$23,2,FALSE),0)","v":0},{"$f":"IFERROR(VLOOKUP(AD15,'Auxiliar consumos 2'!$B$27:$E$34,2,FALSE),0)","v":0},{"$f":"IFERROR(VLOOKUP(AD15,'Auxiliar consumos 2'!$B$37:$E$44,2,FALSE),0)","v":0},{"$f":"IFERROR(VLOOKUP(AD15,'Auxiliar consumos 2'!$B$47:$E$54,2,FALSE),0)","v":0},{"$f":"IFERROR(VLOOKUP(AD15,'Auxiliar consumos 2'!$B$57:$E$64,2,FALSE),0)","v":0},{"$f":"IFERROR(VLOOKUP(AD15,'Auxiliar consumos 2'!$B$67:$E$74,2,FALSE),0)","v":0},{"$f":"IFERROR(VLOOKUP(AD15,'Auxiliar consumos 2'!$B$77:$E$84,2,FALSE),0)","v":0},{"$f":"IFERROR(VLOOKUP(AD15,'Auxiliar consumos 2'!$B$87:$E$94,2,FALSE),0)","v":0},{"$f":"IFERROR(VLOOKUP(AD15,'Auxiliar consumos 2'!$B$97:$E$104,2,FALSE),0)","v":0},{"$f":"IFERROR(VLOOKUP(AD15,'Auxiliar consumos 2'!$B$107:$E$114,2,FALSE),0)","v":0},{"$f":"IFERROR(VLOOKUP(AD15,'Auxiliar consumos 2'!$B$117:$E$124,2,FALSE),0)","v":0}]
["Seleccione uso de la energía",{"$f":"IFERROR(VLOOKUP(A16,'Auxiliar consumos 2'!$B$2:$E$13,2,FALSE),0)","v":0},{"$f":"IFERROR(VLOOKUP(A16,'Auxiliar consumos 2'!$B$16:$E$23,2,FALSE),0)","v":0},{"$f":"IFERROR(VLOOKUP(A16,'Auxiliar consumos 2'!$B$27:$E$34,2,FALSE),0)","v":0},{"$f":"IFERROR(VLOOKUP(A16,'Auxiliar consumos 2'!$B$37:$E$44,2,FALSE),0)","v":0},{"$f":"IFERROR(VLOOKUP(A16,'Auxiliar consumos 2'!$B$47:$E$54,2,FALSE),0)","v":0},{"$f":"IFERROR(VLOOKUP(A16,'Auxiliar consumos 2'!$B$57:$E$64,2,FALSE),0)","v":0},{"$f":"IFERROR(VLOOKUP(A16,'Auxiliar consumos 2'!$B$67:$E$74,2,FALSE),0)","v":0},{"$f":"IFERROR(VLOOKUP(A16,'Auxiliar consumos 2'!$B$77:$E$84,2,FALSE),0)","v":0},{"$f":"IFERROR(VLOOKUP(A16,'Auxiliar consumos 2'!$B$87:$E$94,2,FALSE),0)","v":0},{"$f":"IFERROR(VLOOKUP(A16,'Auxiliar consumos 2'!$B$97:$E$104,2,FALSE),0)","v":0},{"$f":"IFERROR(VLOOKUP(A16,'Auxiliar consumos 2'!$B$107:$E$114,2,FALSE),0)","v":0},{"$f":"IFERROR(VLOOKUP(A16,'Auxiliar consumos 2'!$B$117:$E$124,2,FALSE),0)","v":0},null,null,null,null,null,null,null,null,null,null,null,null,null,null,null,null,"Seleccione uso de la energía",{"$f":"IFERROR(VLOOKUP(AD16,'Auxiliar consumos 2'!$B$2:$E$13,2,FALSE),0)","v":0},{"$f":"IFERROR(VLOOKUP(AD16,'Auxiliar consumos 2'!$B$16:$E$23,2,FALSE),0)","v":0},{"$f":"IFERROR(VLOOKUP(AD16,'Auxiliar consumos 2'!$B$27:$E$34,2,FALSE),0)","v":0},{"$f":"IFERROR(VLOOKUP(AD16,'Auxiliar consumos 2'!$B$37:$E$44,2,FALSE),0)","v":0},{"$f":"IFERROR(VLOOKUP(AD16,'Auxiliar consumos 2'!$B$47:$E$54,2,FALSE),0)","v":0},{"$f":"IFERROR(VLOOKUP(AD16,'Auxiliar consumos 2'!$B$57:$E$64,2,FALSE),0)","v":0},{"$f":"IFERROR(VLOOKUP(AD16,'Auxiliar consumos 2'!$B$67:$E$74,2,FALSE),0)","v":0},{"$f":"IFERROR(VLOOKUP(AD16,'Auxiliar consumos 2'!$B$77:$E$84,2,FALSE),0)","v":0},{"$f":"IFERROR(VLOOKUP(AD16,'Auxiliar consumos 2'!$B$87:$E$94,2,FALSE),0)","v":0},{"$f":"IFERROR(VLOOKUP(AD16,'Auxiliar consumos 2'!$B$97:$E$104,2,FALSE),0)","v":0},{"$f":"IFERROR(VLOOKUP(AD16,'Auxiliar consumos 2'!$B$107:$E$114,2,FALSE),0)","v":0},{"$f":"IFERROR(VLOOKUP(AD16,'Auxiliar consumos 2'!$B$117:$E$124,2,FALSE),0)","v":0}]
[null,{"$f":"IFERROR(VLOOKUP(A17,'Auxiliar consumos 2'!$B$2:$E$13,2,FALSE),0)","v":0},{"$f":"IFERROR(VLOOKUP(A17,'Auxiliar consumos 2'!$B$16:$E$23,2,FALSE),0)","v":0},{"$f":"IFERROR(VLOOKUP(A17,'Auxiliar consumos 2'!$B$27:$E$34,2,FALSE),0)","v":0},{"$f":"IFERROR(VLOOKUP(A17,'Auxiliar consumos 2'!$B$37:$E$44,2,FALSE),0)","v":0},{"$f":"IFERROR(VLOOKUP(A17,'Auxiliar consumos 2'!$B$47:$E$54,2,FALSE),0)","v":0},{"$f":"IFERROR(VLOOKUP(A17,'Auxiliar consumos 2'!$B$57:$E$64,2,FALSE),0)","v":0},{"$f":"IFERROR(VLOOKUP(A17,'Auxiliar consumos 2'!$B$67:$E$74,2,FALSE),0)","v":0},{"$f":"IFERROR(VLOOKUP(A17,'Auxiliar consumos 2'!$B$77:$E$84,2,FALSE),0)","v":0},{"$f":"IFERROR(VLOOKUP(A17,'Auxiliar consumos 2'!$B$87:$E$94,2,FALSE),0)","v":0},{"$f":"IFERROR(VLOOKUP(A17,'Auxiliar consumos 2'!$B$97:$E$104,2,FALSE),0)","v":0},{"$f":"IFERROR(VLOOKUP(A17,'Auxiliar consumos 2'!$B$107:$E$114,2,FALSE),0)","v":0},{"$f":"IFERROR(VLOOKUP(A17,'Auxiliar consumos 2'!$B$117:$E$124,2,FALSE),0)","v":0},null,null,null,null,null,null,null,null,null,null,null,null,null,null,null,null,null,{"$f":"IFERROR(VLOOKUP(AD17,'Auxiliar consumos 2'!$B$2:$E$13,2,FALSE),0)","v":0},{"$f":"IFERROR(VLOOKUP(AD17,'Auxiliar consumos 2'!$B$16:$E$23,2,FALSE),0)","v":0},{"$f":"IFERROR(VLOOKUP(AD17,'Auxiliar consumos 2'!$B$27:$E$34,2,FALSE),0)","v":0},{"$f":"IFERROR(VLOOKUP(AD17,'Auxiliar consumos 2'!$B$37:$E$44,2,FALSE),0)","v":0},{"$f":"IFERROR(VLOOKUP(AD17,'Auxiliar consumos 2'!$B$47:$E$54,2,FALSE),0)","v":0},{"$f":"IFERROR(VLOOKUP(AD17,'Auxiliar consumos 2'!$B$57:$E$64,2,FALSE),0)","v":0},{"$f":"IFERROR(VLOOKUP(AD17,'Auxiliar consumos 2'!$B$67:$E$74,2,FALSE),0)","v":0},{"$f":"IFERROR(VLOOKUP(AD17,'Auxiliar consumos 2'!$B$77:$E$84,2,FALSE),0)","v":0},{"$f":"IFERROR(VLOOKUP(AD17,'Auxiliar consumos 2'!$B$87:$E$94,2,FALSE),0)","v":0},{"$f":"IFERROR(VLOOKUP(AD17,'Auxiliar consumos 2'!$B$97:$E$104,2,FALSE),0)","v":0},{"$f":"IFERROR(VLOOKUP(AD17,'Auxiliar consumos 2'!$B$107:$E$114,2,FALSE),0)","v":0},{"$f":"IFERROR(VLOOKUP(AD17,'Auxiliar consumos 2'!$B$117:$E$124,2,FALSE),0)","v":0}]
[null,{"$f":"IFERROR(VLOOKUP(A18,'Auxiliar consumos 2'!$B$2:$E$13,2,FALSE),0)","v":0},{"$f":"IFERROR(VLOOKUP(A18,'Auxiliar consumos 2'!$B$16:$E$23,2,FALSE),0)","v":0},{"$f":"IFERROR(VLOOKUP(A18,'Auxiliar consumos 2'!$B$27:$E$34,2,FALSE),0)","v":0},{"$f":"IFERROR(VLOOKUP(A18,'Auxiliar consumos 2'!$B$37:$E$44,2,FALSE),0)","v":0},{"$f":"IFERROR(VLOOKUP(A18,'Auxiliar consumos 2'!$B$47:$E$54,2,FALSE),0)","v":0},{"$f":"IFERROR(VLOOKUP(A18,'Auxiliar consumos 2'!$B$57:$E$64,2,FALSE),0)","v":0},{"$f":"IFERROR(VLOOKUP(A18,'Auxiliar consumos 2'!$B$67:$E$74,2,FALSE),0)","v":0},{"$f":"IFERROR(VLOOKUP(A18,'Auxiliar consumos 2'!$B$77:$E$84,2,FALSE),0)","v":0},{"$f":"IFERROR(VLOOKUP(A18,'Auxiliar consumos 2'!$B$87:$E$94,2,FALSE),0)","v":0},{"$f":"IFERROR(VLOOKUP(A18,'Auxiliar consumos 2'!$B$97:$E$104,2,FALSE),0)","v":0},{"$f":"IFERROR(VLOOKUP(A18,'Auxiliar consumos 2'!$B$107:$E$114,2,FALSE),0)","v":0},{"$f":"IFERROR(VLOOKUP(A18,'Auxiliar consumos 2'!$B$117:$E$124,2,FALSE),0)","v":0},null,null,null,null,null,null,null,null,null,null,null,null,null,null,null,null,null,{"$f":"IFERROR(VLOOKUP(AD18,'Auxiliar consumos 2'!$B$2:$E$13,2,FALSE),0)","v":0},{"$f":"IFERROR(VLOOKUP(AD18,'Auxiliar consumos 2'!$B$16:$E$23,2,FALSE),0)","v":0},{"$f":"IFERROR(VLOOKUP(AD18,'Auxiliar consumos 2'!$B$27:$E$34,2,FALSE),0)","v":0},{"$f":"IFERROR(VLOOKUP(AD18,'Auxiliar consumos 2'!$B$37:$E$44,2,FALSE),0)","v":0},{"$f":"IFERROR(VLOOKUP(AD18,'Auxiliar consumos 2'!$B$47:$E$54,2,FALSE),0)","v":0},{"$f":"IFERROR(VLOOKUP(AD18,'Auxiliar consumos 2'!$B$57:$E$64,2,FALSE),0)","v":0},{"$f":"IFERROR(VLOOKUP(AD18,'Auxiliar consumos 2'!$B$67:$E$74,2,FALSE),0)","v":0},{"$f":"IFERROR(VLOOKUP(AD18,'Auxiliar consumos 2'!$B$77:$E$84,2,FALSE),0)","v":0},{"$f":"IFERROR(VLOOKUP(AD18,'Auxiliar consumos 2'!$B$87:$E$94,2,FALSE),0)","v":0},{"$f":"IFERROR(VLOOKUP(AD18,'Auxiliar consumos 2'!$B$97:$E$104,2,FALSE),0)","v":0},{"$f":"IFERROR(VLOOKUP(AD18,'Auxiliar consumos 2'!$B$107:$E$114,2,FALSE),0)","v":0},{"$f":"IFERROR(VLOOKUP(AD18,'Auxiliar consumos 2'!$B$117:$E$124,2,FALSE),0)","v":0}]
[null,{"$f":"IFERROR(VLOOKUP(A19,'Auxiliar consumos 2'!$B$2:$E$13,2,FALSE),0)","v":0},{"$f":"IFERROR(VLOOKUP(A19,'Auxiliar consumos 2'!$B$16:$E$23,2,FALSE),0)","v":0},{"$f":"IFERROR(VLOOKUP(A19,'Auxiliar consumos 2'!$B$27:$E$34,2,FALSE),0)","v":0},{"$f":"IFERROR(VLOOKUP(A19,'Auxiliar consumos 2'!$B$37:$E$44,2,FALSE),0)","v":0},{"$f":"IFERROR(VLOOKUP(A19,'Auxiliar consumos 2'!$B$47:$E$54,2,FALSE),0)","v":0},{"$f":"IFERROR(VLOOKUP(A19,'Auxiliar consumos 2'!$B$57:$E$64,2,FALSE),0)","v":0},{"$f":"IFERROR(VLOOKUP(A19,'Auxiliar consumos 2'!$B$67:$E$74,2,FALSE),0)","v":0},{"$f":"IFERROR(VLOOKUP(A19,'Auxiliar consumos 2'!$B$77:$E$84,2,FALSE),0)","v":0},{"$f":"IFERROR(VLOOKUP(A19,'Auxiliar consumos 2'!$B$87:$E$94,2,FALSE),0)","v":0},{"$f":"IFERROR(VLOOKUP(A19,'Auxiliar consumos 2'!$B$97:$E$104,2,FALSE),0)","v":0},{"$f":"IFERROR(VLOOKUP(A19,'Auxiliar consumos 2'!$B$107:$E$114,2,FALSE),0)","v":0},{"$f":"IFERROR(VLOOKUP(A19,'Auxiliar consumos 2'!$B$117:$E$124,2,FALSE),0)","v":0},null,null,null,null,null,null,null,null,null,null,null,null,null,null,null,null,null,{"$f":"IFERROR(VLOOKUP(AD19,'Auxiliar consumos 2'!$B$2:$E$13,2,FALSE),0)","v":0},{"$f":"IFERROR(VLOOKUP(AD19,'Auxiliar consumos 2'!$B$16:$E$23,2,FALSE),0)","v":0},{"$f":"IFERROR(VLOOKUP(AD19,'Auxiliar consumos 2'!$B$27:$E$34,2,FALSE),0)","v":0},{"$f":"IFERROR(VLOOKUP(AD19,'Auxiliar consumos 2'!$B$37:$E$44,2,FALSE),0)","v":0},{"$f":"IFERROR(VLOOKUP(AD19,'Auxiliar consumos 2'!$B$47:$E$54,2,FALSE),0)","v":0},{"$f":"IFERROR(VLOOKUP(AD19,'Auxiliar consumos 2'!$B$57:$E$64,2,FALSE),0)","v":0},{"$f":"IFERROR(VLOOKUP(AD19,'Auxiliar consumos 2'!$B$67:$E$74,2,FALSE),0)","v":0},{"$f":"IFERROR(VLOOKUP(AD19,'Auxiliar consumos 2'!$B$77:$E$84,2,FALSE),0)","v":0},{"$f":"IFERROR(VLOOKUP(AD19,'Auxiliar consumos 2'!$B$87:$E$94,2,FALSE),0)","v":0},{"$f":"IFERROR(VLOOKUP(AD19,'Auxiliar consumos 2'!$B$97:$E$104,2,FALSE),0)","v":0},{"$f":"IFERROR(VLOOKUP(AD19,'Auxiliar consumos 2'!$B$107:$E$114,2,FALSE),0)","v":0},{"$f":"IFERROR(VLOOKUP(AD19,'Auxiliar consumos 2'!$B$117:$E$124,2,FALSE),0)","v":0}]
[null,{"$f":"IFERROR(VLOOKUP(A20,'Auxiliar consumos 2'!$B$2:$E$13,2,FALSE),0)","v":0},{"$f":"IFERROR(VLOOKUP(A20,'Auxiliar consumos 2'!$B$16:$E$23,2,FALSE),0)","v":0},{"$f":"IFERROR(VLOOKUP(A20,'Auxiliar consumos 2'!$B$27:$E$34,2,FALSE),0)","v":0},{"$f":"IFERROR(VLOOKUP(A20,'Auxiliar consumos 2'!$B$37:$E$44,2,FALSE),0)","v":0},{"$f":"IFERROR(VLOOKUP(A20,'Auxiliar consumos 2'!$B$47:$E$54,2,FALSE),0)","v":0},{"$f":"IFERROR(VLOOKUP(A20,'Auxiliar consumos 2'!$B$57:$E$64,2,FALSE),0)","v":0},{"$f":"IFERROR(VLOOKUP(A20,'Auxiliar consumos 2'!$B$67:$E$74,2,FALSE),0)","v":0},{"$f":"IFERROR(VLOOKUP(A20,'Auxiliar consumos 2'!$B$77:$E$84,2,FALSE),0)","v":0},{"$f":"IFERROR(VLOOKUP(A20,'Auxiliar consumos 2'!$B$87:$E$94,2,FALSE),0)","v":0},{"$f":"IFERROR(VLOOKUP(A20,'Auxiliar consumos 2'!$B$97:$E$104,2,FALSE),0)","v":0},{"$f":"IFERROR(VLOOKUP(A20,'Auxiliar consumos 2'!$B$107:$E$114,2,FALSE),0)","v":0},{"$f":"IFERROR(VLOOKUP(A20,'Auxiliar consumos 2'!$B$117:$E$124,2,FALSE),0)","v":0},null,null,null,null,null,null,null,null,null,null,null,null,null,null,null,null,null,{"$f":"IFERROR(VLOOKUP(AD20,'Auxiliar consumos 2'!$B$2:$E$13,2,FALSE),0)","v":0},{"$f":"IFERROR(VLOOKUP(AD20,'Auxiliar consumos 2'!$B$16:$E$23,2,FALSE),0)","v":0},{"$f":"IFERROR(VLOOKUP(AD20,'Auxiliar consumos 2'!$B$27:$E$34,2,FALSE),0)","v":0},{"$f":"IFERROR(VLOOKUP(AD20,'Auxiliar consumos 2'!$B$37:$E$44,2,FALSE),0)","v":0},{"$f":"IFERROR(VLOOKUP(AD20,'Auxiliar consumos 2'!$B$47:$E$54,2,FALSE),0)","v":0},{"$f":"IFERROR(VLOOKUP(AD20,'Auxiliar consumos 2'!$B$57:$E$64,2,FALSE),0)","v":0},{"$f":"IFERROR(VLOOKUP(AD20,'Auxiliar consumos 2'!$B$67:$E$74,2,FALSE),0)","v":0},{"$f":"IFERROR(VLOOKUP(AD20,'Auxiliar consumos 2'!$B$77:$E$84,2,FALSE),0)","v":0},{"$f":"IFERROR(VLOOKUP(AD20,'Auxiliar consumos 2'!$B$87:$E$94,2,FALSE),0)","v":0},{"$f":"IFERROR(VLOOKUP(AD20,'Auxiliar consumos 2'!$B$97:$E$104,2,FALSE),0)","v":0},{"$f":"IFERROR(VLOOKUP(AD20,'Auxiliar consumos 2'!$B$107:$E$114,2,FALSE),0)","v":0},{"$f":"IFERROR(VLOOKUP(AD20,'Auxiliar consumos 2'!$B$117:$E$124,2,FALSE),0)","v":0}]
[null,{"$f":"IFERROR(VLOOKUP(A21,'Auxiliar consumos 2'!$B$2:$E$13,2,FALSE),0)","v":0},{"$f":"IFERROR(VLOOKUP(A21,'Auxiliar consumos 2'!$B$16:$E$23,2,FALSE),0)","v":0},{"$f":"IFERROR(VLOOKUP(A21,'Auxiliar consumos 2'!$B$27:$E$34,2,FALSE),0)","v":0},{"$f":"IFERROR(VLOOKUP(A21,'Auxiliar consumos 2'!$B$37:$E$44,2,FALSE),0)","v":0},{"$f":"IFERROR(VLOOKUP(A21,'Auxiliar consumos 2'!$B$47:$E$54,2,FALSE),0)","v":0},{"$f":"IFERROR(VLOOKUP(A21,'Auxiliar consumos 2'!$B$57:$E$64,2,FALSE),0)","v":0},{"$f":"IFERROR(VLOOKUP(A21,'Auxiliar consumos 2'!$B$67:$E$74,2,FALSE),0)","v":0},{"$f":"IFERROR(VLOOKUP(A21,'Auxiliar consumos 2'!$B$77:$E$84,2,FALSE),0)","v":0},{"$f":"IFERROR(VLOOKUP(A21,'Auxiliar consumos 2'!$B$87:$E$94,2,FALSE),0)","v":0},{"$f":"IFERROR(VLOOKUP(A21,'Auxiliar consumos 2'!$B$97:$E$104,2,FALSE),0)","v":0},{"$f":"IFERROR(VLOOKUP(A21,'Auxiliar consumos 2'!$B$107:$E$114,2,FALSE),0)","v":0},{"$f":"IFERROR(VLOOKUP(A21,'Auxiliar consumos 2'!$B$117:$E$124,2,FALSE),0)","v":0},null,null,null,null,null,null,null,null,null,null,null,null,null,null,null,null,null,{"$f":"IFERROR(VLOOKUP(AD21,'Auxiliar consumos 2'!$B$2:$E$13,2,FALSE),0)","v":0},{"$f":"IFERROR(VLOOKUP(AD21,'Auxiliar consumos 2'!$B$16:$E$23,2,FALSE),0)","v":0},{"$f":"IFERROR(VLOOKUP(AD21,'Auxiliar consumos 2'!$B$27:$E$34,2,FALSE),0)","v":0},{"$f":"IFERROR(VLOOKUP(AD21,'Auxiliar consumos 2'!$B$37:$E$44,2,FALSE),0)","v":0},{"$f":"IFERROR(VLOOKUP(AD21,'Auxiliar consumos 2'!$B$47:$E$54,2,FALSE),0)","v":0},{"$f":"IFERROR(VLOOKUP(AD21,'Auxiliar consumos 2'!$B$57:$E$64,2,FALSE),0)","v":0},{"$f":"IFERROR(VLOOKUP(AD21,'Auxiliar consumos 2'!$B$67:$E$74,2,FALSE),0)","v":0},{"$f":"IFERROR(VLOOKUP(AD21,'Auxiliar consumos 2'!$B$77:$E$84,2,FALSE),0)","v":0},{"$f":"IFERROR(VLOOKUP(AD21,'Auxiliar consumos 2'!$B$87:$E$94,2,FALSE),0)","v":0},{"$f":"IFERROR(VLOOKUP(AD21,'Auxiliar consumos 2'!$B$97:$E$104,2,FALSE),0)","v":0},{"$f":"IFERROR(VLOOKUP(AD21,'Auxiliar consumos 2'!$B$107:$E$114,2,FALSE),0)","v":0},{"$f":"IFERROR(VLOOKUP(AD21,'Auxiliar consumos 2'!$B$117:$E$124,2,FALSE),0)","v":0}]
[null,{"$f":"IFERROR(VLOOKUP(A22,'Auxiliar consumos 2'!$B$2:$E$13,2,FALSE),0)","v":0},{"$f":"IFERROR(VLOOKUP(A22,'Auxiliar consumos 2'!$B$16:$E$23,2,FALSE),0)","v":0},{"$f":"IFERROR(VLOOKUP(A22,'Auxiliar consumos 2'!$B$27:$E$34,2,FALSE),0)","v":0},{"$f":"IFERROR(VLOOKUP(A22,'Auxiliar consumos 2'!$B$37:$E$44,2,FALSE),0)","v":0},{"$f":"IFERROR(VLOOKUP(A22,'Auxiliar consumos 2'!$B$47:$E$54,2,FALSE),0)","v":0},{"$f":"IFERROR(VLOOKUP(A22,'Auxiliar consumos 2'!$B$57:$E$64,2,FALSE),0)","v":0},{"$f":"IFERROR(VLOOKUP(A22,'Auxiliar consumos 2'!$B$67:$E$74,2,FALSE),0)","v":0},{"$f":"IFERROR(VLOOKUP(A22,'Auxiliar consumos 2'!$B$77:$E$84,2,FALSE),0)","v":0},{"$f":"IFERROR(VLOOKUP(A22,'Auxiliar consumos 2'!$B$87:$E$94,2,FALSE),0)","v":0},{"$f":"IFERROR(VLOOKUP(A22,'Auxiliar consumos 2'!$B$97:$E$104,2,FALSE),0)","v":0},{"$f":"IFERROR(VLOOKUP(A22,'Auxiliar consumos 2'!$B$107:$E$114,2,FALSE),0)","v":0},{"$f":"IFERROR(VLOOKUP(A22,'Auxiliar consumos 2'!$B$117:$E$124,2,FALSE),0)","v":0},null,null,null,null,null,null,null,null,null,null,null,null,null,null,null,null,null,{"$f":"IFERROR(VLOOKUP(AD22,'Auxiliar consumos 2'!$B$2:$E$13,2,FALSE),0)","v":0},{"$f":"IFERROR(VLOOKUP(AD22,'Auxiliar consumos 2'!$B$16:$E$23,2,FALSE),0)","v":0},{"$f":"IFERROR(VLOOKUP(AD22,'Auxiliar consumos 2'!$B$27:$E$34,2,FALSE),0)","v":0},{"$f":"IFERROR(VLOOKUP(AD22,'Auxiliar consumos 2'!$B$37:$E$44,2,FALSE),0)","v":0},{"$f":"IFERROR(VLOOKUP(AD22,'Auxiliar consumos 2'!$B$47:$E$54,2,FALSE),0)","v":0},{"$f":"IFERROR(VLOOKUP(AD22,'Auxiliar consumos 2'!$B$57:$E$64,2,FALSE),0)","v":0},{"$f":"IFERROR(VLOOKUP(AD22,'Auxiliar consumos 2'!$B$67:$E$74,2,FALSE),0)","v":0},{"$f":"IFERROR(VLOOKUP(AD22,'Auxiliar consumos 2'!$B$77:$E$84,2,FALSE),0)","v":0},{"$f":"IFERROR(VLOOKUP(AD22,'Auxiliar consumos 2'!$B$87:$E$94,2,FALSE),0)","v":0},{"$f":"IFERROR(VLOOKUP(AD22,'Auxiliar consumos 2'!$B$97:$E$104,2,FALSE),0)","v":0},{"$f":"IFERROR(VLOOKUP(AD22,'Auxiliar consumos 2'!$B$107:$E$114,2,FALSE),0)","v":0},{"$f":"IFERROR(VLOOKUP(AD22,'Auxiliar consumos 2'!$B$117:$E$124,2,FALSE),0)","v":0}]
[null,{"$f":"IFERROR(VLOOKUP(A23,'Auxiliar consumos 2'!$B$2:$E$13,2,FALSE),0)","v":0},{"$f":"IFERROR(VLOOKUP(A23,'Auxiliar consumos 2'!$B$16:$E$23,2,FALSE),0)","v":0},{"$f":"IFERROR(VLOOKUP(A23,'Auxiliar consumos 2'!$B$27:$E$34,2,FALSE),0)","v":0},{"$f":"IFERROR(VLOOKUP(A23,'Auxiliar consumos 2'!$B$37:$E$44,2,FALSE),0)","v":0},{"$f":"IFERROR(VLOOKUP(A23,'Auxiliar consumos 2'!$B$47:$E$54,2,FALSE),0)","v":0},{"$f":"IFERROR(VLOOKUP(A23,'Auxiliar consumos 2'!$B$57:$E$64,2,FALSE),0)","v":0},{"$f":"IFERROR(VLOOKUP(A23,'Auxiliar consumos 2'!$B$67:$E$74,2,FALSE),0)","v":0},{"$f":"IFERROR(VLOOKUP(A23,'Auxiliar consumos 2'!$B$77:$E$84,2,FALSE),0)","v":0},{"$f":"IFERROR(VLOOKUP(A23,'Auxiliar consumos 2'!$B$87:$E$94,2,FALSE),0)","v":0},{"$f":"IFERROR(VLOOKUP(A23,'Auxiliar consumos 2'!$B$97:$E$104,2,FALSE),0)","v":0},{"$f":"IFERROR(VLOOKUP(A23,'Auxiliar consumos 2'!$B$107:$E$114,2,FALSE),0)","v":0},{"$f":"IFERROR(VLOOKUP(A23,'Auxiliar consumos 2'!$B$117:$E$124,2,FALSE),0)","v":0},null,null,null,null,null,null,null,null,null,null,null,null,null,null,null,null,null,{"$f":"IFERROR(VLOOKUP(AD23,'Auxiliar consumos 2'!$B$2:$E$13,2,FALSE),0)","v":0},{"$f":"IFERROR(VLOOKUP(AD23,'Auxiliar consumos 2'!$B$16:$E$23,2,FALSE),0)","v":0},{"$f":"IFERROR(VLOOKUP(AD23,'Auxiliar consumos 2'!$B$27:$E$34,2,FALSE),0)","v":0},{"$f":"IFERROR(VLOOKUP(AD23,'Auxiliar consumos 2'!$B$37:$E$44,2,FALSE),0)","v":0},{"$f":"IFERROR(VLOOKUP(AD23,'Auxiliar consumos 2'!$B$47:$E$54,2,FALSE),0)","v":0},{"$f":"IFERROR(VLOOKUP(AD23,'Auxiliar consumos 2'!$B$57:$E$64,2,FALSE),0)","v":0},{"$f":"IFERROR(VLOOKUP(AD23,'Auxiliar consumos 2'!$B$67:$E$74,2,FALSE),0)","v":0},{"$f":"IFERROR(VLOOKUP(AD23,'Auxiliar consumos 2'!$B$77:$E$84,2,FALSE),0)","v":0},{"$f":"IFERROR(VLOOKUP(AD23,'Auxiliar consumos 2'!$B$87:$E$94,2,FALSE),0)","v":0},{"$f":"IFERROR(VLOOKUP(AD23,'Auxiliar consumos 2'!$B$97:$E$104,2,FALSE),0)","v":0},{"$f":"IFERROR(VLOOKUP(AD23,'Auxiliar consumos 2'!$B$107:$E$114,2,FALSE),0)","v":0},{"$f":"IFERROR(VLOOKUP(AD23,'Auxiliar consumos 2'!$B$117:$E$124,2,FALSE),0)","v":0}]
[null,{"$f":"IFERROR(VLOOKUP(A24,'Auxiliar consumos 2'!$B$2:$E$13,2,FALSE),0)","v":0},{"$f":"IFERROR(VLOOKUP(A24,'Auxiliar consumos 2'!$B$16:$E$23,2,FALSE),0)","v":0},{"$f":"IFERROR(VLOOKUP(A24,'Auxiliar consumos 2'!$B$27:$E$34,2,FALSE),0)","v":0},{"$f":"IFERROR(VLOOKUP(A24,'Auxiliar consumos 2'!$B$37:$E$44,2,FALSE),0)","v":0},{"$f":"IFERROR(VLOOKUP(A24,'Auxiliar consumos 2'!$B$47:$E$54,2,FALSE),0)","v":0},{"$f":"IFERROR(VLOOKUP(A24,'Auxiliar consumos 2'!$B$57:$E$64,2,FALSE),0)","v":0},{"$f":"IFERROR(VLOOKUP(A24,'Auxiliar consumos 2'!$B$67:$E$74,2,FALSE),0)","v":0},{"$f":"IFERROR(VLOOKUP(A24,'Auxiliar consumos 2'!$B$77:$E$84,2,FALSE),0)","v":0},{"$f":"IFERROR(VLOOKUP(A24,'Auxiliar consumos 2'!$B$87:$E$94,2,FALSE),0)","v":0},{"$f":"IFERROR(VLOOKUP(A24,'Auxiliar consumos 2'!$B$97:$E$104,2,FALSE),0)","v":0},{"$f":"IFERROR(VLOOKUP(A24,'Auxiliar consumos 2'!$B$107:$E$114,2,FALSE),0)","v":0},{"$f":"IFERROR(VLOOKUP(A24,'Auxiliar consumos 2'!$B$117:$E$124,2,FALSE),0)","v":0},null,null,null,null,null,null,null,null,null,null,null,null,null,null,null,null,null,{"$f":"IFERROR(VLOOKUP(AD24,'Auxiliar consumos 2'!$B$2:$E$13,2,FALSE),0)","v":0},{"$f":"IFERROR(VLOOKUP(AD24,'Auxiliar consumos 2'!$B$16:$E$23,2,FALSE),0)","v":0},{"$f":"IFERROR(VLOOKUP(AD24,'Auxiliar consumos 2'!$B$27:$E$34,2,FALSE),0)","v":0},{"$f":"IFERROR(VLOOKUP(AD24,'Auxiliar consumos 2'!$B$37:$E$44,2,FALSE),0)","v":0},{"$f":"IFERROR(VLOOKUP(AD24,'Auxiliar consumos 2'!$B$47:$E$54,2,FALSE),0)","v":0},{"$f":"IFERROR(VLOOKUP(AD24,'Auxiliar consumos 2'!$B$57:$E$64,2,FALSE),0)","v":0},{"$f":"IFERROR(VLOOKUP(AD24,'Auxiliar consumos 2'!$B$67:$E$74,2,FALSE),0)","v":0},{"$f":"IFERROR(VLOOKUP(AD24,'Auxiliar consumos 2'!$B$77:$E$84,2,FALSE),0)","v":0},{"$f":"IFERROR(VLOOKUP(AD24,'Auxiliar consumos 2'!$B$87:$E$94,2,FALSE),0)","v":0},{"$f":"IFERROR(VLOOKUP(AD24,'Auxiliar consumos 2'!$B$97:$E$104,2,FALSE),0)","v":0},{"$f":"IFERROR(VLOOKUP(AD24,'Auxiliar consumos 2'!$B$107:$E$114,2,FALSE),0)","v":0},{"$f":"IFERROR(VLOOKUP(AD24,'Auxiliar consumos 2'!$B$117:$E$124,2,FALSE),0)","v":0}]
[null,{"$f":"IFERROR(VLOOKUP(A25,'Auxiliar consumos 2'!$B$2:$E$13,2,FALSE),0)","v":0},{"$f":"IFERROR(VLOOKUP(A25,'Auxiliar consumos 2'!$B$16:$E$23,2,FALSE),0)","v":0},{"$f":"IFERROR(VLOOKUP(A25,'Auxiliar consumos 2'!$B$27:$E$34,2,FALSE),0)","v":0},{"$f":"IFERROR(VLOOKUP(A25,'Auxiliar consumos 2'!$B$37:$E$44,2,FALSE),0)","v":0},{"$f":"IFERROR(VLOOKUP(A25,'Auxiliar consumos 2'!$B$47:$E$54,2,FALSE),0)","v":0},{"$f":"IFERROR(VLOOKUP(A25,'Auxiliar consumos 2'!$B$57:$E$64,2,FALSE),0)","v":0},{"$f":"IFERROR(VLOOKUP(A25,'Auxiliar consumos 2'!$B$67:$E$74,2,FALSE),0)","v":0},{"$f":"IFERROR(VLOOKUP(A25,'Auxiliar consumos 2'!$B$77:$E$84,2,FALSE),0)","v":0},{"$f":"IFERROR(VLOOKUP(A25,'Auxiliar consumos 2'!$B$87:$E$94,2,FALSE),0)","v":0},{"$f":"IFERROR(VLOOKUP(A25,'Auxiliar consumos 2'!$B$97:$E$104,2,FALSE),0)","v":0},{"$f":"IFERROR(VLOOKUP(A25,'Auxiliar consumos 2'!$B$107:$E$114,2,FALSE),0)","v":0},{"$f":"IFERROR(VLOOKUP(A25,'Auxiliar consumos 2'!$B$117:$E$124,2,FALSE),0)","v":0},null,null,null,null,null,null,null,null,null,null,null,null,null,null,null,null,null,{"$f":"IFERROR(VLOOKUP(AD25,'Auxiliar consumos 2'!$B$2:$E$13,2,FALSE),0)","v":0},{"$f":"IFERROR(VLOOKUP(AD25,'Auxiliar consumos 2'!$B$16:$E$23,2,FALSE),0)","v":0},{"$f":"IFERROR(VLOOKUP(AD25,'Auxiliar consumos 2'!$B$27:$E$34,2,FALSE),0)","v":0},{"$f":"IFERROR(VLOOKUP(AD25,'Auxiliar consumos 2'!$B$37:$E$44,2,FALSE),0)","v":0},{"$f":"IFERROR(VLOOKUP(AD25,'Auxiliar consumos 2'!$B$47:$E$54,2,FALSE),0)","v":0},{"$f":"IFERROR(VLOOKUP(AD25,'Auxiliar consumos 2'!$B$57:$E$64,2,FALSE),0)","v":0},{"$f":"IFERROR(VLOOKUP(AD25,'Auxiliar consumos 2'!$B$67:$E$74,2,FALSE),0)","v":0},{"$f":"IFERROR(VLOOKUP(AD25,'Auxiliar consumos 2'!$B$77:$E$84,2,FALSE),0)","v":0},{"$f":"IFERROR(VLOOKUP(AD25,'Auxiliar consumos 2'!$B$87:$E$94,2,FALSE),0)","v":0},{"$f":"IFERROR(VLOOKUP(AD25,'Auxiliar consumos 2'!$B$97:$E$104,2,FALSE),0)","v":0},{"$f":"IFERROR(VLOOKUP(AD25,'Auxiliar consumos 2'!$B$107:$E$114,2,FALSE),0)","v":0},{"$f":"IFERROR(VLOOKUP(AD25,'Auxiliar consumos 2'!$B$117:$E$124,2,FALSE),0)","v":0}]
[null,{"$f":"IFERROR(VLOOKUP(A26,'Auxiliar consumos 2'!$B$2:$E$13,2,FALSE),0)","v":0},{"$f":"IFERROR(VLOOKUP(A26,'Auxiliar consumos 2'!$B$16:$E$23,2,FALSE),0)","v":0},{"$f":"IFERROR(VLOOKUP(A26,'Auxiliar consumos 2'!$B$27:$E$34,2,FALSE),0)","v":0},{"$f":"IFERROR(VLOOKUP(A26,'Auxiliar consumos 2'!$B$37:$E$44,2,FALSE),0)","v":0},{"$f":"IFERROR(VLOOKUP(A26,'Auxiliar consumos 2'!$B$47:$E$54,2,FALSE),0)","v":0},{"$f":"IFERROR(VLOOKUP(A26,'Auxiliar consumos 2'!$B$57:$E$64,2,FALSE),0)","v":0},{"$f":"IFERROR(VLOOKUP(A26,'Auxiliar consumos 2'!$B$67:$E$74,2,FALSE),0)","v":0},{"$f":"IFERROR(VLOOKUP(A26,'Auxiliar consumos 2'!$B$77:$E$84,2,FALSE),0)","v":0},{"$f":"IFERROR(VLOOKUP(A26,'Auxiliar consumos 2'!$B$87:$E$94,2,FALSE),0)","v":0},{"$f":"IFERROR(VLOOKUP(A26,'Auxiliar consumos 2'!$B$97:$E$104,2,FALSE),0)","v":0},{"$f":"IFERROR(VLOOKUP(A26,'Auxiliar consumos 2'!$B$107:$E$114,2,FALSE),0)","v":0},{"$f":"IFERROR(VLOOKUP(A26,'Auxiliar consumos 2'!$B$117:$E$124,2,FALSE),0)","v":0},null,null,null,null,null,null,null,null,null,null,null,null,null,null,null,null,null,{"$f":"IFERROR(VLOOKUP(AD26,'Auxiliar consumos 2'!$B$2:$E$13,2,FALSE),0)","v":0},{"$f":"IFERROR(VLOOKUP(AD26,'Auxiliar consumos 2'!$B$16:$E$23,2,FALSE),0)","v":0},{"$f":"IFERROR(VLOOKUP(AD26,'Auxiliar consumos 2'!$B$27:$E$34,2,FALSE),0)","v":0},{"$f":"IFERROR(VLOOKUP(AD26,'Auxiliar consumos 2'!$B$37:$E$44,2,FALSE),0)","v":0},{"$f":"IFERROR(VLOOKUP(AD26,'Auxiliar consumos 2'!$B$47:$E$54,2,FALSE),0)","v":0},{"$f":"IFERROR(VLOOKUP(AD26,'Auxiliar consumos 2'!$B$57:$E$64,2,FALSE),0)","v":0},{"$f":"IFERROR(VLOOKUP(AD26,'Auxiliar consumos 2'!$B$67:$E$74,2,FALSE),0)","v":0},{"$f":"IFERROR(VLOOKUP(AD26,'Auxiliar consumos 2'!$B$77:$E$84,2,FALSE),0)","v":0},{"$f":"IFERROR(VLOOKUP(AD26,'Auxiliar consumos 2'!$B$87:$E$94,2,FALSE),0)","v":0},{"$f":"IFERROR(VLOOKUP(AD26,'Auxiliar consumos 2'!$B$97:$E$104,2,FALSE),0)","v":0},{"$f":"IFERROR(VLOOKUP(AD26,'Auxiliar consumos 2'!$B$107:$E$114,2,FALSE),0)","v":0},{"$f":"IFERROR(VLOOKUP(AD26,'Auxiliar consumos 2'!$B$117:$E$124,2,FALSE),0)","v":0}]
[null,{"$f":"IFERROR(VLOOKUP(A27,'Auxiliar consumos 2'!$B$2:$E$13,2,FALSE),0)","v":0},{"$f":"IFERROR(VLOOKUP(A27,'Auxiliar consumos 2'!$B$16:$E$23,2,FALSE),0)","v":0},{"$f":"IFERROR(VLOOKUP(A27,'Auxiliar consumos 2'!$B$27:$E$34,2,FALSE),0)","v":0},{"$f":"IFERROR(VLOOKUP(A27,'Auxiliar consumos 2'!$B$37:$E$44,2,FALSE),0)","v":0},{"$f":"IFERROR(VLOOKUP(A27,'Auxiliar consumos 2'!$B$47:$E$54,2,FALSE),0)","v":0},{"$f":"IFERROR(VLOOKUP(A27,'Auxiliar consumos 2'!$B$57:$E$64,2,FALSE),0)","v":0},{"$f":"IFERROR(VLOOKUP(A27,'Auxiliar consumos 2'!$B$67:$E$74,2,FALSE),0)","v":0},{"$f":"IFERROR(VLOOKUP(A27,'Auxiliar consumos 2'!$B$77:$E$84,2,FALSE),0)","v":0},{"$f":"IFERROR(VLOOKUP(A27,'Auxiliar consumos 2'!$B$87:$E$94,2,FALSE),0)","v":0},{"$f":"IFERROR(VLOOKUP(A27,'Auxiliar consumos 2'!$B$97:$E$104,2,FALSE),0)","v":0},{"$f":"IFERROR(VLOOKUP(A27,'Auxiliar consumos 2'!$B$107:$E$114,2,FALSE),0)","v":0},{"$f":"IFERROR(VLOOKUP(A27,'Auxiliar consumos 2'!$B$117:$E$124,2,FALSE),0)","v":0},null,null,null,null,null,null,null,null,null,null,null,null,null,null,null,null,null,{"$f":"IFERROR(VLOOKUP(AD27,'Auxiliar consumos 2'!$B$2:$E$13,2,FALSE),0)","v":0},{"$f":"IFERROR(VLOOKUP(AD27,'Auxiliar consumos 2'!$B$16:$E$23,2,FALSE),0)","v":0},{"$f":"IFERROR(VLOOKUP(AD27,'Auxiliar consumos 2'!$B$27:$E$34,2,FALSE),0)","v":0},{"$f":"IFERROR(VLOOKUP(AD27,'Auxiliar consumos 2'!$B$37:$E$44,2,FALSE),0)","v":0},{"$f":"IFERROR(VLOOKUP(AD27,'Auxiliar consumos 2'!$B$47:$E$54,2,FALSE),0)","v":0},{"$f":"IFERROR(VLOOKUP(AD27,'Auxiliar consumos 2'!$B$57:$E$64,2,FALSE),0)","v":0},{"$f":"IFERROR(VLOOKUP(AD27,'Auxiliar consumos 2'!$B$67:$E$74,2,FALSE),0)","v":0},{"$f":"IFERROR(VLOOKUP(AD27,'Auxiliar consumos 2'!$B$77:$E$84,2,FALSE),0)","v":0},{"$f":"IFERROR(VLOOKUP(AD27,'Auxiliar consumos 2'!$B$87:$E$94,2,FALSE),0)","v":0},{"$f":"IFERROR(VLOOKUP(AD27,'Auxiliar consumos 2'!$B$97:$E$104,2,FALSE),0)","v":0},{"$f":"IFERROR(VLOOKUP(AD27,'Auxiliar consumos 2'!$B$107:$E$114,2,FALSE),0)","v":0},{"$f":"IFERROR(VLOOKUP(AD27,'Auxiliar consumos 2'!$B$117:$E$124,2,FALSE),0)","v":0}]
[null,{"$f":"IFERROR(VLOOKUP(A28,'Auxiliar consumos 2'!$B$2:$E$13,2,FALSE),0)","v":0},{"$f":"IFERROR(VLOOKUP(A28,'Auxiliar consumos 2'!$B$16:$E$23,2,FALSE),0)","v":0},{"$f":"IFERROR(VLOOKUP(A28,'Auxiliar consumos 2'!$B$27:$E$34,2,FALSE),0)","v":0},{"$f":"IFERROR(VLOOKUP(A28,'Auxiliar consumos 2'!$B$37:$E$44,2,FALSE),0)","v":0},{"$f":"IFERROR(VLOOKUP(A28,'Auxiliar consumos 2'!$B$47:$E$54,2,FALSE),0)","v":0},{"$f":"IFERROR(VLOOKUP(A28,'Auxiliar consumos 2'!$B$57:$E$64,2,FALSE),0)","v":0},{"$f":"IFERROR(VLOOKUP(A28,'Auxiliar consumos 2'!$B$67:$E$74,2,FALSE),0)","v":0},{"$f":"IFERROR(VLOOKUP(A28,'Auxiliar consumos 2'!$B$77:$E$84,2,FALSE),0)","v":0},{"$f":"IFERROR(VLOOKUP(A28,'Auxiliar consumos 2'!$B$87:$E$94,2,FALSE),0)","v":0},{"$f":"IFERROR(VLOOKUP(A28,'Auxiliar consumos 2'!$B$97:$E$104,2,FALSE),0)","v":0},{"$f":"IFERROR(VLOOKUP(A28,'Auxiliar consumos 2'!$B$107:$E$114,2,FALSE),0)","v":0},{"$f":"IFERROR(VLOOKUP(A28,'Auxiliar consumos 2'!$B$117:$E$124,2,FALSE),0)","v":0},null,null,null,null,null,null,null,null,null,null,null,null,null,null,null,null,null,{"$f":"IFERROR(VLOOKUP(AD28,'Auxiliar consumos 2'!$B$2:$E$13,2,FALSE),0)","v":0},{"$f":"IFERROR(VLOOKUP(AD28,'Auxiliar consumos 2'!$B$16:$E$23,2,FALSE),0)","v":0},{"$f":"IFERROR(VLOOKUP(AD28,'Auxiliar consumos 2'!$B$27:$E$34,2,FALSE),0)","v":0},{"$f":"IFERROR(VLOOKUP(AD28,'Auxiliar consumos 2'!$B$37:$E$44,2,FALSE),0)","v":0},{"$f":"IFERROR(VLOOKUP(AD28,'Auxiliar consumos 2'!$B$47:$E$54,2,FALSE),0)","v":0},{"$f":"IFERROR(VLOOKUP(AD28,'Auxiliar consumos 2'!$B$57:$E$64,2,FALSE),0)","v":0},{"$f":"IFERROR(VLOOKUP(AD28,'Auxiliar consumos 2'!$B$67:$E$74,2,FALSE),0)","v":0},{"$f":"IFERROR(VLOOKUP(AD28,'Auxiliar consumos 2'!$B$77:$E$84,2,FALSE),0)","v":0},{"$f":"IFERROR(VLOOKUP(AD28,'Auxiliar consumos 2'!$B$87:$E$94,2,FALSE),0)","v":0},{"$f":"IFERROR(VLOOKUP(AD28,'Auxiliar consumos 2'!$B$97:$E$104,2,FALSE),0)","v":0},{"$f":"IFERROR(VLOOKUP(AD28,'Auxiliar consumos 2'!$B$107:$E$114,2,FALSE),0)","v":0},{"$f":"IFERROR(VLOOKUP(AD28,'Auxiliar consumos 2'!$B$117:$E$124,2,FALSE),0)","v":0}]
[null,{"$f":"IFERROR(VLOOKUP(A29,'Auxiliar consumos 2'!$B$2:$E$13,2,FALSE),0)","v":0},{"$f":"IFERROR(VLOOKUP(A29,'Auxiliar consumos 2'!$B$16:$E$23,2,FALSE),0)","v":0},{"$f":"IFERROR(VLOOKUP(A29,'Auxiliar consumos 2'!$B$27:$E$34,2,FALSE),0)","v":0},{"$f":"IFERROR(VLOOKUP(A29,'Auxiliar consumos 2'!$B$37:$E$44,2,FALSE),0)","v":0},{"$f":"IFERROR(VLOOKUP(A29,'Auxiliar consumos 2'!$B$47:$E$54,2,FALSE),0)","v":0},{"$f":"IFERROR(VLOOKUP(A29,'Auxiliar consumos 2'!$B$57:$E$64,2,FALSE),0)","v":0},{"$f":"IFERROR(VLOOKUP(A29,'Auxiliar consumos 2'!$B$67:$E$74,2,FALSE),0)","v":0},{"$f":"IFERROR(VLOOKUP(A29,'Auxiliar consumos 2'!$B$77:$E$84,2,FALSE),0)","v":0},{"$f":"IFERROR(VLOOKUP(A29,'Auxiliar consumos 2'!$B$87:$E$94,2,FALSE),0)","v":0},{"$f":"IFERROR(VLOOKUP(A29,'Auxiliar consumos 2'!$B$97:$E$104,2,FALSE),0)","v":0},{"$f":"IFERROR(VLOOKUP(A29,'Auxiliar consumos 2'!$B$107:$E$114,2,FALSE),0)","v":0},{"$f":"IFERROR(VLOOKUP(A29,'Auxiliar consumos 2'!$B$117:$E$124,2,FALSE),0)","v":0},null,null,null,null,null,null,null,null,null,null,null,null,null,null,null,null,null,{"$f":"IFERROR(VLOOKUP(AD29,'Auxiliar consumos 2'!$B$2:$E$13,2,FALSE),0)","v":0},{"$f":"IFERROR(VLOOKUP(AD29,'Auxiliar consumos 2'!$B$16:$E$23,2,FALSE),0)","v":0},{"$f":"IFERROR(VLOOKUP(AD29,'Auxiliar consumos 2'!$B$27:$E$34,2,FALSE),0)","v":0},{"$f":"IFERROR(VLOOKUP(AD29,'Auxiliar consumos 2'!$B$37:$E$44,2,FALSE),0)","v":0},{"$f":"IFERROR(VLOOKUP(AD29,'Auxiliar consumos 2'!$B$47:$E$54,2,FALSE),0)","v":0},{"$f":"IFERROR(VLOOKUP(AD29,'Auxiliar consumos 2'!$B$57:$E$64,2,FALSE),0)","v":0},{"$f":"IFERROR(VLOOKUP(AD29,'Auxiliar consumos 2'!$B$67:$E$74,2,FALSE),0)","v":0},{"$f":"IFERROR(VLOOKUP(AD29,'Auxiliar consumos 2'!$B$77:$E$84,2,FALSE),0)","v":0},{"$f":"IFERROR(VLOOKUP(AD29,'Auxiliar consumos 2'!$B$87:$E$94,2,FALSE),0)","v":0},{"$f":"IFERROR(VLOOKUP(AD29,'Auxiliar consumos 2'!$B$97:$E$104,2,FALSE),0)","v":0},{"$f":"IFERROR(VLOOKUP(AD29,'Auxiliar consumos 2'!$B$107:$E$114,2,FALSE),0)","v":0},{"$f":"IFERROR(VLOOKUP(AD29,'Auxiliar consumos 2'!$B$117:$E$124,2,FALSE),0)","v":0}]
[null,{"$f":"IFERROR(VLOOKUP(A30,'Auxiliar consumos 2'!$B$2:$E$13,2,FALSE),0)","v":0},{"$f":"IFERROR(VLOOKUP(A30,'Auxiliar consumos 2'!$B$16:$E$23,2,FALSE),0)","v":0},{"$f":"IFERROR(VLOOKUP(A30,'Auxiliar consumos 2'!$B$27:$E$34,2,FALSE),0)","v":0},{"$f":"IFERROR(VLOOKUP(A30,'Auxiliar consumos 2'!$B$37:$E$44,2,FALSE),0)","v":0},{"$f":"IFERROR(VLOOKUP(A30,'Auxiliar consumos 2'!$B$47:$E$54,2,FALSE),0)","v":0},{"$f":"IFERROR(VLOOKUP(A30,'Auxiliar consumos 2'!$B$57:$E$64,2,FALSE),0)","v":0},{"$f":"IFERROR(VLOOKUP(A30,'Auxiliar consumos 2'!$B$67:$E$74,2,FALSE),0)","v":0},{"$f":"IFERROR(VLOOKUP(A30,'Auxiliar consumos 2'!$B$77:$E$84,2,FALSE),0)","v":0},{"$f":"IFERROR(VLOOKUP(A30,'Auxiliar consumos 2'!$B$87:$E$94,2,FALSE),0)","v":0},{"$f":"IFERROR(VLOOKUP(A30,'Auxiliar consumos 2'!$B$97:$E$104,2,FALSE),0)","v":0},{"$f":"IFERROR(VLOOKUP(A30,'Auxiliar consumos 2'!$B$107:$E$114,2,FALSE),0)","v":0},{"$f":"IFERROR(VLOOKUP(A30,'Auxiliar consumos 2'!$B$117:$E$124,2,FALSE),0)","v":0},null,null,null,null,null,null,null,null,null,null,null,null,null,null,null,null,null,{"$f":"IFERROR(VLOOKUP(AD30,'Auxiliar consumos 2'!$B$2:$E$13,2,FALSE),0)","v":0},{"$f":"IFERROR(VLOOKUP(AD30,'Auxiliar consumos 2'!$B$16:$E$23,2,FALSE),0)","v":0},{"$f":"IFERROR(VLOOKUP(AD30,'Auxiliar consumos 2'!$B$27:$E$34,2,FALSE),0)","v":0},{"$f":"IFERROR(VLOOKUP(AD30,'Auxiliar consumos 2'!$B$37:$E$44,2,FALSE),0)","v":0},{"$f":"IFERROR(VLOOKUP(AD30,'Auxiliar consumos 2'!$B$47:$E$54,2,FALSE),0)","v":0},{"$f":"IFERROR(VLOOKUP(AD30,'Auxiliar consumos 2'!$B$57:$E$64,2,FALSE),0)","v":0},{"$f":"IFERROR(VLOOKUP(AD30,'Auxiliar consumos 2'!$B$67:$E$74,2,FALSE),0)","v":0},{"$f":"IFERROR(VLOOKUP(AD30,'Auxiliar consumos 2'!$B$77:$E$84,2,FALSE),0)","v":0},{"$f":"IFERROR(VLOOKUP(AD30,'Auxiliar consumos 2'!$B$87:$E$94,2,FALSE),0)","v":0},{"$f":"IFERROR(VLOOKUP(AD30,'Auxiliar consumos 2'!$B$97:$E$104,2,FALSE),0)","v":0},{"$f":"IFERROR(VLOOKUP(AD30,'Auxiliar consumos 2'!$B$107:$E$114,2,FALSE),0)","v":0},{"$f":"IFERROR(VLOOKUP(AD30,'Auxiliar consumos 2'!$B$117:$E$124,2,FALSE),0)","v":0}]
[null,{"$f":"IFERROR(VLOOKUP(A31,'Auxiliar consumos 2'!$B$2:$E$13,2,FALSE),0)","v":0},{"$f":"IFERROR(VLOOKUP(A31,'Auxiliar consumos 2'!$B$16:$E$23,2,FALSE),0)","v":0},{"$f":"IFERROR(VLOOKUP(A31,'Auxiliar consumos 2'!$B$27:$E$34,2,FALSE),0)","v":0},{"$f":"IFERROR(VLOOKUP(A31,'Auxiliar consumos 2'!$B$37:$E$44,2,FALSE),0)","v":0},{"$f":"IFERROR(VLOOKUP(A31,'Auxiliar consumos 2'!$B$47:$E$54,2,FALSE),0)","v":0},{"$f":"IFERROR(VLOOKUP(A31,'Auxiliar consumos 2'!$B$57:$E$64,2,FALSE),0)","v":0},{"$f":"IFERROR(VLOOKUP(A31,'Auxiliar consumos 2'!$B$67:$E$74,2,FALSE),0)","v":0},{"$f":"IFERROR(VLOOKUP(A31,'Auxiliar consumos 2'!$B$77:$E$84,2,FALSE),0)","v":0},{"$f":"IFERROR(VLOOKUP(A31,'Auxiliar consumos 2'!$B$87:$E$94,2,FALSE),0)","v":0},{"$f":"IFERROR(VLOOKUP(A31,'Auxiliar consumos 2'!$B$97:$E$104,2,FALSE),0)","v":0},{"$f":"IFERROR(VLOOKUP(A31,'Auxiliar consumos 2'!$B$107:$E$114,2,FALSE),0)","v":0},{"$f":"IFERROR(VLOOKUP(A31,'Auxiliar consumos 2'!$B$117:$E$124,2,FALSE),0)","v":0},null,null,null,null,null,null,null,null,null,null,null,null,null,null,null,null,null,{"$f":"IFERROR(VLOOKUP(AD31,'Auxiliar consumos 2'!$B$2:$E$13,2,FALSE),0)","v":0},{"$f":"IFERROR(VLOOKUP(AD31,'Auxiliar consumos 2'!$B$16:$E$23,2,FALSE),0)","v":0},{"$f":"IFERROR(VLOOKUP(AD31,'Auxiliar consumos 2'!$B$27:$E$34,2,FALSE),0)","v":0},{"$f":"IFERROR(VLOOKUP(AD31,'Auxiliar consumos 2'!$B$37:$E$44,2,FALSE),0)","v":0},{"$f":"IFERROR(VLOOKUP(AD31,'Auxiliar consumos 2'!$B$47:$E$54,2,FALSE),0)","v":0},{"$f":"IFERROR(VLOOKUP(AD31,'Auxiliar consumos 2'!$B$57:$E$64,2,FALSE),0)","v":0},{"$f":"IFERROR(VLOOKUP(AD31,'Auxiliar consumos 2'!$B$67:$E$74,2,FALSE),0)","v":0},{"$f":"IFERROR(VLOOKUP(AD31,'Auxiliar consumos 2'!$B$77:$E$84,2,FALSE),0)","v":0},{"$f":"IFERROR(VLOOKUP(AD31,'Auxiliar consumos 2'!$B$87:$E$94,2,FALSE),0)","v":0},{"$f":"IFERROR(VLOOKUP(AD31,'Auxiliar consumos 2'!$B$97:$E$104,2,FALSE),0)","v":0},{"$f":"IFERROR(VLOOKUP(AD31,'Auxiliar consumos 2'!$B$107:$E$114,2,FALSE),0)","v":0},{"$f":"IFERROR(VLOOKUP(AD31,'Auxiliar consumos 2'!$B$117:$E$124,2,FALSE),0)","v":0}]
[null,{"$f":"IFERROR(VLOOKUP(A32,'Auxiliar consumos 2'!$B$2:$E$13,2,FALSE),0)","v":0},{"$f":"IFERROR(VLOOKUP(A32,'Auxiliar consumos 2'!$B$16:$E$23,2,FALSE),0)","v":0},{"$f":"IFERROR(VLOOKUP(A32,'Auxiliar consumos 2'!$B$27:$E$34,2,FALSE),0)","v":0},{"$f":"IFERROR(VLOOKUP(A32,'Auxiliar consumos 2'!$B$37:$E$44,2,FALSE),0)","v":0},{"$f":"IFERROR(VLOOKUP(A32,'Auxiliar consumos 2'!$B$47:$E$54,2,FALSE),0)","v":0},{"$f":"IFERROR(VLOOKUP(A32,'Auxiliar consumos 2'!$B$57:$E$64,2,FALSE),0)","v":0},{"$f":"IFERROR(VLOOKUP(A32,'Auxiliar consumos 2'!$B$67:$E$74,2,FALSE),0)","v":0},{"$f":"IFERROR(VLOOKUP(A32,'Auxiliar consumos 2'!$B$77:$E$84,2,FALSE),0)","v":0},{"$f":"IFERROR(VLOOKUP(A32,'Auxiliar consumos 2'!$B$87:$E$94,2,FALSE),0)","v":0},{"$f":"IFERROR(VLOOKUP(A32,'Auxiliar consumos 2'!$B$97:$E$104,2,FALSE),0)","v":0},{"$f":"IFERROR(VLOOKUP(A32,'Auxiliar consumos 2'!$B$107:$E$114,2,FALSE),0)","v":0},{"$f":"IFERROR(VLOOKUP(A32,'Auxiliar consumos 2'!$B$117:$E$124,2,FALSE),0)","v":0},null,null,null,null,null,null,null,null,null,null,null,null,null,null,null,null,null,{"$f":"IFERROR(VLOOKUP(AD32,'Auxiliar consumos 2'!$B$2:$E$13,2,FALSE),0)","v":0},{"$f":"IFERROR(VLOOKUP(AD32,'Auxiliar consumos 2'!$B$16:$E$23,2,FALSE),0)","v":0},{"$f":"IFERROR(VLOOKUP(AD32,'Auxiliar consumos 2'!$B$27:$E$34,2,FALSE),0)","v":0},{"$f":"IFERROR(VLOOKUP(AD32,'Auxiliar consumos 2'!$B$37:$E$44,2,FALSE),0)","v":0},{"$f":"IFERROR(VLOOKUP(AD32,'Auxiliar consumos 2'!$B$47:$E$54,2,FALSE),0)","v":0},{"$f":"IFERROR(VLOOKUP(AD32,'Auxiliar consumos 2'!$B$57:$E$64,2,FALSE),0)","v":0},{"$f":"IFERROR(VLOOKUP(AD32,'Auxiliar consumos 2'!$B$67:$E$74,2,FALSE),0)","v":0},{"$f":"IFERROR(VLOOKUP(AD32,'Auxiliar consumos 2'!$B$77:$E$84,2,FALSE),0)","v":0},{"$f":"IFERROR(VLOOKUP(AD32,'Auxiliar consumos 2'!$B$87:$E$94,2,FALSE),0)","v":0},{"$f":"IFERROR(VLOOKUP(AD32,'Auxiliar consumos 2'!$B$97:$E$104,2,FALSE),0)","v":0},{"$f":"IFERROR(VLOOKUP(AD32,'Auxiliar consumos 2'!$B$107:$E$114,2,FALSE),0)","v":0},{"$f":"IFERROR(VLOOKUP(AD32,'Auxiliar consumos 2'!$B$117:$E$124,2,FALSE),0)","v":0}]
[null,{"$f":"IFERROR(VLOOKUP(A33,'Auxiliar consumos 2'!$B$2:$E$13,2,FALSE),0)","v":0},{"$f":"IFERROR(VLOOKUP(A33,'Auxiliar consumos 2'!$B$16:$E$23,2,FALSE),0)","v":0},{"$f":"IFERROR(VLOOKUP(A33,'Auxiliar consumos 2'!$B$27:$E$34,2,FALSE),0)","v":0},{"$f":"IFERROR(VLOOKUP(A33,'Auxiliar consumos 2'!$B$37:$E$44,2,FALSE),0)","v":0},{"$f":"IFERROR(VLOOKUP(A33,'Auxiliar consumos 2'!$B$47:$E$54,2,FALSE),0)","v":0},{"$f":"IFERROR(VLOOKUP(A33,'Auxiliar consumos 2'!$B$57:$E$64,2,FALSE),0)","v":0},{"$f":"IFERROR(VLOOKUP(A33,'Auxiliar consumos 2'!$B$67:$E$74,2,FALSE),0)","v":0},{"$f":"IFERROR(VLOOKUP(A33,'Auxiliar consumos 2'!$B$77:$E$84,2,FALSE),0)","v":0},{"$f":"IFERROR(VLOOKUP(A33,'Auxiliar consumos 2'!$B$87:$E$94,2,FALSE),0)","v":0},{"$f":"IFERROR(VLOOKUP(A33,'Auxiliar consumos 2'!$B$97:$E$104,2,FALSE),0)","v":0},{"$f":"IFERROR(VLOOKUP(A33,'Auxiliar consumos 2'!$B$107:$E$114,2,FALSE),0)","v":0},{"$f":"IFERROR(VLOOKUP(A33,'Auxiliar consumos 2'!$B$117:$E$124,2,FALSE),0)","v":0},null,null,null,null,null,null,null,null,null,null,null,null,null,null,null,null,null,{"$f":"IFERROR(VLOOKUP(AD33,'Auxiliar consumos 2'!$B$2:$E$13,2,FALSE),0)","v":0},{"$f":"IFERROR(VLOOKUP(AD33,'Auxiliar consumos 2'!$B$16:$E$23,2,FALSE),0)","v":0},{"$f":"IFERROR(VLOOKUP(AD33,'Auxiliar consumos 2'!$B$27:$E$34,2,FALSE),0)","v":0},{"$f":"IFERROR(VLOOKUP(AD33,'Auxiliar consumos 2'!$B$37:$E$44,2,FALSE),0)","v":0},{"$f":"IFERROR(VLOOKUP(AD33,'Auxiliar consumos 2'!$B$47:$E$54,2,FALSE),0)","v":0},{"$f":"IFERROR(VLOOKUP(AD33,'Auxiliar consumos 2'!$B$57:$E$64,2,FALSE),0)","v":0},{"$f":"IFERROR(VLOOKUP(AD33,'Auxiliar consumos 2'!$B$67:$E$74,2,FALSE),0)","v":0},{"$f":"IFERROR(VLOOKUP(AD33,'Auxiliar consumos 2'!$B$77:$E$84,2,FALSE),0)","v":0},{"$f":"IFERROR(VLOOKUP(AD33,'Auxiliar consumos 2'!$B$87:$E$94,2,FALSE),0)","v":0},{"$f":"IFERROR(VLOOKUP(AD33,'Auxiliar consumos 2'!$B$97:$E$104,2,FALSE),0)","v":0},{"$f":"IFERROR(VLOOKUP(AD33,'Auxiliar consumos 2'!$B$107:$E$114,2,FALSE),0)","v":0},{"$f":"IFERROR(VLOOKUP(AD33,'Auxiliar consumos 2'!$B$117:$E$124,2,FALSE),0)","v":0}]
[null,{"$f":"IFERROR(VLOOKUP(A34,'Auxiliar consumos 2'!$B$2:$E$13,2,FALSE),0)","v":0},{"$f":"IFERROR(VLOOKUP(A34,'Auxiliar consumos 2'!$B$16:$E$23,2,FALSE),0)","v":0},{"$f":"IFERROR(VLOOKUP(A34,'Auxiliar consumos 2'!$B$27:$E$34,2,FALSE),0)","v":0},{"$f":"IFERROR(VLOOKUP(A34,'Auxiliar consumos 2'!$B$37:$E$44,2,FALSE),0)","v":0},{"$f":"IFERROR(VLOOKUP(A34,'Auxiliar consumos 2'!$B$47:$E$54,2,FALSE),0)","v":0},{"$f":"IFERROR(VLOOKUP(A34,'Auxiliar consumos 2'!$B$57:$E$64,2,FALSE),0)","v":0},{"$f":"IFERROR(VLOOKUP(A34,'Auxiliar consumos 2'!$B$67:$E$74,2,FALSE),0)","v":0},{"$f":"IFERROR(VLOOKUP(A34,'Auxiliar consumos 2'!$B$77:$E$84,2,FALSE),0)","v":0},{"$f":"IFERROR(VLOOKUP(A34,'Auxiliar consumos 2'!$B$87:$E$94,2,FALSE),0)","v":0},{"$f":"IFERROR(VLOOKUP(A34,'Auxiliar consumos 2'!$B$97:$E$104,2,FALSE),0)","v":0},{"$f":"IFERROR(VLOOKUP(A34,'Auxiliar consumos 2'!$B$107:$E$114,2,FALSE),0)","v":0},{"$f":"IFERROR(VLOOKUP(A34,'Auxiliar consumos 2'!$B$117:$E$124,2,FALSE),0)","v":0},null,null,null,null,null,null,null,null,null,null,null,null,null,null,null,null,null,{"$f":"IFERROR(VLOOKUP(AD34,'Auxiliar consumos 2'!$B$2:$E$13,2,FALSE),0)","v":0},{"$f":"IFERROR(VLOOKUP(AD34,'Auxiliar consumos 2'!$B$16:$E$23,2,FALSE),0)","v":0},{"$f":"IFERROR(VLOOKUP(AD34,'Auxiliar consumos 2'!$B$27:$E$34,2,FALSE),0)","v":0},{"$f":"IFERROR(VLOOKUP(AD34,'Auxiliar consumos 2'!$B$37:$E$44,2,FALSE),0)","v":0},{"$f":"IFERROR(VLOOKUP(AD34,'Auxiliar consumos 2'!$B$47:$E$54,2,FALSE),0)","v":0},{"$f":"IFERROR(VLOOKUP(AD34,'Auxiliar consumos 2'!$B$57:$E$64,2,FALSE),0)","v":0},{"$f":"IFERROR(VLOOKUP(AD34,'Auxiliar consumos 2'!$B$67:$E$74,2,FALSE),0)","v":0},{"$f":"IFERROR(VLOOKUP(AD34,'Auxiliar consumos 2'!$B$77:$E$84,2,FALSE),0)","v":0},{"$f":"IFERROR(VLOOKUP(AD34,'Auxiliar consumos 2'!$B$87:$E$94,2,FALSE),0)","v":0},{"$f":"IFERROR(VLOOKUP(AD34,'Auxiliar consumos 2'!$B$97:$E$104,2,FALSE),0)","v":0},{"$f":"IFERROR(VLOOKUP(AD34,'Auxiliar consumos 2'!$B$107:$E$114,2,FALSE),0)","v":0},{"$f":"IFERROR(VLOOKUP(AD34,'Auxiliar consumos 2'!$B$117:$E$124,2,FALSE),0)","v":0}]
[null,{"$f":"IFERROR(VLOOKUP(A35,'Auxiliar consumos 2'!$B$2:$E$13,2,FALSE),0)","v":0},{"$f":"IFERROR(VLOOKUP(A35,'Auxiliar consumos 2'!$B$16:$E$23,2,FALSE),0)","v":0},{"$f":"IFERROR(VLOOKUP(A35,'Auxiliar consumos 2'!$B$27:$E$34,2,FALSE),0)","v":0},{"$f":"IFERROR(VLOOKUP(A35,'Auxiliar consumos 2'!$B$37:$E$44,2,FALSE),0)","v":0},{"$f":"IFERROR(VLOOKUP(A35,'Auxiliar consumos 2'!$B$47:$E$54,2,FALSE),0)","v":0},{"$f":"IFERROR(VLOOKUP(A35,'Auxiliar consumos 2'!$B$57:$E$64,2,FALSE),0)","v":0},{"$f":"IFERROR(VLOOKUP(A35,'Auxiliar consumos 2'!$B$67:$E$74,2,FALSE),0)","v":0},{"$f":"IFERROR(VLOOKUP(A35,'Auxiliar consumos 2'!$B$77:$E$84,2,FALSE),0)","v":0},{"$f":"IFERROR(VLOOKUP(A35,'Auxiliar consumos 2'!$B$87:$E$94,2,FALSE),0)","v":0},{"$f":"IFERROR(VLOOKUP(A35,'Auxiliar consumos 2'!$B$97:$E$104,2,FALSE),0)","v":0},{"$f":"IFERROR(VLOOKUP(A35,'Auxiliar consumos 2'!$B$107:$E$114,2,FALSE),0)","v":0},{"$f":"IFERROR(VLOOKUP(A35,'Auxiliar consumos 2'!$B$117:$E$124,2,FALSE),0)","v":0},null,null,null,null,null,null,null,null,null,null,null,null,null,null,null,null,null,{"$f":"IFERROR(VLOOKUP(AD35,'Auxiliar consumos 2'!$B$2:$E$13,2,FALSE),0)","v":0},{"$f":"IFERROR(VLOOKUP(AD35,'Auxiliar consumos 2'!$B$16:$E$23,2,FALSE),0)","v":0},{"$f":"IFERROR(VLOOKUP(AD35,'Auxiliar consumos 2'!$B$27:$E$34,2,FALSE),0)","v":0},{"$f":"IFERROR(VLOOKUP(AD35,'Auxiliar consumos 2'!$B$37:$E$44,2,FALSE),0)","v":0},{"$f":"IFERROR(VLOOKUP(AD35,'Auxiliar consumos 2'!$B$47:$E$54,2,FALSE),0)","v":0},{"$f":"IFERROR(VLOOKUP(AD35,'Auxiliar consumos 2'!$B$57:$E$64,2,FALSE),0)","v":0},{"$f":"IFERROR(VLOOKUP(AD35,'Auxiliar consumos 2'!$B$67:$E$74,2,FALSE),0)","v":0},{"$f":"IFERROR(VLOOKUP(AD35,'Auxiliar consumos 2'!$B$77:$E$84,2,FALSE),0)","v":0},{"$f":"IFERROR(VLOOKUP(AD35,'Auxiliar consumos 2'!$B$87:$E$94,2,FALSE),0)","v":0},{"$f":"IFERROR(VLOOKUP(AD35,'Auxiliar consumos 2'!$B$97:$E$104,2,FALSE),0)","v":0},{"$f":"IFERROR(VLOOKUP(AD35,'Auxiliar consumos 2'!$B$107:$E$114,2,FALSE),0)","v":0},{"$f":"IFERROR(VLOOKUP(AD35,'Auxiliar consumos 2'!$B$117:$E$124,2,FALSE),0)","v":0}]
[null,{"$f":"SUM(B5:B35)","v":0},{"$f":"SUM(C5:C35)","v":0},0,0,0,0,0,0,0,0,0,0]
[]
[]
[null,null,null,null,"CONSUMO"]
["NOMBRE MEJORA","N° MEJORA","VECTOR","USO","AHORRO ENERGIA","SIN MEJORA","CON MEJORA","UNIDAD","INV. INICIAL","LCOE","LCOEEP","TIR","PRI","COLUMNA","FILA"]
["Escriba nombre de la mejora",1,"Electricidad","Iluminación",40,{"$f":"HLOOKUP(C41,$A$3:$M$35,MATCH(D41,$A$3:$A$35,0),FALSE)","v":{"$error":"#N/A"}},{"$f":"F41-E41","v":{"$error":"#N/A"}},"kWh",1000,0.46197425525470093,0.1399921985620306,0.27469001949898808,3.7754781128404673,{"$f":"MATCH(C41,$AD$3:$AP$3,0)","v":2},{"$f":"MATCH(D41,$AD$3:$AD$35,0)","v":3}]
["planta fotovoltaica",2,"Electricidad","Iluminación",42187.5,{"$f":"HLOOKUP(C42,$A$3:$M$35,MATCH(D42,$A$3:$A$35,0),FALSE)","v":{"$error":"#N/A"}},{"$f":"F42-E42","v":{"$error":"#N/A"}},"kWh",375000,0.10226954132299038,28.507547534573149,0.88819732352485348,1.1912744877279893,{"$f":"MATCH(C42,$AD$3:$AP$3,0)","v":2},{"$f":"MATCH(D42,$AD$3:$AD$35,0)","v":3}]
[null,null,null,null,null,{"$error":"#N/A"},{"$error":"#N/A"},null,null,null,null,null,null,{"$error":"#N/A"},{"$error":"#N/A"}]
[null,null,null,null,null,{"$f":"HLOOKUP(C44,$A$3:$M$35,MATCH(D44,$A$3:$A$35,0),FALSE)","v":{"$error":"#N/A"}},{"$error":"#N/A"},null,null,null,null,null,null,{"$error":"#N/A"},{"$error":"#N/A"}]
[null,null,null,null,null,{"$error":"#N/A"},{"$error":"#N/A"},null,null,null,null,null,null,{"$error":"#N/A"},{"$error":"#N/A"}]
[null,null,null,null,null,{"$error":"#N/A"},{"$error":"#N/A"},null,null,null,null,null,null,{"$error":"#N/A"},{"$error":"#N/A"}]
[null,null,null,null,null,{"$error":"#N/A"},{"$error":"#N/A"},null,null,null,null,null,null,{"$error":"#N/A"},{"$error":"#N/A"}]
[null,null,null,null,null,{"$error":"#N/A"},{"$error":"#N/A"},null,null,null,null,null,null,{"$error":"#N/A"},{"$error":"#N/A"}]
[null,null,null,null,null,{"$error":"#N/A"},{"$error":"#N/A"},null,null,null,null,null,null,{"$error":"#N/A"},{"$error":"#N/A"}]
[null,null,null,null,null,{"$error":"#N/A"},{"$error":"#N/A"},null,null,null,null,null,null,{"$error":"#N/A"},{"$error":"#N/A"}]
[null,null,null,null,null,{"$error":"#N/A"},{"$error":"#N/A"},null,null,null,null,null,null,{"$error":"#N/A"},{"$error":"#N/A"}]
[null,null,null,null,null,{"$error":"#N/A"},{"$error":"#N/A"},null,null,null,null,null,null,{"$error":"#N/A"},{"$error":"#N/A"}]
[null,null,null,null,null,{"$error":"#N/A"},{"$error":"#N/A"},null,null,null,null,null,null,{"$error":"#N/A"},{"$error":"#N/A"}]
[null,null,null,null,null,{"$error":"#N/A"},{"$error":"#N/A"},null,null,null,null,null,null,{"$error":"#N/A"},{"$error":"#N/A"}]
[null,null,null,null,null,{"$error":"#N/A"},{"$error":"#N/A"},null,null,null,null,null,null,{"$error":"#N/A"},{"$error":"#N/A"}]
[null,null,null,null,null,{"$error":"#N/A"},{"$error":"#N/A"},null,null,null,null,null,null,{"$error":"#N/A"},{"$error":"#N/A"}]
[null,null,null,null,null,{"$error":"#N/A"},{"$error":"#N/A"},null,null,null,null,null,null,{"$error":"#N/A"},{"$error":"#N/A"}]
[null,null,null,null,null,{"$error":"#N/A"},{"$error":"#N/A"},null,null,null,null,null,null,{"$error":"#N/A"},{"$error":"#N/A"}]
[null,null,null,null,null,{"$error":"#N/A"},{"$error":"#N/A"},null,null,null,null,null,null,{"$error":"#N/A"},{"$error":"#N/A"}]
[null,null,null,null,null,{"$error":"#N/A"},{"$error":"#N/A"},null,null,null,null,null,null,{"$error":"#N/A"},{"$error":"#N/A"}]

{"sheet":"Auxiliar consumos 2","index":13,"n_rows":0,"n_cols":0,"rows_kept":0,"cut":false,"hidden":true,"merged":[]}

{"sheet":"Aux Matriz de rendimiento","index":14,"n_rows":34,"n_cols":13,"rows_kept":34,"cut":false,"hidden":true,"merged":[[0,0,0,12]]}
["Matriz de consumo antes de mejoras"]
["Usos/Fuentes","Electricidad","Gas natural","Coque de petróleo","Fuel oil","fuente1"]
["o",{"$f":"IFERROR(VLOOKUP(B2,Auxiliar!$B$2:$E$80,4,FALSE),\"\")","v":""},{"$f":"IFERROR(VLOOKUP(C2,Auxiliar!$B$2:$E$80,4,FALSE),\"\")","v":"Nm3"},{"$f":"IFERROR(VLOOKUP(D2,Auxiliar!$B$2:$E$80,4,FALSE),\"\")","v":""},{"$f":"IFERROR(VLOOKUP(E2,Auxiliar!$B$2:$E$80,4,FALSE),\"\")","v":""},{"$f":"IFERROR(VLOOKUP(F2,Auxiliar!$B$2:$E$80,4,FALSE),\"\")","v":"u2"},{"$f":"IFERROR(VLOOKUP(G2,Auxiliar!$B$2:$E$80,4,FALSE),\"\")","v":""},{"$f":"IFERROR(VLOOKUP(H2,Auxiliar!$B$2:$E$80,4,FALSE),\"\")","v":""},{"$f":"IFERROR(VLOOKUP(I2,Auxiliar!$B$2:$E$80,4,FALSE),\"\")","v":""},{"$f":"IFERROR(VLOOKUP(J2,Auxiliar!$B$2:$E$80,4,FALSE),\"\")","v":""},{"$f":"IFERROR(VLOOKUP(K2,Auxiliar!$B$2:$E$80,4,FALSE),\"\")","v":""},{"$f":"IFERROR(VLOOKUP(L2,Auxiliar!$B$2:$E$80,4,FALSE),\"\")","v":""},{"$f":"IFERROR(VLOOKUP(M2,Auxiliar!$B$2:$E$80,4,FALSE),\"\")","v":""}]
["Iluminación",{"$f":"IFERROR(SUMIF('Inventario general'!$F$10:$H$17,A4,'Inventario general'!$M$10:$M$17)/(SUMIF('Inventario general'!$F$10:$H$17,A4,'Inventario general'!$L$10:$L$17)),0)","v":0},{"$f":"IFERROR(SUMIF('Inventario general'!$F$23:$H$30,A4,'Inventario general'!$M$23:$M$30)/(SUMIF('Inventario general'!$F$23:$H$30,A4,'Inventario general'!$L$23:$L$30)),0)","v":0},{"$f":"IFERROR(SUMIFS('Inventario general'!M:M,'Inventario general'!N:N,'Aux Matriz de rendimiento'!D2,'Inventario general'!O:O,'Aux Matriz de rendimiento'!A4)/(SUMIFS('Inventario general'!L:L,'Inventario general'!N:N,'Aux Matriz de rendimiento'!D2,'Inventario general'!O:O,'Aux Matriz de rendimiento'!A4)),0)","v":0},{"$f":"IFERROR(SUMIFS('Inventario general'!N:N,'Inventario general'!O:O,'Aux Matriz de rendimiento'!E2,'Inventario general'!P:P,'Aux Matriz de rendimiento'!A4)/(SUMIFS('Inventario general'!M:M,'Inventario general'!O:O,'Aux Matriz de rendimiento'!E2,'Inventario general'!P:P,'Aux Matriz de rendimiento'!A4)),0)","v":0},{"$f":"IFERROR(SUMIFS('Inventario general'!O:O,'Inventario general'!P:P,'Aux Matriz de rendimiento'!F2,'Inventario general'!Q:Q,'Aux Matriz de rendimiento'!A4)/(SUMIFS('Inventario general'!N:N,'Inventario general'!P:P,'Aux Matriz de rendimiento'!F2,'Inventario general'!Q:Q,'Aux Matriz de rendimiento'!C4)),0)","v":0},{"$f":"IFERROR(SUMIFS('Inventario general'!P:P,'Inventario general'!Q:Q,'Aux Matriz de rendimiento'!G2,'Inventario general'!R:R,'Aux Matriz de rendimiento'!A4)/(SUMIFS('Inventario general'!O:O,'Inventario general'!Q:Q,'Aux Matriz de rendimiento'!G2,'Inventario general'!R:R,'Aux Matriz de rendimiento'!A4)),0)","v":0},{"$f":"IFERROR(SUMIFS('Inventario general'!Q:Q,'Inventario general'!R:R,'Aux Matriz de rendimiento'!H2,'Inventario general'!S:S,'Aux Matriz de rendimiento'!A4)/(SUMIFS('Inventario general'!P:P,'Inventario general'!R:R,'Aux Matriz de rendimiento'!H2,'Inventario general'!S:S,'Aux Matriz de rendimiento'!A4)),0)","v":0},{"$f":"IFERROR(SUMIFS('Inventario general'!R:R,'Inventario general'!S:S,'Aux Matriz de rendimiento'!I2,'Inventario general'!T:T,'Aux Matriz de rendimiento'!A4)/(SUMIFS('Inventario general'!Q:Q,'Inventario general'!S:S,'Aux Matriz de rendimiento'!I2,'Inventario general'!T:T,'Aux Matriz de rendimiento'!A4)),0)","v":0},{"$f":"IFERROR(SUMIFS('Inventario general'!S:S,'Inventario general'!T:T,'Aux Matriz de rendimiento'!J2,'Inventario general'!U:U,'Aux Matriz de rendimiento'!A4)/(SUMIFS('Inventario general'!R:R,'Inventario general'!T:T,'Aux Matriz de rendimiento'!J2,'Inventario general'!U:U,'Aux Matriz de rendimiento'!A4)),0)","v":0},{"$f":"IFERROR(SUMIFS('Inventario general'!T:T,'Inventario general'!U:U,'Aux Matriz de rendimiento'!K2,'Inventario general'!V:V,'Aux Matriz de rendimiento'!A4)/(SUMIFS('Inventario general'!S:S,'Inventario general'!U:U,'Aux Matriz de rendimiento'!K2,'Inventario general'!V:V,'Aux Matriz de rendimiento'!A4)),0)","v":0},{"$f":"IFERROR(SUMIFS('Inventario general'!U:U,'Inventario general'!V:V,'Aux Matriz de rendimiento'!L2,'Inventario general'!W:W,'Aux Matriz de rendimiento'!A4)/(SUMIFS('Inventario general'!T:T,'Inventario general'!V:V,'Aux Matriz de rendimiento'!L2,'Inventario general'!W:W,'Aux Matriz de rendimiento'!A4)),0)","v":0},{"$f":"IFERROR(SUMIFS('Inventario general'!V:V,'Inventario general'!W:W,'Aux Matriz de rendimiento'!M2,'Inventario general'!X:X,'Aux Matriz de rendimiento'!A4)/(SUMIFS('Inventario general'!U:U,'Inventario general'!W:W,'Aux Matriz de rendimiento'!M2,'Inventario general'!X:X,'Aux Matriz de rendimiento'!A4)),0)","v":0}]
["Vapor",{"$f":"IFERROR(SUMIF('Inventario general'!$F$10:$H$17,A5,'Inventario general'!$M$10:$M$17)/(SUMIF('Inventario general'!$F$10:$H$17,A5,'Inventario general'!$L$10:$L$17)),0)","v":0},{"$f":"IFERROR(SUMIF('Inventario general'!$F$23:$H$30,A5,'Inventario general'!$M$23:$M$30)/(SUMIF('Inventario general'!$F$23:$H$30,A5,'Inventario general'!$L$23:$L$30)),0)","v":0},{"$f":"IFERROR(SUMIFS('Inventario general'!M:M,'Inventario general'!N:N,'Aux Matriz de rendimiento'!D3,'Inventario general'!O:O,'Aux Matriz de rendimiento'!A5)/(SUMIFS('Inventario general'!L:L,'Inventario general'!N:N,'Aux Matriz de rendimiento'!D3,'Inventario general'!O:O,'Aux Matriz de rendimiento'!A5)),0)","v":0},{"$f":"IFERROR(SUMIFS('Inventario general'!N:N,'Inventario general'!O:O,'Aux Matriz de rendimiento'!E3,'Inventario general'!P:P,'Aux Matriz de rendimiento'!A5)/(SUMIFS('Inventario general'!M:M,'Inventario general'!O:O,'Aux Matriz de rendimiento'!E3,'Inventario general'!P:P,'Aux Matriz de rendimiento'!A5)),0)","v":0},{"$f":"IFERROR(SUMIFS('Inventario general'!O:O,'Inventario general'!P:P,'Aux Matriz de rendimiento'!F3,'Inventario general'!Q:Q,'Aux Matriz de rendimiento'!A5)/(SUMIFS('Inventario general'!N:N,'Inventario general'!P:P,'Aux Matriz de rendimiento'!F3,'Inventario general'!Q:Q,'Aux Matriz de rendimiento'!C5)),0)","v":0},{"$f":"IFERROR(SUMIFS('Inventario general'!P:P,'Inventario general'!Q:Q,'Aux Matriz de rendimiento'!G3,'Inventario general'!R:R,'Aux Matriz de rendimiento'!A5)/(SUMIFS('Inventario general'!O:O,'Inventario general'!Q:Q,'Aux Matriz de rendimiento'!G3,'Inventario general'!R:R,'Aux Matriz de rendimiento'!A5)),0)","v":0},{"$f":"IFERROR(SUMIFS('Inventario general'!Q:Q,'Inventario general'!R:R,'Aux Matriz de rendimiento'!H3,'Inventario general'!S:S,'Aux Matriz de rendimiento'!A5)/(SUMIFS('Inventario general'!P:P,'Inventario general'!R:R,'Aux Matriz de rendimiento'!H3,'Inventario general'!S:S,'Aux Matriz de rendimiento'!A5)),0)","v":0},{"$f":"IFERROR(SUMIFS('Inventario general'!R:R,'Inventario general'!S:S,'Aux Matriz de rendimiento'!I3,'Inventario general'!T:T,'Aux Matriz de rendimiento'!A5)/(SUMIFS('Inventario general'!Q:Q,'Inventario general'!S:S,'Aux Matriz de rendimiento'!I3,'Inventario general'!T:T,'Aux Matriz de rendimiento'!A5)),0)","v":0},{"$f":"IFERROR(SUMIFS('Inventario general'!S:S,'Inventario general'!T:T,'Aux Matriz de rendimiento'!J3,'Inventario general'!U:U,'Aux Matriz de rendimiento'!A5)/(SUMIFS('Inventario general'!R:R,'Inventario general'!T:T,'Aux Matriz de rendimiento'!J3,'Inventario general'!U:U,'Aux Matriz de rendimiento'!A5)),0)","v":0},{"$f":"IFERROR(SUMIFS('Inventario general'!T:T,'Inventario general'!U:U,'Aux Matriz de rendimiento'!K3,'Inventario general'!V:V,'Aux Matriz de rendimiento'!A5)/(SUMIFS('Inventario general'!S:S,'Inventario general'!U:U,'Aux Matriz de rendimiento'!K3,'Inventario general'!V:V,'Aux Matriz de rendimiento'!A5)),0)","v":0},{"$f":"IFERROR(SUMIFS('Inventario general'!U:U,'Inventario general'!V:V,'Aux Matriz de rendimiento'!L3,'Inventario general'!W:W,'Aux Matriz de rendimiento'!A5)/(SUMIFS('Inventario general'!T:T,'Inventario general'!V:V,'Aux Matriz de rendimiento'!L3,'Inventario general'!W:W,'Aux Matriz de rendimiento'!A5)),0)","v":0},{"$f":"IFERROR(SUMIFS('Inventario general'!V:V,'Inventario general'!W:W,'Aux Matriz de rendimiento'!M3,'Inventario general'!X:X,'Aux Matriz de rendimiento'!A5)/(SUMIFS('Inventario general'!U:U,'Inventario general'!W:W,'Aux Matriz de rendimiento'!M3,'Inventario general'!X:X,'Aux Matriz de rendimiento'!A5)),0)","v":0}]
["Calor Directo ",{"$f":"IFERROR(SUMIF('Inventario general'!$F$10:$H$17,A6,'Inventario general'!$M$10:$M$17)/(SUMIF('Inventario general'!$F$10:$H$17,A6,'Inventario general'!$L$10:$L$17)),0)","v":0},{"$f":"IFERROR(SUMIF('Inventario general'!$F$23:$H$30,A6,'Inventario general'!$M$23:$M$30)/(SUMIF('Inventario general'!$F$23:$H$30,A6,'Inventario general'!$L$23:$L$30)),0)","v":0},{"$f":"IFERROR(SUMIFS('Inventario general'!M:M,'Inventario general'!N:N,'Aux Matriz de rendimiento'!D4,'Inventario general'!O:O,'Aux Matriz de rendimiento'!A6)/(SUMIFS('Inventario general'!L:L,'Inventario general'!N:N,'Aux Matriz de rendimiento'!D4,'Inventario general'!O:O,'Aux Matriz de rendimiento'!A6)),0)","v":0},{"$f":"IFERROR(SUMIFS('Inventario general'!N:N,'Inventario general'!O:O,'Aux Matriz de rendimiento'!E4,'Inventario general'!P:P,'Aux Matriz de rendimiento'!A6)/(SUMIFS('Inventario general'!M:M,'Inventario general'!O:O,'Aux Matriz de rendimiento'!E4,'Inventario general'!P:P,'Aux Matriz de rendimiento'!A6)),0)","v":0},{"$f":"IFERROR(SUMIFS('Inventario general'!O:O,'Inventario general'!P:P,'Aux Matriz de rendimiento'!F4,'Inventario general'!Q:Q,'Aux Matriz de rendimiento'!A6)/(SUMIFS('Inventario general'!N:N,'Inventario general'!P:P,'Aux Matriz de rendimiento'!F4,'Inventario general'!Q:Q,'Aux Matriz de rendimiento'!C6)),0)","v":0},{"$f":"IFERROR(SUMIFS('Inventario general'!P:P,'Inventario general'!Q:Q,'Aux Matriz de rendimiento'!G4,'Inventario general'!R:R,'Aux Matriz de rendimiento'!A6)/(SUMIFS('Inventario general'!O:O,'Inventario general'!Q:Q,'Aux Matriz de rendimiento'!G4,'Inventario general'!R:R,'Aux Matriz de rendimiento'!A6)),0)","v":0},{"$f":"IFERROR(SUMIFS('Inventario general'!Q:Q,'Inventario general'!R:R,'Aux Matriz de rendimiento'!H4,'Inventario general'!S:S,'Aux Matriz de rendimiento'!A6)/(SUMIFS('Inventario general'!P:P,'Inventario general'!R:R,'Aux Matriz de rendimiento'!H4,'Inventario general'!S:S,'Aux Matriz de rendimiento'!A6)),0)","v":0},{"$f":"IFERROR(SUMIFS('Inventario general'!R:R,'Inventario general'!S:S,'Aux Matriz de rendimiento'!I4,'Inventario general'!T:T,'Aux Matriz de rendimiento'!A6)/(SUMIFS('Inventario general'!Q:Q,'Inventario general'!S:S,'Aux Matriz de rendimiento'!I4,'Inventario general'!T:T,'Aux Matriz de rendimiento'!A6)),0)","v":0},{"$f":"IFERROR(SUMIFS('Inventario general'!S:S,'Inventario general'!T:T,'Aux Matriz de rendimiento'!J4,'Inventario general'!U:U,'Aux Matriz de rendimiento'!A6)/(SUMIFS('Inventario general'!R:R,'Inventario general'!T:T,'Aux Matriz de rendimiento'!J4,'Inventario general'!U:U,'Aux Matriz de rendimiento'!A6)),0)","v":0},{"$f":"IFERROR(SUMIFS('Inventario general'!T:T,'Inventario general'!U:U,'Aux Matriz de rendimiento'!K4,'Inventario general'!V:V,'Aux Matriz de rendimiento'!A6)/(SUMIFS('Inventario general'!S:S,'Inventario general'!U:U,'Aux Matriz de rendimiento'!K4,'Inventario general'!V:V,'Aux Matriz de rendimiento'!A6)),0)","v":0},{"$f":"IFERROR(SUMIFS('Inventario general'!U:U,'Inventario general'!V:V,'Aux Matriz de rendimiento'!L4,'Inventario general'!W:W,'Aux Matriz de rendimiento'!A6)/(SUMIFS('Inventario general'!T:T,'Inventario general'!V:V,'Aux Matriz de rendimiento'!L4,'Inventario general'!W:W,'Aux Matriz de rendimiento'!A6)),0)","v":0},{"$f":"IFERROR(SUMIFS('Inventario general'!V:V,'Inventario general'!W:W,'Aux Matriz de rendimiento'!M4,'Inventario general'!X:X,'Aux Matriz de rendimiento'!A6)/(SUMIFS('Inventario general'!U:U,'Inventario general'!W:W,'Aux Matriz de rendimiento'!M4,'Inventario general'!X:X,'Aux Matriz de rendimiento'!A6)),0)","v":0}]
["Fuerza Motriz (general)",{"$f":"IFERROR(SUMIF('Inventario general'!$F$10:$H$17,A7,'Inventario general'!$M$10:$M$17)/(SUMIF('Inventario general'!$F$10:$H$17,A7,'Inventario general'!$L$10:$L$17)),0)","v":0},{"$f":"IFERROR(SUMIF('Inventario general'!$F$23:$H$30,A7,'Inventario general'!$M$23:$M$30)/(SUMIF('Inventario general'!$F$23:$H$30,A7,'Inventario general'!$L$23:$L$30)),0)","v":0},{"$f":"IFERROR(SUMIFS('Inventario general'!M:M,'Inventario general'!N:N,'Aux Matriz de rendimiento'!D5,'Inventario general'!O:O,'Aux Matriz de rendimiento'!A7)/(SUMIFS('Inventario general'!L:L,'Inventario general'!N:N,'Aux Matriz de rendimiento'!D5,'Inventario general'!O:O,'Aux Matriz de rendimiento'!A7)),0)","v":0},{"$f":"IFERROR(SUMIFS('Inventario general'!N:N,'Inventario general'!O:O,'Aux Matriz de rendimiento'!E5,'Inventario general'!P:P,'Aux Matriz de rendimiento'!A7)/(SUMIFS('Inventario general'!M:M,'Inventario general'!O:O,'Aux Matriz de rendimiento'!E5,'Inventario general'!P:P,'Aux Matriz de rendimiento'!A7)),0)","v":0},{"$f":"IFERROR(SUMIFS('Inventario general'!O:O,'Inventario general'!P:P,'Aux Matriz de rendimiento'!F5,'Inventario general'!Q:Q,'Aux Matriz de rendimiento'!A7)/(SUMIFS('Inventario general'!N:N,'Inventario general'!P:P,'Aux Matriz de rendimiento'!F5,'Inventario general'!Q:Q,'Aux Matriz de rendimiento'!C7)),0)","v":0},{"$f":"IFERROR(SUMIFS('Inventario general'!P:P,'Inventario general'!Q:Q,'Aux Matriz de rendimiento'!G5,'Inventario general'!R:R,'Aux Matriz de rendimiento'!A7)/(SUMIFS('Inventario general'!O:O,'Inventario general'!Q:Q,'Aux Matriz de rendimiento'!G5,'Inventario general'!R:R,'Aux Matriz de rendimiento'!A7)),0)","v":0},{"$f":"IFERROR(SUMIFS('Inventario general'!Q:Q,'Inventario general'!R:R,'Aux Matriz de rendimiento'!H5,'Inventario general'!S:S,'Aux Matriz de rendimiento'!A7)/(SUMIFS('Inventario general'!P:P,'Inventario general'!R:R,'Aux Matriz de rendimiento'!H5,'Inventario general'!S:S,'Aux Matriz de rendimiento'!A7)),0)","v":0},{"$f":"IFERROR(SUMIFS('Inventario general'!R:R,'Inventario general'!S:S,'Aux Matriz de rendimiento'!I5,'Inventario general'!T:T,'Aux Matriz de rendimiento'!A7)/(SUMIFS('Inventario general'!Q:Q,'Inventario general'!S:S,'Aux Matriz de rendimiento'!I5,'Inventario general'!T:T,'Aux Matriz de rendimiento'!A7)),0)","v":0},{"$f":"IFERROR(SUMIFS('Inventario general'!S:S,'Inventario general'!T:T,'Aux Matriz de rendimiento'!J5,'Inventario general'!U:U,'Aux Matriz de rendimiento'!A7)/(SUMIFS('Inventario general'!R:R,'Inventario general'!T:T,'Aux Matriz de rendimiento'!J5,'Inventario general'!U:U,'Aux Matriz de rendimiento'!A7)),0)","v":0},{"$f":"IFERROR(SUMIFS('Inventario general'!T:T,'Inventario general'!U:U,'Aux Matriz de rendimiento'!K5,'Inventario general'!V:V,'Aux Matriz de rendimiento'!A7)/(SUMIFS('Inventario general'!S:S,'Inventario general'!U:U,'Aux Matriz de rendimiento'!K5,'Inventario general'!V:V,'Aux Matriz de rendimiento'!A7)),0)","v":0},{"$f":"IFERROR(SUMIFS('Inventario general'!U:U,'Inventario general'!V:V,'Aux Matriz de rendimiento'!L5,'Inventario general'!W:W,'Aux Matriz de rendimiento'!A7)/(SUMIFS('Inventario general'!T:T,'Inventario general'!V:V,'Aux Matriz de rendimiento'!L5,'Inventario general'!W:W,'Aux Matriz de rendimiento'!A7)),0)","v":0},{"$f":"IFERROR(SUMIFS('Inventario general'!V:V,'Inventario general'!W:W,'Aux Matriz de rendimiento'!M5,'Inventario general'!X:X,'Aux Matriz de rendimiento'!A7)/(SUMIFS('Inventario general'!U:U,'Inventario general'!W:W,'Aux Matriz de rendimiento'!M5,'Inventario general'!X:X,'Aux Matriz de rendimiento'!A7)),0)","v":0}]
["Frío de Proceso ",{"$f":"IFERROR(SUMIF('Inventario general'!$F$10:$H$17,A8,'Inventario general'!$M$10:$M$17)/(SUMIF('Inventario general'!$F$10:$H$17,A8,'Inventario general'!$L$10:$L$17)),0)","v":0},{"$f":"IFERROR(SUMIF('Inventario general'!$F$23:$H$30,A8,'Inventario general'!$M$23:$M$30)/(SUMIF('Inventario general'!$F$23:$H$30,A8,'Inventario general'!$L$23:$L$30)),0)","v":0},{"$f":"IFERROR(SUMIFS('Inventario general'!M:M,'Inventario general'!N:N,'Aux Matriz de rendimiento'!D6,'Inventario general'!O:O,'Aux Matriz de rendimiento'!A8)/(SUMIFS('Inventario general'!L:L,'Inventario general'!N:N,'Aux Matriz de rendimiento'!D6,'Inventario general'!O:O,'Aux Matriz de rendimiento'!A8)),0)","v":0},{"$f":"IFERROR(SUMIFS('Inventario general'!N:N,'Inventario general'!O:O,'Aux Matriz de rendimiento'!E6,'Inventario general'!P:P,'Aux Matriz de rendimiento'!A8)/(SUMIFS('Inventario general'!M:M,'Inventario general'!O:O,'Aux Matriz de rendimiento'!E6,'Inventario general'!P:P,'Aux Matriz de rendimiento'!A8)),0)","v":0},{"$f":"IFERROR(SUMIFS('Inventario general'!O:O,'Inventario general'!P:P,'Aux Matriz de rendimiento'!F6,'Inventario general'!Q:Q,'Aux Matriz de rendimiento'!A8)/(SUMIFS('Inventario general'!N:N,'Inventario general'!P:P,'Aux Matriz de rendimiento'!F6,'Inventario general'!Q:Q,'Aux Matriz de rendimiento'!C8)),0)","v":0},{"$f":"IFERROR(SUMIFS('Inventario general'!P:P,'Inventario general'!Q:Q,'Aux Matriz de rendimiento'!G6,'Inventario general'!R:R,'Aux Matriz de rendimiento'!A8)/(SUMIFS('Inventario general'!O:O,'Inventario general'!Q:Q,'Aux Matriz de rendimiento'!G6,'Inventario general'!R:R,'Aux Matriz de rendimiento'!A8)),0)","v":0},{"$f":"IFERROR(SUMIFS('Inventario general'!Q:Q,'Inventario general'!R:R,'Aux Matriz de rendimiento'!H6,'Inventario general'!S:S,'Aux Matriz de rendimiento'!A8)/(SUMIFS('Inventario general'!P:P,'Inventario general'!R:R,'Aux Matriz de rendimiento'!H6,'Inventario general'!S:S,'Aux Matriz de rendimiento'!A8)),0)","v":0},{"$f":"IFERROR(SUMIFS('Inventario general'!R:R,'Inventario general'!S:S,'Aux Matriz de rendimiento'!I6,'Inventario general'!T:T,'Aux Matriz de rendimiento'!A8)/(SUMIFS('Inventario general'!Q:Q,'Inventario general'!S:S,'Aux Matriz de rendimiento'!I6,'Inventario general'!T:T,'Aux Matriz de rendimiento'!A8)),0)","v":0},{"$f":"IFERROR(SUMIFS('Inventario general'!S:S,'Inventario general'!T:T,'Aux Matriz de rendimiento'!J6,'Inventario general'!U:U,'Aux Matriz de rendimiento'!A8)/(SUMIFS('Inventario general'!R:R,'Inventario general'!T:T,'Aux Matriz de rendimiento'!J6,'Inventario general'!U:U,'Aux Matriz de rendimiento'!A8)),0)","v":0},{"$f":"IFERROR(SUMIFS('Inventario general'!T:T,'Inventario general'!U:U,'Aux Matriz de rendimiento'!K6,'Inventario general'!V:V,'Aux Matriz de rendimiento'!A8)/(SUMIFS('Inventario general'!S:S,'Inventario general'!U:U,'Aux Matriz de rendimiento'!K6,'Inventario general'!V:V,'Aux Matriz de rendimiento'!A8)),0)","v":0},{"$f":"IFERROR(SUMIFS('Inventario general'!U:U,'Inventario general'!V:V,'Aux Matriz de rendimiento'!L6,'Inventario general'!W:W,'Aux Matriz de rendimiento'!A8)/(SUMIFS('Inventario general'!T:T,'Inventario general'!V:V,'Aux Matriz de rendimiento'!L6,'Inventario general'!W:W,'Aux Matriz de rendimiento'!A8)),0)","v":0},{"$f":"IFERROR(SUMIFS('Inventario general'!V:V,'Inventario general'!W:W,'Aux Matriz de rendimiento'!M6,'Inventario general'!X:X,'Aux Matriz de rendimiento'!A8)/(SUMIFS('Inventario general'!U:U,'Inventario general'!W:W,'Aux Matriz de rendimiento'!M6,'Inventario general'!X:X,'Aux Matriz de rendimiento'!A8)),0)","v":0}]
["Transporte Interno",{"$f":"IFERROR(SUMIF('Inventario general'!$F$10:$H$17,A9,'Inventario general'!$M$10:$M$17)/(SUMIF('Inventario general'!$F$10:$H$17,A9,'Inventario general'!$L$10:$L$17)),0)","v":0},{"$f":"IFERROR(SUMIF('Inventario general'!$F$23:$H$30,A9,'Inventario general'!$M$23:$M$30)/(SUMIF('Inventario general'!$F$23:$H$30,A9,'Inventario general'!$L$23:$L$30)),0)","v":0},{"$f":"IFERROR(SUMIFS('Inventario general'!M:M,'Inventario general'!N:N,'Aux Matriz de rendimiento'!D7,'Inventario general'!O:O,'Aux Matriz de rendimiento'!A9)/(SUMIFS('Inventario general'!L:L,'Inventario general'!N:N,'Aux Matriz de rendimiento'!D7,'Inventario general'!O:O,'Aux Matriz de rendimiento'!A9)),0)","v":0},{"$f":"IFERROR(SUMIFS('Inventario general'!N:N,'Inventario general'!O:O,'Aux Matriz de rendimiento'!E7,'Inventario general'!P:P,'Aux Matriz de rendimiento'!A9)/(SUMIFS('Inventario general'!M:M,'Inventario general'!O:O,'Aux Matriz de rendimiento'!E7,'Inventario general'!P:P,'Aux Matriz de rendimiento'!A9)),0)","v":0},{"$f":"IFERROR(SUMIFS('Inventario general'!O:O,'Inventario general'!P:P,'Aux Matriz de rendimiento'!F7,'Inventario general'!Q:Q,'Aux Matriz de rendimiento'!A9)/(SUMIFS('Inventario general'!N:N,'Inventario general'!P:P,'Aux Matriz de rendimiento'!F7,'Inventario general'!Q:Q,'Aux Matriz de rendimiento'!C9)),0)","v":0},{"$f":"IFERROR(SUMIFS('Inventario general'!P:P,'Inventario general'!Q:Q,'Aux Matriz de rendimiento'!G7,'Inventario general'!R:R,'Aux Matriz de rendimiento'!A9)/(SUMIFS('Inventario general'!O:O,'Inventario general'!Q:Q,'Aux Matriz de rendimiento'!G7,'Inventario general'!R:R,'Aux Matriz de rendimiento'!A9)),0)","v":0},{"$f":"IFERROR(SUMIFS('Inventario general'!Q:Q,'Inventario general'!R:R,'Aux Matriz de rendimiento'!H7,'Inventario general'!S:S,'Aux Matriz de rendimiento'!A9)/(SUMIFS('Inventario general'!P:P,'Inventario general'!R:R,'Aux Matriz de rendimiento'!H7,'Inventario general'!S:S,'Aux Matriz de rendimiento'!A9)),0)","v":0},{"$f":"IFERROR(SUMIFS('Inventario general'!R:R,'Inventario general'!S:S,'Aux Matriz de rendimiento'!I7,'Inventario general'!T:T,'Aux Matriz de rendimiento'!A9)/(SUMIFS('Inventario general'!Q:Q,'Inventario general'!S:S,'Aux Matriz de rendimiento'!I7,'Inventario general'!T:T,'Aux Matriz de rendimiento'!A9)),0)","v":0},{"$f":"IFERROR(SUMIFS('Inventario general'!S:S,'Inventario general'!T:T,'Aux Matriz de rendimiento'!J7,'Inventario general'!U:U,'Aux Matriz de rendimiento'!A9)/(SUMIFS('Inventario general'!R:R,'Inventario general'!T:T,'Aux Matriz de rendimiento'!J7,'Inventario general'!U:U,'Aux Matriz de rendimiento'!A9)),0)","v":0},{"$f":"IFERROR(SUMIFS('Inventario general'!T:T,'Inventario general'!U:U,'Aux Matriz de rendimiento'!K7,'Inventario general'!V:V,'Aux Matriz de rendimiento'!A9)/(SUMIFS('Inventario general'!S:S,'Inventario general'!U:U,'Aux Matriz de rendimiento'!K7,'Inventario general'!V:V,'Aux Matriz de rendimiento'!A9)),0)","v":0},{"$f":"IFERROR(SUMIFS('Inventario general'!U:U,'Inventario general'!V:V,'Aux Matriz de rendimiento'!L7,'Inventario general'!W:W,'Aux Matriz de rendimiento'!A9)/(SUMIFS('Inventario general'!T:T,'Inventario general'!V:V,'Aux Matriz de rendimiento'!L7,'Inventario general'!W:W,'Aux Matriz de rendimiento'!A9)),0)","v":0},{"$f":"IFERROR(SUMIFS('Inventario general'!V:V,'Inventario general'!W:W,'Aux Matriz de rendimiento'!M7,'Inventario general'!X:X,'Aux Matriz de rendimiento'!A9)/(SUMIFS('Inventario general'!U:U,'Inventario general'!W:W,'Aux Matriz de rendimiento'!M7,'Inventario general'!X:X,'Aux Matriz de rendimiento'!A9)),0)","v":0}]
["Angeles",{"$f":"IFERROR(SUMIF('Inventario general'!$F$10:$H$17,A10,'Inventario general'!$M$10:$M$17)/(SUMIF('Inventario general'!$F$10:$H$17,A10,'Inventario general'!$L$10:$L$17)),0)","v":0},{"$f":"IFERROR(SUMIF('Inventario general'!$F$23:$H$30,A10,'Inventario general'!$M$23:$M$30)/(SUMIF('Inventario general'!$F$23:$H$30,A10,'Inventario general'!$L$23:$L$30)),0)","v":0},{"$f":"IFERROR(SUMIFS('Inventario general'!M:M,'Inventario general'!N:N,'Aux Matriz de rendimiento'!D8,'Inventario general'!O:O,'Aux Matriz de rendimiento'!A10)/(SUMIFS('Inventario general'!L:L,'Inventario general'!N:N,'Aux Matriz de rendimiento'!D8,'Inventario general'!O:O,'Aux Matriz de rendimiento'!A10)),0)","v":0},{"$f":"IFERROR(SUMIFS('Inventario general'!N:N,'Inventario general'!O:O,'Aux Matriz de rendimiento'!E8,'Inventario general'!P:P,'Aux Matriz de rendimiento'!A10)/(SUMIFS('Inventario general'!M:M,'Inventario general'!O:O,'Aux Matriz de rendimiento'!E8,'Inventario general'!P:P,'Aux Matriz de rendimiento'!A10)),0)","v":0},{"$f":"IFERROR(SUMIFS('Inventario general'!O:O,'Inventario general'!P:P,'Aux Matriz de rendimiento'!F8,'Inventario general'!Q:Q,'Aux Matriz de rendimiento'!A10)/(SUMIFS('Inventario general'!N:N,'Inventario general'!P:P,'Aux Matriz de rendimiento'!F8,'Inventario general'!Q:Q,'Aux Matriz de rendimiento'!C10)),0)","v":0},{"$f":"IFERROR(SUMIFS('Inventario general'!P:P,'Inventario general'!Q:Q,'Aux Matriz de rendimiento'!G8,'Inventario general'!R:R,'Aux Matriz de rendimiento'!A10)/(SUMIFS('Inventario general'!O:O,'Inventario general'!Q:Q,'Aux Matriz de rendimiento'!G8,'Inventario general'!R:R,'Aux Matriz de rendimiento'!A10)),0)","v":0},{"$f":"IFERROR(SUMIFS('Inventario general'!Q:Q,'Inventario general'!R:R,'Aux Matriz de rendimiento'!H8,'Inventario general'!S:S,'Aux Matriz de rendimiento'!A10)/(SUMIFS('Inventario general'!P:P,'Inventario general'!R:R,'Aux Matriz de rendimiento'!H8,'Inventario general'!S:S,'Aux Matriz de rendimiento'!A10)),0)","v":0},{"$f":"IFERROR(SUMIFS('Inventario general'!R:R,'Inventario general'!S:S,'Aux Matriz de rendimiento'!I8,'Inventario general'!T:T,'Aux Matriz de rendimiento'!A10)/(SUMIFS('Inventario general'!Q:Q,'Inventario general'!S:S,'Aux Matriz de rendimiento'!I8,'Inventario general'!T:T,'Aux Matriz de rendimiento'!A10)),0)","v":0},{"$f":"IFERROR(SUMIFS('Inventario general'!S:S,'Inventario general'!T:T,'Aux Matriz de rendimiento'!J8,'Inventario general'!U:U,'Aux Matriz de rendimiento'!A10)/(SUMIFS('Inventario general'!R:R,'Inventario general'!T:T,'Aux Matriz de rendimiento'!J8,'Inventario general'!U:U,'Aux Matriz de rendimiento'!A10)),0)","v":0},{"$f":"IFERROR(SUMIFS('Inventario general'!T:T,'Inventario general'!U:U,'Aux Matriz de rendimiento'!K8,'Inventario general'!V:V,'Aux Matriz de rendimiento'!A10)/(SUMIFS('Inventario general'!S:S,'Inventario general'!U:U,'Aux Matriz de rendimiento'!K8,'Inventario general'!V:V,'Aux Matriz de rendimiento'!A10)),0)","v":0},{"$f":"IFERROR(SUMIFS('Inventario general'!U:U,'Inventario general'!V:V,'Aux Matriz de rendimiento'!L8,'Inventario general'!W:W,'Aux Matriz de rendimiento'!A10)/(SUMIFS('Inventario general'!T:T,'Inventario general'!V:V,'Aux Matriz de rendimiento'!L8,'Inventario general'!W:W,'Aux Matriz de rendimiento'!A10)),0)","v":0},{"$f":"IFERROR(SUMIFS('Inventario general'!V:V,'Inventario general'!W:W,'Aux Matriz de rendimiento'!M8,'Inventario general'!X:X,'Aux Matriz de rendimiento'!A10)/(SUMIFS('Inventario general'!U:U,'Inventario general'!W:W,'Aux Matriz de rendimiento'!M8,'Inventario general'!X:X,'Aux Matriz de rendimiento'!A10)),0)","v":0}]
["Hola",{"$f":"IFERROR(SUMIF('Inventario general'!$F$10:$H$17,A11,'Inventario general'!$M$10:$M$17)/(SUMIF('Inventario general'!$F$10:$H$17,A11,'Inventario general'!$L$10:$L$17)),0)","v":0},{"$f":"IFERROR(SUMIF('Inventario general'!$F$23:$H$30,A11,'Inventario general'!$M$23:$M$30)/(SUMIF('Inventario general'!$F$23:$H$30,A11,'Inventario general'!$L$23:$L$30)),0)","v":0},{"$f":"IFERROR(SUMIFS('Inventario general'!M:M,'Inventario general'!N:N,'Aux Matriz de rendimiento'!D9,'Inventario general'!O:O,'Aux Matriz de rendimiento'!A11)/(SUMIFS('Inventario general'!L:L,'Inventario general'!N:N,'Aux Matriz de rendimiento'!D9,'Inventario general'!O:O,'Aux Matriz de rendimiento'!A11)),0)","v":0},{"$f":"IFERROR(SUMIFS('Inventario general'!N:N,'Inventario general'!O:O,'Aux Matriz de rendimiento'!E9,'Inventario general'!P:P,'Aux Matriz de rendimiento'!A11)/(SUMIFS('Inventario general'!M:M,'Inventario general'!O:O,'Aux Matriz de rendimiento'!E9,'Inventario general'!P:P,'Aux Matriz de rendimiento'!A11)),0)","v":0},{"$f":"IFERROR(SUMIFS('Inventario general'!O:O,'Inventario general'!P:P,'Aux Matriz de rendimiento'!F9,'Inventario general'!Q:Q,'Aux Matriz de rendimiento'!A11)/(SUMIFS('Inventario general'!N:N,'Inventario general'!P:P,'Aux Matriz de rendimiento'!F9,'Inventario general'!Q:Q,'Aux Matriz de rendimiento'!C11)),0)","v":0},{"$f":"IFERROR(SUMIFS('Inventario general'!P:P,'Inventario general'!Q:Q,'Aux Matriz de rendimiento'!G9,'Inventario general'!R:R,'Aux Matriz de rendimiento'!A11)/(SUMIFS('Inventario general'!O:O,'Inventario general'!Q:Q,'Aux Matriz de rendimiento'!G9,'Inventario general'!R:R,'Aux Matriz de rendimiento'!A11)),0)","v":0},{"$f":"IFERROR(SUMIFS('Inventario general'!Q:Q,'Inventario general'!R:R,'Aux Matriz de rendimiento'!H9,'Inventario general'!S:S,'Aux Matriz de rendimiento'!A11)/(SUMIFS('Inventario general'!P:P,'Inventario general'!R:R,'Aux Matriz de rendimiento'!H9,'Inventario general'!S:S,'Aux Matriz de rendimiento'!A11)),0)","v":0},{"$f":"IFERROR(SUMIFS('Inventario general'!R:R,'Inventario general'!S:S,'Aux Matriz de rendimiento'!I9,'Inventario general'!T:T,'Aux Matriz de rendimiento'!A11)/(SUMIFS('Inventario general'!Q:Q,'Inventario general'!S:S,'Aux Matriz de rendimiento'!I9,'Inventario general'!T:T,'Aux Matriz de rendimiento'!A11)),0)","v":0},{"$f":"IFERROR(SUMIFS('Inventario general'!S:S,'Inventario general'!T:T,'Aux Matriz de rendimiento'!J9,'Inventario general'!U:U,'Aux Matriz de rendimiento'!A11)/(SUMIFS('Inventario general'!R:R,'Inventario general'!T:T,'Aux Matriz de rendimiento'!J9,'Inventario general'!U:U,'Aux Matriz de rendimiento'!A11)),0)","v":0},{"$f":"IFERROR(SUMIFS('Inventario general'!T:T,'Inventario general'!U:U,'Aux Matriz de rendimiento'!K9,'Inventario general'!V:V,'Aux Matriz de rendimiento'!A11)/(SUMIFS('Inventario general'!S:S,'Inventario general'!U:U,'Aux Matriz de rendimiento'!K9,'Inventario general'!V:V,'Aux Matriz de rendimiento'!A11)),0)","v":0},{"$f":"IFERROR(SUMIFS('Inventario general'!U:U,'Inventario general'!V:V,'Aux Matriz de rendimiento'!L9,'Inventario general'!W:W,'Aux Matriz de rendimiento'!A11)/(SUMIFS('Inventario general'!T:T,'Inventario general'!V:V,'Aux Matriz de rendimiento'!L9,'Inventario general'!W:W,'Aux Matriz de rendimiento'!A11)),0)","v":0},{"$f":"IFERROR(SUMIFS('Inventario general'!V:V,'Inventario general'!W:W,'Aux Matriz de rendimiento'!M9,'Inventario general'!X:X,'Aux Matriz de rendimiento'!A11)/(SUMIFS('Inventario general'!U:U,'Inventario general'!W:W,'Aux Matriz de rendimiento'!M9,'Inventario general'!X:X,'Aux Matriz de rendimiento'!A11)),0)","v":0}]
["ROSARIO",{"$f":"IFERROR(SUMIF('Inventario general'!$F$10:$H$17,A12,'Inventario general'!$M$10:$M$17)/(SUMIF('Inventario general'!$F$10:$H$17,A12,'Inventario general'!$L$10:$L$17)),0)","v":0},{"$f":"IFERROR(SUMIF('Inventario general'!$F$23:$H$30,A12,'Inventario general'!$M$23:$M$30)/(SUMIF('Inventario general'!$F$23:$H$30,A12,'Inventario general'!$L$23:$L$30)),0)","v":0},{"$f":"IFERROR(SUMIFS('Inventario general'!M:M,'Inventario general'!N:N,'Aux Matriz de rendimiento'!D10,'Inventario general'!O:O,'Aux Matriz de rendimiento'!A12)/(SUMIFS('Inventario general'!L:L,'Inventario general'!N:N,'Aux Matriz de rendimiento'!D10,'Inventario general'!O:O,'Aux Matriz de rendimiento'!A12)),0)","v":0},{"$f":"IFERROR(SUMIFS('Inventario general'!N:N,'Inventario general'!O:O,'Aux Matriz de rendimiento'!E10,'Inventario general'!P:P,'Aux Matriz de rendimiento'!A12)/(SUMIFS('Inventario general'!M:M,'Inventario general'!O:O,'Aux Matriz de rendimiento'!E10,'Inventario general'!P:P,'Aux Matriz de rendimiento'!A12)),0)","v":0},{"$f":"IFERROR(SUMIFS('Inventario general'!O:O,'Inventario general'!P:P,'Aux Matriz de rendimiento'!F10,'Inventario general'!Q:Q,'Aux Matriz de rendimiento'!A12)/(SUMIFS('Inventario general'!N:N,'Inventario general'!P:P,'Aux Matriz de rendimiento'!F10,'Inventario general'!Q:Q,'Aux Matriz de rendimiento'!C12)),0)","v":0},{"$f":"IFERROR(SUMIFS('Inventario general'!P:P,'Inventario general'!Q:Q,'Aux Matriz de rendimiento'!G10,'Inventario general'!R:R,'Aux Matriz de rendimiento'!A12)/(SUMIFS('Inventario general'!O:O,'Inventario general'!Q:Q,'Aux Matriz de rendimiento'!G10,'Inventario general'!R:R,'Aux Matriz de rendimiento'!A12)),0)","v":0},{"$f":"IFERROR(SUMIFS('Inventario general'!Q:Q,'Inventario general'!R:R,'Aux Matriz de rendimiento'!H10,'Inventario general'!S:S,'Aux Matriz de rendimiento'!A12)/(SUMIFS('Inventario general'!P:P,'Inventario general'!R:R,'Aux Matriz de rendimiento'!H10,'Inventario general'!S:S,'Aux Matriz de rendimiento'!A12)),0)","v":0},{"$f":"IFERROR(SUMIFS('Inventario general'!R:R,'Inventario general'!S:S,'Aux Matriz de rendimiento'!I10,'Inventario general'!T:T,'Aux Matriz de rendimiento'!A12)/(SUMIFS('Inventario general'!Q:Q,'Inventario general'!S:S,'Aux Matriz de rendimiento'!I10,'Inventario general'!T:T,'Aux Matriz de rendimiento'!A12)),0)","v":0},{"$f":"IFERROR(SUMIFS('Inventario general'!S:S,'Inventario general'!T:T,'Aux Matriz de rendimiento'!J10,'Inventario general'!U:U,'Aux Matriz de rendimiento'!A12)/(SUMIFS('Inventario general'!R:R,'Inventario general'!T:T,'Aux Matriz de rendimiento'!J10,'Inventario general'!U:U,'Aux Matriz de rendimiento'!A12)),0)","v":0},{"$f":"IFERROR(SUMIFS('Inventario general'!T:T,'Inventario general'!U:U,'Aux Matriz de rendimiento'!K10,'Inventario general'!V:V,'Aux Matriz de rendimiento'!A12)/(SUMIFS('Inventario general'!S:S,'Inventario general'!U:U,'Aux Matriz de rendimiento'!K10,'Inventario general'!V:V,'Aux Matriz de rendimiento'!A12)),0)","v":0},{"$f":"IFERROR(SUMIFS('Inventario general'!U:U,'Inventario general'!V:V,'Aux Matriz de rendimiento'!L10,'Inventario general'!W:W,'Aux Matriz de rendimiento'!A12)/(SUMIFS('Inventario general'!T:T,'Inventario general'!V:V,'Aux Matriz de rendimiento'!L10,'Inventario general'!W:W,'Aux Matriz de rendimiento'!A12)),0)","v":0},{"$f":"IFERROR(SUMIFS('Inventario general'!V:V,'Inventario general'!W:W,'Aux Matriz de rendimiento'!M10,'Inventario general'!X:X,'Aux Matriz de rendimiento'!A12)/(SUMIFS('Inventario general'!U:U,'Inventario general'!W:W,'Aux Matriz de rendimiento'!M10,'Inventario general'!X:X,'Aux Matriz de rendimiento'!A12)),0)","v":0}]
["Green Day",{"$f":"IFERROR(SUMIF('Inventario general'!$F$10:$H$17,A13,'Inventario general'!$M$10:$M$17)/(SUMIF('Inventario general'!$F$10:$H$17,A13,'Inventario general'!$L$10:$L$17)),0)","v":0},{"$f":"IFERROR(SUMIF('Inventario general'!$F$23:$H$30,A13,'Inventario general'!$M$23:$M$30)/(SUMIF('Inventario general'!$F$23:$H$30,A13,'Inventario general'!$L$23:$L$30)),0)","v":0},{"$f":"IFERROR(SUMIFS('Inventario general'!M:M,'Inventario general'!N:N,'Aux Matriz de rendimiento'!D11,'Inventario general'!O:O,'Aux Matriz de rendimiento'!A13)/(SUMIFS('Inventario general'!L:L,'Inventario general'!N:N,'Aux Matriz de rendimiento'!D11,'Inventario general'!O:O,'Aux Matriz de rendimiento'!A13)),0)","v":0},{"$f":"IFERROR(SUMIFS('Inventario general'!N:N,'Inventario general'!O:O,'Aux Matriz de rendimiento'!E11,'Inventario general'!P:P,'Aux Matriz de rendimiento'!A13)/(SUMIFS('Inventario general'!M:M,'Inventario general'!O:O,'Aux Matriz de rendimiento'!E11,'Inventario general'!P:P,'Aux Matriz de rendimiento'!A13)),0)","v":0},{"$f":"IFERROR(SUMIFS('Inventario general'!O:O,'Inventario general'!P:P,'Aux Matriz de rendimiento'!F11,'Inventario general'!Q:Q,'Aux Matriz de rendimiento'!A13)/(SUMIFS('Inventario general'!N:N,'Inventario general'!P:P,'Aux Matriz de rendimiento'!F11,'Inventario general'!Q:Q,'Aux Matriz de rendimiento'!C13)),0)","v":0},{"$f":"IFERROR(SUMIFS('Inventario general'!P:P,'Inventario general'!Q:Q,'Aux Matriz de rendimiento'!G11,'Inventario general'!R:R,'Aux Matriz de rendimiento'!A13)/(SUMIFS('Inventario general'!O:O,'Inventario general'!Q:Q,'Aux Matriz de rendimiento'!G11,'Inventario general'!R:R,'Aux Matriz de rendimiento'!A13)),0)","v":0},{"$f":"IFERROR(SUMIFS('Inventario general'!Q:Q,'Inventario general'!R:R,'Aux Matriz de rendimiento'!H11,'Inventario general'!S:S,'Aux Matriz de rendimiento'!A13)/(SUMIFS('Inventario general'!P:P,'Inventario general'!R:R,'Aux Matriz de rendimiento'!H11,'Inventario general'!S:S,'Aux Matriz de rendimiento'!A13)),0)","v":0},{"$f":"IFERROR(SUMIFS('Inventario general'!R:R,'Inventario general'!S:S,'Aux Matriz de rendimiento'!I11,'Inventario general'!T:T,'Aux Matriz de rendimiento'!A13)/(SUMIFS('Inventario general'!Q:Q,'Inventario general'!S:S,'Aux Matriz de rendimiento'!I11,'Inventario general'!T:T,'Aux Matriz de rendimiento'!A13)),0)","v":0},{"$f":"IFERROR(SUMIFS('Inventario general'!S:S,'Inventario general'!T:T,'Aux Matriz de rendimiento'!J11,'Inventario general'!U:U,'Aux Matriz de rendimiento'!A13)/(SUMIFS('Inventario general'!R:R,'Inventario general'!T:T,'Aux Matriz de rendimiento'!J11,'Inventario general'!U:U,'Aux Matriz de rendimiento'!A13)),0)","v":0},{"$f":"IFERROR(SUMIFS('Inventario general'!T:T,'Inventario general'!U:U,'Aux Matriz de rendimiento'!K11,'Inventario general'!V:V,'Aux Matriz de rendimiento'!A13)/(SUMIFS('Inventario general'!S:S,'Inventario general'!U:U,'Aux Matriz de rendimiento'!K11,'Inventario general'!V:V,'Aux Matriz de rendimiento'!A13)),0)","v":0},{"$f":"IFERROR(SUMIFS('Inventario general'!U:U,'Inventario general'!V:V,'Aux Matriz de rendimiento'!L11,'Inventario general'!W:W,'Aux Matriz de rendimiento'!A13)/(SUMIFS('Inventario general'!T:T,'Inventario general'!V:V,'Aux Matriz de rendimiento'!L11,'Inventario general'!W:W,'Aux Matriz de rendimiento'!A13)),0)","v":0},{"$f":"IFERROR(SUMIFS('Inventario general'!V:V,'Inventario general'!W:W,'Aux Matriz de rendimiento'!M11,'Inventario general'!X:X,'Aux Matriz de rendimiento'!A13)/(SUMIFS('Inventario general'!U:U,'Inventario general'!W:W,'Aux Matriz de rendimiento'!M11,'Inventario general'!X:X,'Aux Matriz de rendimiento'!A13)),0)","v":0}]
["ACDC",{"$f":"IFERROR(SUMIF('Inventario general'!$F$10:$H$17,A14,'Inventario general'!$M$10:$M$17)/(SUMIF('Inventario general'!$F$10:$H$17,A14,'Inventario general'!$L$10:$L$17)),0)","v":0},{"$f":"IFERROR(SUMIF('Inventario general'!$F$23:$H$30,A14,'Inventario general'!$M$23:$M$30)/(SUMIF('Inventario general'!$F$23:$H$30,A14,'Inventario general'!$L$23:$L$30)),0)","v":0},{"$f":"IFERROR(SUMIFS('Inventario general'!M:M,'Inventario general'!N:N,'Aux Matriz de rendimiento'!D12,'Inventario general'!O:O,'Aux Matriz de rendimiento'!A14)/(SUMIFS('Inventario general'!L:L,'Inventario general'!N:N,'Aux Matriz de rendimiento'!D12,'Inventario general'!O:O,'Aux Matriz de rendimiento'!A14)),0)","v":0},{"$f":"IFERROR(SUMIFS('Inventario general'!N:N,'Inventario general'!O:O,'Aux Matriz de rendimiento'!E12,'Inventario general'!P:P,'Aux Matriz de rendimiento'!A14)/(SUMIFS('Inventario general'!M:M,'Inventario general'!O:O,'Aux Matriz de rendimiento'!E12,'Inventario general'!P:P,'Aux Matriz de rendimiento'!A14)),0)","v":0},{"$f":"IFERROR(SUMIFS('Inventario general'!O:O,'Inventario general'!P:P,'Aux Matriz de rendimiento'!F12,'Inventario general'!Q:Q,'Aux Matriz de rendimiento'!A14)/(SUMIFS('Inventario general'!N:N,'Inventario general'!P:P,'Aux Matriz de rendimiento'!F12,'Inventario general'!Q:Q,'Aux Matriz de rendimiento'!C14)),0)","v":0},{"$f":"IFERROR(SUMIFS('Inventario general'!P:P,'Inventario general'!Q:Q,'Aux Matriz de rendimiento'!G12,'Inventario general'!R:R,'Aux Matriz de rendimiento'!A14)/(SUMIFS('Inventario general'!O:O,'Inventario general'!Q:Q,'Aux Matriz de rendimiento'!G12,'Inventario general'!R:R,'Aux Matriz de rendimiento'!A14)),0)","v":0},{"$f":"IFERROR(SUMIFS('Inventario general'!Q:Q,'Inventario general'!R:R,'Aux Matriz de rendimiento'!H12,'Inventario general'!S:S,'Aux Matriz de rendimiento'!A14)/(SUMIFS('Inventario general'!P:P,'Inventario general'!R:R,'Aux Matriz de rendimiento'!H12,'Inventario general'!S:S,'Aux Matriz de rendimiento'!A14)),0)","v":0},{"$f":"IFERROR(SUMIFS('Inventario general'!R:R,'Inventario general'!S:S,'Aux Matriz de rendimiento'!I12,'Inventario general'!T:T,'Aux Matriz de rendimiento'!A14)/(SUMIFS('Inventario general'!Q:Q,'Inventario general'!S:S,'Aux Matriz de rendimiento'!I12,'Inventario general'!T:T,'Aux Matriz de rendimiento'!A14)),0)","v":0},{"$f":"IFERROR(SUMIFS('Inventario general'!S:S,'Inventario general'!T:T,'Aux Matriz de rendimiento'!J12,'Inventario general'!U:U,'Aux Matriz de rendimiento'!A14)/(SUMIFS('Inventario general'!R:R,'Inventario general'!T:T,'Aux Matriz de rendimiento'!J12,'Inventario general'!U:U,'Aux Matriz de rendimiento'!A14)),0)","v":0},{"$f":"IFERROR(SUMIFS('Inventario general'!T:T,'Inventario general'!U:U,'Aux Matriz de rendimiento'!K12,'Inventario general'!V:V,'Aux Matriz de rendimiento'!A14)/(SUMIFS('Inventario general'!S:S,'Inventario general'!U:U,'Aux Matriz de rendimiento'!K12,'Inventario general'!V:V,'Aux Matriz de rendimiento'!A14)),0)","v":0},{"$f":"IFERROR(SUMIFS('Inventario general'!U:U,'Inventario general'!V:V,'Aux Matriz de rendimiento'!L12,'Inventario general'!W:W,'Aux Matriz de rendimiento'!A14)/(SUMIFS('Inventario general'!T:T,'Inventario general'!V:V,'Aux Matriz de rendimiento'!L12,'Inventario general'!W:W,'Aux Matriz de rendimiento'!A14)),0)","v":0},{"$f":"IFERROR(SUMIFS('Inventario general'!V:V,'Inventario general'!W:W,'Aux Matriz de rendimiento'!M12,'Inventario general'!X:X,'Aux Matriz de rendimiento'!A14)/(SUMIFS('Inventario general'!U:U,'Inventario general'!W:W,'Aux Matriz de rendimiento'!M12,'Inventario general'!X:X,'Aux Matriz de rendimiento'!A14)),0)","v":0}]
["Seleccione uso de la energía",{"$f":"IFERROR(SUMIF('Inventario general'!$F$10:$H$17,A15,'Inventario general'!$M$10:$M$17)/(SUMIF('Inventario general'!$F$10:$H$17,A15,'Inventario general'!$L$10:$L$17)),0)","v":0},{"$f":"IFERROR(SUMIF('Inventario general'!$F$23:$H$30,A15,'Inventario general'!$M$23:$M$30)/(SUMIF('Inventario general'!$F$23:$H$30,A15,'Inventario general'!$L$23:$L$30)),0)","v":0},{"$f":"IFERROR(SUMIFS('Inventario general'!M:M,'Inventario general'!N:N,'Aux Matriz de rendimiento'!D13,'Inventario general'!O:O,'Aux Matriz de rendimiento'!A15)/(SUMIFS('Inventario general'!L:L,'Inventario general'!N:N,'Aux Matriz de rendimiento'!D13,'Inventario general'!O:O,'Aux Matriz de rendimiento'!A15)),0)","v":0},{"$f":"IFERROR(SUMIFS('Inventario general'!N:N,'Inventario general'!O:O,'Aux Matriz de rendimiento'!E13,'Inventario general'!P:P,'Aux Matriz de rendimiento'!A15)/(SUMIFS('Inventario general'!M:M,'Inventario general'!O:O,'Aux Matriz de rendimiento'!E13,'Inventario general'!P:P,'Aux Matriz de rendimiento'!A15)),0)","v":0},{"$f":"IFERROR(SUMIFS('Inventario general'!O:O,'Inventario general'!P:P,'Aux Matriz de rendimiento'!F13,'Inventario general'!Q:Q,'Aux Matriz de rendimiento'!A15)/(SUMIFS('Inventario general'!N:N,'Inventario general'!P:P,'Aux Matriz de rendimiento'!F13,'Inventario general'!Q:Q,'Aux Matriz de rendimiento'!C15)),0)","v":0},{"$f":"IFERROR(SUMIFS('Inventario general'!P:P,'Inventario general'!Q:Q,'Aux Matriz de rendimiento'!G13,'Inventario general'!R:R,'Aux Matriz de rendimiento'!A15)/(SUMIFS('Inventario general'!O:O,'Inventario general'!Q:Q,'Aux Matriz de rendimiento'!G13,'Inventario general'!R:R,'Aux Matriz de rendimiento'!A15)),0)","v":0},{"$f":"IFERROR(SUMIFS('Inventario general'!Q:Q,'Inventario general'!R:R,'Aux Matriz de rendimiento'!H13,'Inventario general'!S:S,'Aux Matriz de rendimiento'!A15)/(SUMIFS('Inventario general'!P:P,'Inventario general'!R:R,'Aux Matriz de rendimiento'!H13,'Inventario general'!S:S,'Aux Matriz de rendimiento'!A15)),0)","v":0},{"$f":"IFERROR(SUMIFS('Inventario general'!R:R,'Inventario general'!S:S,'Aux Matriz de rendimiento'!I13,'Inventario general'!T:T,'Aux Matriz de rendimiento'!A15)/(SUMIFS('Inventario general'!Q:Q,'Inventario general'!S:S,'Aux Matriz de rendimiento'!I13,'Inventario general'!T:T,'Aux Matriz de rendimiento'!A15)),0)","v":0},{"$f":"IFERROR(SUMIFS('Inventario general'!S:S,'Inventario general'!T:T,'Aux Matriz de rendimiento'!J13,'Inventario general'!U:U,'Aux Matriz de rendimiento'!A15)/(SUMIFS('Inventario general'!R:R,'Inventario general'!T:T,'Aux Matriz de rendimiento'!J13,'Inventario general'!U:U,'Aux Matriz de rendimiento'!A15)),0)","v":0},{"$f":"IFERROR(SUMIFS('Inventario general'!T:T,'Inventario general'!U:U,'Aux Matriz de rendimiento'!K13,'Inventario general'!V:V,'Aux Matriz de rendimiento'!A15)/(SUMIFS('Inventario general'!S:S,'Inventario general'!U:U,'Aux Matriz de rendimiento'!K13,'Inventario general'!V:V,'Aux Matriz de rendimiento'!A15)),0)","v":0},{"$f":"IFERROR(SUMIFS('Inventario general'!U:U,'Inventario general'!V:V,'Aux Matriz de rendimiento'!L13,'Inventario general'!W:W,'Aux Matriz de rendimiento'!A15)/(SUMIFS('Inventario general'!T:T,'Inventario general'!V:V,'Aux Matriz de rendimiento'!L13,'Inventario general'!W:W,'Aux Matriz de rendimiento'!A15)),0)","v":0},{"$f":"IFERROR(SUMIFS('Inventario general'!V:V,'Inventario general'!W:W,'Aux Matriz de rendimiento'!M13,'Inventario general'!X:X,'Aux Matriz de rendimiento'!A15)/(SUMIFS('Inventario general'!U:U,'Inventario general'!W:W,'Aux Matriz de rendimiento'!M13,'Inventario general'!X:X,'Aux Matriz de rendimiento'!A15)),0)","v":0}]
[null,{"$f":"IFERROR(SUMIF('Inventario general'!$F$10:$H$17,A16,'Inventario general'!$M$10:$M$17)/(SUMIF('Inventario general'!$F$10:$H$17,A16,'Inventario general'!$L$10:$L$17)),0)","v":0},{"$f":"IFERROR(SUMIF('Inventario general'!$F$23:$H$30,A16,'Inventario general'!$M$23:$M$30)/(SUMIF('Inventario general'!$F$23:$H$30,A16,'Inventario general'!$L$23:$L$30)),0)","v":0},{"$f":"IFERROR(SUMIFS('Inventario general'!M:M,'Inventario general'!N:N,'Aux Matriz de rendimiento'!D14,'Inventario general'!O:O,'Aux Matriz de rendimiento'!A16)/(SUMIFS('Inventario general'!L:L,'Inventario general'!N:N,'Aux Matriz de rendimiento'!D14,'Inventario general'!O:O,'Aux Matriz de rendimiento'!A16)),0)","v":0},{"$f":"IFERROR(SUMIFS('Inventario general'!N:N,'Inventario general'!O:O,'Aux Matriz de rendimiento'!E14,'Inventario general'!P:P,'Aux Matriz de rendimiento'!A16)/(SUMIFS('Inventario general'!M:M,'Inventario general'!O:O,'Aux Matriz de rendimiento'!E14,'Inventario general'!P:P,'Aux Matriz de rendimiento'!A16)),0)","v":0},{"$f":"IFERROR(SUMIFS('Inventario general'!O:O,'Inventario general'!P:P,'Aux Matriz de rendimiento'!F14,'Inventario general'!Q:Q,'Aux Matriz de rendimiento'!A16)/(SUMIFS('Inventario general'!N:N,'Inventario general'!P:P,'Aux Matriz de rendimiento'!F14,'Inventario general'!Q:Q,'Aux Matriz de rendimiento'!C16)),0)","v":0},{"$f":"IFERROR(SUMIFS('Inventario general'!P:P,'Inventario general'!Q:Q,'Aux Matriz de rendimiento'!G14,'Inventario general'!R:R,'Aux Matriz de rendimiento'!A16)/(SUMIFS('Inventario general'!O:O,'Inventario general'!Q:Q,'Aux Matriz de rendimiento'!G14,'Inventario general'!R:R,'Aux Matriz de rendimiento'!A16)),0)","v":0},{"$f":"IFERROR(SUMIFS('Inventario general'!Q:Q,'Inventario general'!R:R,'Aux Matriz de rendimiento'!H14,'Inventario general'!S:S,'Aux Matriz de rendimiento'!A16)/(SUMIFS('Inventario general'!P:P,'Inventario general'!R:R,'Aux Matriz de rendimiento'!H14,'Inventario general'!S:S,'Aux Matriz de rendimiento'!A16)),0)","v":0},{"$f":"IFERROR(SUMIFS('Inventario general'!R:R,'Inventario general'!S:S,'Aux Matriz de rendimiento'!I14,'Inventario general'!T:T,'Aux Matriz de rendimiento'!A16)/(SUMIFS('Inventario general'!Q:Q,'Inventario general'!S:S,'Aux Matriz de rendimiento'!I14,'Inventario general'!T:T,'Aux Matriz de rendimiento'!A16)),0)","v":0},{"$f":"IFERROR(SUMIFS('Inventario general'!S:S,'Inventario general'!T:T,'Aux Matriz de rendimiento'!J14,'Inventario general'!U:U,'Aux Matriz de rendimiento'!A16)/(SUMIFS('Inventario general'!R:R,'Inventario general'!T:T,'Aux Matriz de rendimiento'!J14,'Inventario general'!U:U,'Aux Matriz de rendimiento'!A16)),0)","v":0},{"$f":"IFERROR(SUMIFS('Inventario general'!T:T,'Inventario general'!U:U,'Aux Matriz de rendimiento'!K14,'Inventario general'!V:V,'Aux Matriz de rendimiento'!A16)/(SUMIFS('Inventario general'!S:S,'Inventario general'!U:U,'Aux Matriz de rendimiento'!K14,'Inventario general'!V:V,'Aux Matriz de rendimiento'!A16)),0)","v":0},{"$f":"IFERROR(SUMIFS('Inventario general'!U:U,'Inventario general'!V:V,'Aux Matriz de rendimiento'!L14,'Inventario general'!W:W,'Aux Matriz de rendimiento'!A16)/(SUMIFS('Inventario general'!T:T,'Inventario general'!V:V,'Aux Matriz de rendimiento'!L14,'Inventario general'!W:W,'Aux Matriz de rendimiento'!A16)),0)","v":0},{"$f":"IFERROR(SUMIFS('Inventario general'!V:V,'Inventario general'!W:W,'Aux Matriz de rendimiento'!M14,'Inventario general'!X:X,'Aux Matriz de rendimiento'!A16)/(SUMIFS('Inventario general'!U:U,'Inventario general'!W:W,'Aux Matriz de rendimiento'!M14,'Inventario general'!X:X,'Aux Matriz de rendimiento'!A16)),0)","v":0}]
[null,{"$f":"IFERROR(SUMIF('Inventario general'!$F$10:$H$17,A17,'Inventario general'!$M$10:$M$17)/(SUMIF('Inventario general'!$F$10:$H$17,A17,'Inventario general'!$L$10:$L$17)),0)","v":0},{"$f":"IFERROR(SUMIF('Inventario general'!$F$23:$H$30,A17,'Inventario general'!$M$23:$M$30)/(SUMIF('Inventario general'!$F$23:$H$30,A17,'Inventario general'!$L$23:$L$30)),0)","v":0},{"$f":"IFERROR(SUMIFS('Inventario general'!M:M,'Inventario general'!N:N,'Aux Matriz de rendimiento'!D15,'Inventario general'!O:O,'Aux Matriz de rendimiento'!A17)/(SUMIFS('Inventario general'!L:L,'Inventario general'!N:N,'Aux Matriz de rendimiento'!D15,'Inventario general'!O:O,'Aux Matriz de rendimiento'!A17)),0)","v":0},{"$f":"IFERROR(SUMIFS('Inventario general'!N:N,'Inventario general'!O:O,'Aux Matriz de rendimiento'!E15,'Inventario general'!P:P,'Aux Matriz de rendimiento'!A17)/(SUMIFS('Inventario general'!M:M,'Inventario general'!O:O,'Aux Matriz de rendimiento'!E15,'Inventario general'!P:P,'Aux Matriz de rendimiento'!A17)),0)","v":0},{"$f":"IFERROR(SUMIFS('Inventario general'!O:O,'Inventario general'!P:P,'Aux Matriz de rendimiento'!F15,'Inventario general'!Q:Q,'Aux Matriz de rendimiento'!A17)/(SUMIFS('Inventario general'!N:N,'Inventario general'!P:P,'Aux Matriz de rendimiento'!F15,'Inventario general'!Q:Q,'Aux Matriz de rendimiento'!C17)),0)","v":0},{"$f":"IFERROR(SUMIFS('Inventario general'!P:P,'Inventario general'!Q:Q,'Aux Matriz de rendimiento'!G15,'Inventario general'!R:R,'Aux Matriz de rendimiento'!A17)/(SUMIFS('Inventario general'!O:O,'Inventario general'!Q:Q,'Aux Matriz de rendimiento'!G15,'Inventario general'!R:R,'Aux Matriz de rendimiento'!A17)),0)","v":0},{"$f":"IFERROR(SUMIFS('Inventario general'!Q:Q,'Inventario general'!R:R,'Aux Matriz de rendimiento'!H15,'Inventario general'!S:S,'Aux Matriz de rendimiento'!A17)/(SUMIFS('Inventario general'!P:P,'Inventario general'!R:R,'Aux Matriz de rendimiento'!H15,'Inventario general'!S:S,'Aux Matriz de rendimiento'!A17)),0)","v":0},{"$f":"IFERROR(SUMIFS('Inventario general'!R:R,'Inventario general'!S:S,'Aux Matriz de rendimiento'!I15,'Inventario general'!T:T,'Aux Matriz de rendimiento'!A17)/(SUMIFS('Inventario general'!Q:Q,'Inventario general'!S:S,'Aux Matriz de rendimiento'!I15,'Inventario general'!T:T,'Aux Matriz de rendimiento'!A17)),0)","v":0},{"$f":"IFERROR(SUMIFS('Inventario general'!S:S,'Inventario general'!T:T,'Aux Matriz de rendimiento'!J15,'Inventario general'!U:U,'Aux Matriz de rendimiento'!A17)/(SUMIFS('Inventario general'!R:R,'Inventario general'!T:T,'Aux Matriz de rendimiento'!J15,'Inventario general'!U:U,'Aux Matriz de rendimiento'!A17)),0)","v":0},{"$f":"IFERROR(SUMIFS('Inventario general'!T:T,'Inventario general'!U:U,'Aux Matriz de rendimiento'!K15,'Inventario general'!V:V,'Aux Matriz de rendimiento'!A17)/(SUMIFS('Inventario general'!S:S,'Inventario general'!U:U,'Aux Matriz de rendimiento'!K15,'Inventario general'!V:V,'Aux Matriz de rendimiento'!A17)),0)","v":0},{"$f":"IFERROR(SUMIFS('Inventario general'!U:U,'Inventario general'!V:V,'Aux Matriz de rendimiento'!L15,'Inventario general'!W:W,'Aux Matriz de rendimiento'!A17)/(SUMIFS('Inventario general'!T:T,'Inventario general'!V:V,'Aux Matriz de rendimiento'!L15,'Inventario general'!W:W,'Aux Matriz de rendimiento'!A17)),0)","v":0},{"$f":"IFERROR(SUMIFS('Inventario general'!V:V,'Inventario general'!W:W,'Aux Matriz de rendimiento'!M15,'Inventario general'!X:X,'Aux Matriz de rendimiento'!A17)/(SUMIFS('Inventario general'!U:U,'Inventario general'!W:W,'Aux Matriz de rendimiento'!M15,'Inventario general'!X:X,'Aux Matriz de rendimiento'!A17)),0)","v":0}]
[null,{"$f":"IFERROR(SUMIF('Inventario general'!$F$10:$H$17,A18,'Inventario general'!$M$10:$M$17)/(SUMIF('Inventario general'!$F$10:$H$17,A18,'Inventario general'!$L$10:$L$17)),0)","v":0},{"$f":"IFERROR(SUMIF('Inventario general'!$F$23:$H$30,A18,'Inventario general'!$M$23:$M$30)/(SUMIF('Inventario general'!$F$23:$H$30,A18,'Inventario general'!$L$23:$L$30)),0)","v":0},{"$f":"IFERROR(SUMIFS('Inventario general'!M:M,'Inventario general'!N:N,'Aux Matriz de rendimiento'!D16,'Inventario general'!O:O,'Aux Matriz de rendimiento'!A18)/(SUMIFS('Inventario general'!L:L,'Inventario general'!N:N,'Aux Matriz de rendimiento'!D16,'Inventario general'!O:O,'Aux Matriz de rendimiento'!A18)),0)","v":0},{"$f":"IFERROR(SUMIFS('Inventario general'!N:N,'Inventario general'!O:O,'Aux Matriz de rendimiento'!E16,'Inventario general'!P:P,'Aux Matriz de rendimiento'!A18)/(SUMIFS('Inventario general'!M:M,'Inventario general'!O:O,'Aux Matriz de rendimiento'!E16,'Inventario general'!P:P,'Aux Matriz de rendimiento'!A18)),0)","v":0},{"$f":"IFERROR(SUMIFS('Inventario general'!O:O,'Inventario general'!P:P,'Aux Matriz de rendimiento'!F16,'Inventario general'!Q:Q,'Aux Matriz de rendimiento'!A18)/(SUMIFS('Inventario general'!N:N,'Inventario general'!P:P,'Aux Matriz de rendimiento'!F16,'Inventario general'!Q:Q,'Aux Matriz de rendimiento'!C18)),0)","v":0},{"$f":"IFERROR(SUMIFS('Inventario general'!P:P,'Inventario general'!Q:Q,'Aux Matriz de rendimiento'!G16,'Inventario general'!R:R,'Aux Matriz de rendimiento'!A18)/(SUMIFS('Inventario general'!O:O,'Inventario general'!Q:Q,'Aux Matriz de rendimiento'!G16,'Inventario general'!R:R,'Aux Matriz de rendimiento'!A18)),0)","v":0},{"$f":"IFERROR(SUMIFS('Inventario general'!Q:Q,'Inventario general'!R:R,'Aux Matriz de rendimiento'!H16,'Inventario general'!S:S,'Aux Matriz de rendimiento'!A18)/(SUMIFS('Inventario general'!P:P,'Inventario general'!R:R,'Aux Matriz de rendimiento'!H16,'Inventario general'!S:S,'Aux Matriz de rendimiento'!A18)),0)","v":0},{"$f":"IFERROR(SUMIFS('Inventario general'!R:R,'Inventario general'!S:S,'Aux Matriz de rendimiento'!I16,'Inventario general'!T:T,'Aux Matriz de rendimiento'!A18)/(SUMIFS('Inventario general'!Q:Q,'Inventario general'!S:S,'Aux Matriz de rendimiento'!I16,'Inventario general'!T:T,'Aux Matriz de rendimiento'!A18)),0)","v":0},{"$f":"IFERROR(SUMIFS('Inventario general'!S:S,'Inventario general'!T:T,'Aux Matriz de rendimiento'!J16,'Inventario general'!U:U,'Aux Matriz de rendimiento'!A18)/(SUMIFS('Inventario general'!R:R,'Inventario general'!T:T,'Aux Matriz de rendimiento'!J16,'Inventario general'!U:U,'Aux Matriz de rendimiento'!A18)),0)","v":0},{"$f":"IFERROR(SUMIFS('Inventario general'!T:T,'Inventario general'!U:U,'Aux Matriz de rendimiento'!K16,'Inventario general'!V:V,'Aux Matriz de rendimiento'!A18)/(SUMIFS('Inventario general'!S:S,'Inventario general'!U:U,'Aux Matriz de rendimiento'!K16,'Inventario general'!V:V,'Aux Matriz de rendimiento'!A18)),0)","v":0},{"$f":"IFERROR(SUMIFS('Inventario general'!U:U,'Inventario general'!V:V,'Aux Matriz de rendimiento'!L16,'Inventario general'!W:W,'Aux Matriz de rendimiento'!A18)/(SUMIFS('Inventario general'!T:T,'Inventario general'!V:V,'Aux Matriz de rendimiento'!L16,'Inventario general'!W:W,'Aux Matriz de rendimiento'!A18)),0)","v":0},{"$f":"IFERROR(SUMIFS('Inventario general'!V:V,'Inventario general'!W:W,'Aux Matriz de rendimiento'!M16,'Inventario general'!X:X,'Aux Matriz de rendimiento'!A18)/(SUMIFS('Inventario general'!U:U,'Inventario general'!W:W,'Aux Matriz de rendimiento'!M16,'Inventario general'!X:X,'Aux Matriz de rendimiento'!A18)),0)","v":0}]
[null,{"$f":"IFERROR(SUMIF('Inventario general'!$F$10:$H$17,A19,'Inventario general'!$M$10:$M$17)/(SUMIF('Inventario general'!$F$10:$H$17,A19,'Inventario general'!$L$10:$L$17)),0)","v":0},{"$f":"IFERROR(SUMIF('Inventario general'!$F$23:$H$30,A19,'Inventario general'!$M$23:$M$30)/(SUMIF('Inventario general'!$F$23:$H$30,A19,'Inventario general'!$L$23:$L$30)),0)","v":0},{"$f":"IFERROR(SUMIFS('Inventario general'!M:M,'Inventario general'!N:N,'Aux Matriz de rendimiento'!D17,'Inventario general'!O:O,'Aux Matriz de rendimiento'!A19)/(SUMIFS('Inventario general'!L:L,'Inventario general'!N:N,'Aux Matriz de rendimiento'!D17,'Inventario general'!O:O,'Aux Matriz de rendimiento'!A19)),0)","v":0},{"$f":"IFERROR(SUMIFS('Inventario general'!N:N,'Inventario general'!O:O,'Aux Matriz de rendimiento'!E17,'Inventario general'!P:P,'Aux Matriz de rendimiento'!A19)/(SUMIFS('Inventario general'!M:M,'Inventario general'!O:O,'Aux Matriz de rendimiento'!E17,'Inventario general'!P:P,'Aux Matriz de rendimiento'!A19)),0)","v":0},{"$f":"IFERROR(SUMIFS('Inventario general'!O:O,'Inventario general'!P:P,'Aux Matriz de rendimiento'!F17,'Inventario general'!Q:Q,'Aux Matriz de rendimiento'!A19)/(SUMIFS('Inventario general'!N:N,'Inventario general'!P:P,'Aux Matriz de rendimiento'!F17,'Inventario general'!Q:Q,'Aux Matriz de rendimiento'!C19)),0)","v":0},{"$f":"IFERROR(SUMIFS('Inventario general'!P:P,'Inventario general'!Q:Q,'Aux Matriz de rendimiento'!G17,'Inventario general'!R:R,'Aux Matriz de rendimiento'!A19)/(SUMIFS('Inventario general'!O:O,'Inventario general'!Q:Q,'Aux Matriz de rendimiento'!G17,'Inventario general'!R:R,'Aux Matriz de rendimiento'!A19)),0)","v":0},{"$f":"IFERROR(SUMIFS('Inventario general'!Q:Q,'Inventario general'!R:R,'Aux Matriz de rendimiento'!H17,'Inventario general'!S:S,'Aux Matriz de rendimiento'!A19)/(SUMIFS('Inventario general'!P:P,'Inventario general'!R:R,'Aux Matriz de rendimiento'!H17,'Inventario general'!S:S,'Aux Matriz de rendimiento'!A19)),0)","v":0},{"$f":"IFERROR(SUMIFS('Inventario general'!R:R,'Inventario general'!S:S,'Aux Matriz de rendimiento'!I17,'Inventario general'!T:T,'Aux Matriz de rendimiento'!A19)/(SUMIFS('Inventario general'!Q:Q,'Inventario general'!S:S,'Aux Matriz de rendimiento'!I17,'Inventario general'!T:T,'Aux Matriz de rendimiento'!A19)),0)","v":0},{"$f":"IFERROR(SUMIFS('Inventario general'!S:S,'Inventario general'!T:T,'Aux Matriz de rendimiento'!J17,'Inventario general'!U:U,'Aux Matriz de rendimiento'!A19)/(SUMIFS('Inventario general'!R:R,'Inventario general'!T:T,'Aux Matriz de rendimiento'!J17,'Inventario general'!U:U,'Aux Matriz de rendimiento'!A19)),0)","v":0},{"$f":"IFERROR(SUMIFS('Inventario general'!T:T,'Inventario general'!U:U,'Aux Matriz de rendimiento'!K17,'Inventario general'!V:V,'Aux Matriz de rendimiento'!A19)/(SUMIFS('Inventario general'!S:S,'Inventario general'!U:U,'Aux Matriz de rendimiento'!K17,'Inventario general'!V:V,'Aux Matriz de rendimiento'!A19)),0)","v":0},{"$f":"IFERROR(SUMIFS('Inventario general'!U:U,'Inventario general'!V:V,'Aux Matriz de rendimiento'!L17,'Inventario general'!W:W,'Aux Matriz de rendimiento'!A19)/(SUMIFS('Inventario general'!T:T,'Inventario general'!V:V,'Aux Matriz de rendimiento'!L17,'Inventario general'!W:W,'Aux Matriz de rendimiento'!A19)),0)","v":0},{"$f":"IFERROR(SUMIFS('Inventario general'!V:V,'Inventario general'!W:W,'Aux Matriz de rendimiento'!M17,'Inventario general'!X:X,'Aux Matriz de rendimiento'!A19)/(SUMIFS('Inventario general'!U:U,'Inventario general'!W:W,'Aux Matriz de rendimiento'!M17,'Inventario general'!X:X,'Aux Matriz de rendimiento'!A19)),0)","v":0}]
[null,{"$f":"IFERROR(SUMIF('Inventario general'!$F$10:$H$17,A20,'Inventario general'!$M$10:$M$17)/(SUMIF('Inventario general'!$F$10:$H$17,A20,'Inventario general'!$L$10:$L$17)),0)","v":0},{"$f":"IFERROR(SUMIF('Inventario general'!$F$23:$H$30,A20,'Inventario general'!$M$23:$M$30)/(SUMIF('Inventario general'!$F$23:$H$30,A20,'Inventario general'!$L$23:$L$30)),0)","v":0},{"$f":"IFERROR(SUMIFS('Inventario general'!M:M,'Inventario general'!N:N,'Aux Matriz de rendimiento'!D18,'Inventario general'!O:O,'Aux Matriz de rendimiento'!A20)/(SUMIFS('Inventario general'!L:L,'Inventario general'!N:N,'Aux Matriz de rendimiento'!D18,'Inventario general'!O:O,'Aux Matriz de rendimiento'!A20)),0)","v":0},{"$f":"IFERROR(SUMIFS('Inventario general'!N:N,'Inventario general'!O:O,'Aux Matriz de rendimiento'!E18,'Inventario general'!P:P,'Aux Matriz de rendimiento'!A20)/(SUMIFS('Inventario general'!M:M,'Inventario general'!O:O,'Aux Matriz de rendimiento'!E18,'Inventario general'!P:P,'Aux Matriz de rendimiento'!A20)),0)","v":0},{"$f":"IFERROR(SUMIFS('Inventario general'!O:O,'Inventario general'!P:P,'Aux Matriz de rendimiento'!F18,'Inventario general'!Q:Q,'Aux Matriz de rendimiento'!A20)/(SUMIFS('Inventario general'!N:N,'Inventario general'!P:P,'Aux Matriz de rendimiento'!F18,'Inventario general'!Q:Q,'Aux Matriz de rendimiento'!C20)),0)","v":0},{"$f":"IFERROR(SUMIFS('Inventario general'!P:P,'Inventario general'!Q:Q,'Aux Matriz de rendimiento'!G18,'Inventario general'!R:R,'Aux Matriz de rendimiento'!A20)/(SUMIFS('Inventario general'!O:O,'Inventario general'!Q:Q,'Aux Matriz de rendimiento'!G18,'Inventario general'!R:R,'Aux Matriz de rendimiento'!A20)),0)","v":0},{"$f":"IFERROR(SUMIFS('Inventario general'!Q:Q,'Inventario general'!R:R,'Aux Matriz de rendimiento'!H18,'Inventario general'!S:S,'Aux Matriz de rendimiento'!A20)/(SUMIFS('Inventario general'!P:P,'Inventario general'!R:R,'Aux Matriz de rendimiento'!H18,'Inventario general'!S:S,'Aux Matriz de rendimiento'!A20)),0)","v":0},{"$f":"IFERROR(SUMIFS('Inventario general'!R:R,'Inventario general'!S:S,'Aux Matriz de rendimiento'!I18,'Inventario general'!T:T,'Aux Matriz de rendimiento'!A20)/(SUMIFS('Inventario general'!Q:Q,'Inventario general'!S:S,'Aux Matriz de rendimiento'!I18,'Inventario general'!T:T,'Aux Matriz de rendimiento'!A20)),0)","v":0},{"$f":"IFERROR(SUMIFS('Inventario general'!S:S,'Inventario general'!T:T,'Aux Matriz de rendimiento'!J18,'Inventario general'!U:U,'Aux Matriz de rendimiento'!A20)/(SUMIFS('Inventario general'!R:R,'Inventario general'!T:T,'Aux Matriz de rendimiento'!J18,'Inventario general'!U:U,'Aux Matriz de rendimiento'!A20)),0)","v":0},{"$f":"IFERROR(SUMIFS('Inventario general'!T:T,'Inventario general'!U:U,'Aux Matriz de rendimiento'!K18,'Inventario general'!V:V,'Aux Matriz de rendimiento'!A20)/(SUMIFS('Inventario general'!S:S,'Inventario general'!U:U,'Aux Matriz de rendimiento'!K18,'Inventario general'!V:V,'Aux Matriz de rendimiento'!A20)),0)","v":0},{"$f":"IFERROR(SUMIFS('Inventario general'!U:U,'Inventario general'!V:V,'Aux Matriz de rendimiento'!L18,'Inventario general'!W:W,'Aux Matriz de rendimiento'!A20)/(SUMIFS('Inventario general'!T:T,'Inventario general'!V:V,'Aux Matriz de rendimiento'!L18,'Inventario general'!W:W,'Aux Matriz de rendimiento'!A20)),0)","v":0},{"$f":"IFERROR(SUMIFS('Inventario general'!V:V,'Inventario general'!W:W,'Aux Matriz de rendimiento'!M18,'Inventario general'!X:X,'Aux Matriz de rendimiento'!A20)/(SUMIFS('Inventario general'!U:U,'Inventario general'!W:W,'Aux Matriz de rendimiento'!M18,'Inventario general'!X:X,'Aux Matriz de rendimiento'!A20)),0)","v":0}]
[null,{"$f":"IFERROR(SUMIF('Inventario general'!$F$10:$H$17,A21,'Inventario general'!$M$10:$M$17)/(SUMIF('Inventario general'!$F$10:$H$17,A21,'Inventario general'!$L$10:$L$17)),0)","v":0},{"$f":"IFERROR(SUMIF('Inventario general'!$F$23:$H$30,A21,'Inventario general'!$M$23:$M$30)/(SUMIF('Inventario general'!$F$23:$H$30,A21,'Inventario general'!$L$23:$L$30)),0)","v":0},{"$f":"IFERROR(SUMIFS('Inventario general'!M:M,'Inventario general'!N:N,'Aux Matriz de rendimiento'!D19,'Inventario general'!O:O,'Aux Matriz de rendimiento'!A21)/(SUMIFS('Inventario general'!L:L,'Inventario general'!N:N,'Aux Matriz de rendimiento'!D19,'Inventario general'!O:O,'Aux Matriz de rendimiento'!A21)),0)","v":0},{"$f":"IFERROR(SUMIFS('Inventario general'!N:N,'Inventario general'!O:O,'Aux Matriz de rendimiento'!E19,'Inventario general'!P:P,'Aux Matriz de rendimiento'!A21)/(SUMIFS('Inventario general'!M:M,'Inventario general'!O:O,'Aux Matriz de rendimiento'!E19,'Inventario general'!P:P,'Aux Matriz de rendimiento'!A21)),0)","v":0},{"$f":"IFERROR(SUMIFS('Inventario general'!O:O,'Inventario general'!P:P,'Aux Matriz de rendimiento'!F19,'Inventario general'!Q:Q,'Aux Matriz de rendimiento'!A21)/(SUMIFS('Inventario general'!N:N,'Inventario general'!P:P,'Aux Matriz de rendimiento'!F19,'Inventario general'!Q:Q,'Aux Matriz de rendimiento'!C21)),0)","v":0},{"$f":"IFERROR(SUMIFS('Inventario general'!P:P,'Inventario general'!Q:Q,'Aux Matriz de rendimiento'!G19,'Inventario general'!R:R,'Aux Matriz de rendimiento'!A21)/(SUMIFS('Inventario general'!O:O,'Inventario general'!Q:Q,'Aux Matriz de rendimiento'!G19,'Inventario general'!R:R,'Aux Matriz de rendimiento'!A21)),0)","v":0},{"$f":"IFERROR(SUMIFS('Inventario general'!Q:Q,'Inventario general'!R:R,'Aux Matriz de rendimiento'!H19,'Inventario general'!S:S,'Aux Matriz de rendimiento'!A21)/(SUMIFS('Inventario general'!P:P,'Inventario general'!R:R,'Aux Matriz de rendimiento'!H19,'Inventario general'!S:S,'Aux Matriz de rendimiento'!A21)),0)","v":0},{"$f":"IFERROR(SUMIFS('Inventario general'!R:R,'Inventario general'!S:S,'Aux Matriz de rendimiento'!I19,'Inventario general'!T:T,'Aux Matriz de rendimiento'!A21)/(SUMIFS('Inventario general'!Q:Q,'Inventario general'!S:S,'Aux Matriz de rendimiento'!I19,'Inventario general'!T:T,'Aux Matriz de rendimiento'!A21)),0)","v":0},{"$f":"IFERROR(SUMIFS('Inventario general'!S:S,'Inventario general'!T:T,'Aux Matriz de rendimiento'!J19,'Inventario general'!U:U,'Aux Matriz de rendimiento'!A21)/(SUMIFS('Inventario general'!R:R,'Inventario general'!T:T,'Aux Matriz de rendimiento'!J19,'Inventario general'!U:U,'Aux Matriz de rendimiento'!A21)),0)","v":0},{"$f":"IFERROR(SUMIFS('Inventario general'!T:T,'Inventario general'!U:U,'Aux Matriz de rendimiento'!K19,'Inventario general'!V:V,'Aux Matriz de rendimiento'!A21)/(SUMIFS('Inventario general'!S:S,'Inventario general'!U:U,'Aux Matriz de rendimiento'!K19,'Inventario general'!V:V,'Aux Matriz de rendimiento'!A21)),0)","v":0},{"$f":"IFERROR(SUMIFS('Inventario general'!U:U,'Inventario general'!V:V,'Aux Matriz de rendimiento'!L19,'Inventario general'!W:W,'Aux Matriz de rendimiento'!A21)/(SUMIFS('Inventario general'!T:T,'Inventario general'!V:V,'Aux Matriz de rendimiento'!L19,'Inventario general'!W:W,'Aux Matriz de rendimiento'!A21)),0)","v":0},{"$f":"IFERROR(SUMIFS('Inventario general'!V:V,'Inventario general'!W:W,'Aux Matriz de rendimiento'!M19,'Inventario general'!X:X,'Aux Matriz de rendimiento'!A21)/(SUMIFS('Inventario general'!U:U,'Inventario general'!W:W,'Aux Matriz de rendimiento'!M19,'Inventario general'!X:X,'Aux Matriz de rendimiento'!A21)),0)","v":0}]
[null,{"$f":"IFERROR(SUMIF('Inventario general'!$F$10:$H$17,A22,'Inventario general'!$M$10:$M$17)/(SUMIF('Inventario general'!$F$10:$H$17,A22,'Inventario general'!$L$10:$L$17)),0)","v":0},{"$f":"IFERROR(SUMIF('Inventario general'!$F$23:$H$30,A22,'Inventario general'!$M$23:$M$30)/(SUMIF('Inventario general'!$F$23:$H$30,A22,'Inventario general'!$L$23:$L$30)),0)","v":0},{"$f":"IFERROR(SUMIFS('Inventario general'!M:M,'Inventario general'!N:N,'Aux Matriz de rendimiento'!D20,'Inventario general'!O:O,'Aux Matriz de rendimiento'!A22)/(SUMIFS('Inventario general'!L:L,'Inventario general'!N:N,'Aux Matriz de rendimiento'!D20,'Inventario general'!O:O,'Aux Matriz de rendimiento'!A22)),0)","v":0},{"$f":"IFERROR(SUMIFS('Inventario general'!N:N,'Inventario general'!O:O,'Aux Matriz de rendimiento'!E20,'Inventario general'!P:P,'Aux Matriz de rendimiento'!A22)/(SUMIFS('Inventario general'!M:M,'Inventario general'!O:O,'Aux Matriz de rendimiento'!E20,'Inventario general'!P:P,'Aux Matriz de rendimiento'!A22)),0)","v":0},{"$f":"IFERROR(SUMIFS('Inventario general'!O:O,'Inventario general'!P:P,'Aux Matriz de rendimiento'!F20,'Inventario general'!Q:Q,'Aux Matriz de rendimiento'!A22)/(SUMIFS('Inventario general'!N:N,'Inventario general'!P:P,'Aux Matriz de rendimiento'!F20,'Inventario general'!Q:Q,'Aux Matriz de rendimiento'!C22)),0)","v":0},{"$f":"IFERROR(SUMIFS('Inventario general'!P:P,'Inventario general'!Q:Q,'Aux Matriz de rendimiento'!G20,'Inventario general'!R:R,'Aux Matriz de rendimiento'!A22)/(SUMIFS('Inventario general'!O:O,'Inventario general'!Q:Q,'Aux Matriz de rendimiento'!G20,'Inventario general'!R:R,'Aux Matriz de rendimiento'!A22)),0)","v":0},{"$f":"IFERROR(SUMIFS('Inventario general'!Q:Q,'Inventario general'!R:R,'Aux Matriz de rendimiento'!H20,'Inventario general'!S:S,'Aux Matriz de rendimiento'!A22)/(SUMIFS('Inventario general'!P:P,'Inventario general'!R:R,'Aux Matriz de rendimiento'!H20,'Inventario general'!S:S,'Aux Matriz de rendimiento'!A22)),0)","v":0},{"$f":"IFERROR(SUMIFS('Inventario general'!R:R,'Inventario general'!S:S,'Aux Matriz de rendimiento'!I20,'Inventario general'!T:T,'Aux Matriz de rendimiento'!A22)/(SUMIFS('Inventario general'!Q:Q,'Inventario general'!S:S,'Aux Matriz de rendimiento'!I20,'Inventario general'!T:T,'Aux Matriz de rendimiento'!A22)),0)","v":0},{"$f":"IFERROR(SUMIFS('Inventario general'!S:S,'Inventario general'!T:T,'Aux Matriz de rendimiento'!J20,'Inventario general'!U:U,'Aux Matriz de rendimiento'!A22)/(SUMIFS('Inventario general'!R:R,'Inventario general'!T:T,'Aux Matriz de rendimiento'!J20,'Inventario general'!U:U,'Aux Matriz de rendimiento'!A22)),0)","v":0},{"$f":"IFERROR(SUMIFS('Inventario general'!T:T,'Inventario general'!U:U,'Aux Matriz de rendimiento'!K20,'Inventario general'!V:V,'Aux Matriz de rendimiento'!A22)/(SUMIFS('Inventario general'!S:S,'Inventario general'!U:U,'Aux Matriz de rendimiento'!K20,'Inventario general'!V:V,'Aux Matriz de rendimiento'!A22)),0)","v":0},{"$f":"IFERROR(SUMIFS('Inventario general'!U:U,'Inventario general'!V:V,'Aux Matriz de rendimiento'!L20,'Inventario general'!W:W,'Aux Matriz de rendimiento'!A22)/(SUMIFS('Inventario general'!T:T,'Inventario general'!V:V,'Aux Matriz de rendimiento'!L20,'Inventario general'!W:W,'Aux Matriz de rendimiento'!A22)),0)","v":0},{"$f":"IFERROR(SUMIFS('Inventario general'!V:V,'Inventario general'!W:W,'Aux Matriz de rendimiento'!M20,'Inventario general'!X:X,'Aux Matriz de rendimiento'!A22)/(SUMIFS('Inventario general'!U:U,'Inventario general'!W:W,'Aux Matriz de rendimiento'!M20,'Inventario general'!X:X,'Aux Matriz de rendimiento'!A22)),0)","v":0}]
[null,{"$f":"IFERROR(SUMIF('Inventario general'!$F$10:$H$17,A23,'Inventario general'!$M$10:$M$17)/(SUMIF('Inventario general'!$F$10:$H$17,A23,'Inventario general'!$L$10:$L$17)),0)","v":0},{"$f":"IFERROR(SUMIF('Inventario general'!$F$23:$H$30,A23,'Inventario general'!$M$23:$M$30)/(SUMIF('Inventario general'!$F$23:$H$30,A23,'Inventario general'!$L$23:$L$30)),0)","v":0},{"$f":"IFERROR(SUMIFS('Inventario general'!M:M,'Inventario general'!N:N,'Aux Matriz de rendimiento'!D21,'Inventario general'!O:O,'Aux Matriz de rendimiento'!A23)/(SUMIFS('Inventario general'!L:L,'Inventario general'!N:N,'Aux Matriz de rendimiento'!D21,'Inventario general'!O:O,'Aux Matriz de rendimiento'!A23)),0)","v":0},{"$f":"IFERROR(SUMIFS('Inventario general'!N:N,'Inventario general'!O:O,'Aux Matriz de rendimiento'!E21,'Inventario general'!P:P,'Aux Matriz de rendimiento'!A23)/(SUMIFS('Inventario general'!M:M,'Inventario general'!O:O,'Aux Matriz de rendimiento'!E21,'Inventario general'!P:P,'Aux Matriz de rendimiento'!A23)),0)","v":0},{"$f":"IFERROR(SUMIFS('Inventario general'!O:O,'Inventario general'!P:P,'Aux Matriz de rendimiento'!F21,'Inventario general'!Q:Q,'Aux Matriz de rendimiento'!A23)/(SUMIFS('Inventario general'!N:N,'Inventario general'!P:P,'Aux Matriz de rendimiento'!F21,'Inventario general'!Q:Q,'Aux Matriz de rendimiento'!C23)),0)","v":0},{"$f":"IFERROR(SUMIFS('Inventario general'!P:P,'Inventario general'!Q:Q,'Aux Matriz de rendimiento'!G21,'Inventario general'!R:R,'Aux Matriz de rendimiento'!A23)/(SUMIFS('Inventario general'!O:O,'Inventario general'!Q:Q,'Aux Matriz de rendimiento'!G21,'Inventario general'!R:R,'Aux Matriz de rendimiento'!A23)),0)","v":0},{"$f":"IFERROR(SUMIFS('Inventario general'!Q:Q,'Inventario general'!R:R,'Aux Matriz de rendimiento'!H21,'Inventario general'!S:S,'Aux Matriz de rendimiento'!A23)/(SUMIFS('Inventario general'!P:P,'Inventario general'!R:R,'Aux Matriz de rendimiento'!H21,'Inventario general'!S:S,'Aux Matriz de rendimiento'!A23)),0)","v":0},{"$f":"IFERROR(SUMIFS('Inventario general'!R:R,'Inventario general'!S:S,'Aux Matriz de rendimiento'!I21,'Inventario general'!T:T,'Aux Matriz de rendimiento'!A23)/(SUMIFS('Inventario general'!Q:Q,'Inventario general'!S:S,'Aux Matriz de rendimiento'!I21,'Inventario general'!T:T,'Aux Matriz de rendimiento'!A23)),0)","v":0},{"$f":"IFERROR(SUMIFS('Inventario general'!S:S,'Inventario general'!T:T,'Aux Matriz de rendimiento'!J21,'Inventario general'!U:U,'Aux Matriz de rendimiento'!A23)/(SUMIFS('Inventario general'!R:R,'Inventario general'!T:T,'Aux Matriz de rendimiento'!J21,'Inventario general'!U:U,'Aux Matriz de rendimiento'!A23)),0)","v":0},{"$f":"IFERROR(SUMIFS('Inventario general'!T:T,'Inventario general'!U:U,'Aux Matriz de rendimiento'!K21,'Inventario general'!V:V,'Aux Matriz de rendimiento'!A23)/(SUMIFS('Inventario general'!S:S,'Inventario general'!U:U,'Aux Matriz de rendimiento'!K21,'Inventario general'!V:V,'Aux Matriz de rendimiento'!A23)),0)","v":0},{"$f":"IFERROR(SUMIFS('Inventario general'!U:U,'Inventario general'!V:V,'Aux Matriz de rendimiento'!L21,'Inventario general'!W:W,'Aux Matriz de rendimiento'!A23)/(SUMIFS('Inventario general'!T:T,'Inventario general'!V:V,'Aux Matriz de rendimiento'!L21,'Inventario general'!W:W,'Aux Matriz de rendimiento'!A23)),0)","v":0},{"$f":"IFERROR(SUMIFS('Inventario general'!V:V,'Inventario general'!W:W,'Aux Matriz de rendimiento'!M21,'Inventario general'!X:X,'Aux Matriz de rendimiento'!A23)/(SUMIFS('Inventario general'!U:U,'Inventario general'!W:W,'Aux Matriz de rendimiento'!M21,'Inventario general'!X:X,'Aux Matriz de rendimiento'!A23)),0)","v":0}]
[null,{"$f":"IFERROR(SUMIF('Inventario general'!$F$10:$H$17,A24,'Inventario general'!$M$10:$M$17)/(SUMIF('Inventario general'!$F$10:$H$17,A24,'Inventario general'!$L$10:$L$17)),0)","v":0},{"$f":"IFERROR(SUMIF('Inventario general'!$F$23:$H$30,A24,'Inventario general'!$M$23:$M$30)/(SUMIF('Inventario general'!$F$23:$H$30,A24,'Inventario general'!$L$23:$L$30)),0)","v":0},{"$f":"IFERROR(SUMIFS('Inventario general'!M:M,'Inventario general'!N:N,'Aux Matriz de rendimiento'!D22,'Inventario general'!O:O,'Aux Matriz de rendimiento'!A24)/(SUMIFS('Inventario general'!L:L,'Inventario general'!N:N,'Aux Matriz de rendimiento'!D22,'Inventario general'!O:O,'Aux Matriz de rendimiento'!A24)),0)","v":0},{"$f":"IFERROR(SUMIFS('Inventario general'!N:N,'Inventario general'!O:O,'Aux Matriz de rendimiento'!E22,'Inventario general'!P:P,'Aux Matriz de rendimiento'!A24)/(SUMIFS('Inventario general'!M:M,'Inventario general'!O:O,'Aux Matriz de rendimiento'!E22,'Inventario general'!P:P,'Aux Matriz de rendimiento'!A24)),0)","v":0},{"$f":"IFERROR(SUMIFS('Inventario general'!O:O,'Inventario general'!P:P,'Aux Matriz de rendimiento'!F22,'Inventario general'!Q:Q,'Aux Matriz de rendimiento'!A24)/(SUMIFS('Inventario general'!N:N,'Inventario general'!P:P,'Aux Matriz de rendimiento'!F22,'Inventario general'!Q:Q,'Aux Matriz de rendimiento'!C24)),0)","v":0},{"$f":"IFERROR(SUMIFS('Inventario general'!P:P,'Inventario general'!Q:Q,'Aux Matriz de rendimiento'!G22,'Inventario general'!R:R,'Aux Matriz de rendimiento'!A24)/(SUMIFS('Inventario general'!O:O,'Inventario general'!Q:Q,'Aux Matriz de rendimiento'!G22,'Inventario general'!R:R,'Aux Matriz de rendimiento'!A24)),0)","v":0},{"$f":"IFERROR(SUMIFS('Inventario general'!Q:Q,'Inventario general'!R:R,'Aux Matriz de rendimiento'!H22,'Inventario general'!S:S,'Aux Matriz de rendimiento'!A24)/(SUMIFS('Inventario general'!P:P,'Inventario general'!R:R,'Aux Matriz de rendimiento'!H22,'Inventario general'!S:S,'Aux Matriz de rendimiento'!A24)),0)","v":0},{"$f":"IFERROR(SUMIFS('Inventario general'!R:R,'Inventario general'!S:S,'Aux Matriz de rendimiento'!I22,'Inventario general'!T:T,'Aux Matriz de rendimiento'!A24)/(SUMIFS('Inventario general'!Q:Q,'Inventario general'!S:S,'Aux Matriz de rendimiento'!I22,'Inventario general'!T:T,'Aux Matriz de rendimiento'!A24)),0)","v":0},{"$f":"IFERROR(SUMIFS('Inventario general'!S:S,'Inventario general'!T:T,'Aux Matriz de rendimiento'!J22,'Inventario general'!U:U,'Aux Matriz de rendimiento'!A24)/(SUMIFS('Inventario general'!R:R,'Inventario general'!T:T,'Aux Matriz de rendimiento'!J22,'Inventario general'!U:U,'Aux Matriz de rendimiento'!A24)),0)","v":0},{"$f":"IFERROR(SUMIFS('Inventario general'!T:T,'Inventario general'!U:U,'Aux Matriz de rendimiento'!K22,'Inventario general'!V:V,'Aux Matriz de rendimiento'!A24)/(SUMIFS('Inventario general'!S:S,'Inventario general'!U:U,'Aux Matriz de rendimiento'!K22,'Inventario general'!V:V,'Aux Matriz de rendimiento'!A24)),0)","v":0},{"$f":"IFERROR(SUMIFS('Inventario general'!U:U,'Inventario general'!V:V,'Aux Matriz de rendimiento'!L22,'Inventario general'!W:W,'Aux Matriz de rendimiento'!A24)/(SUMIFS('Inventario general'!T:T,'Inventario general'!V:V,'Aux Matriz de rendimiento'!L22,'Inventario general'!W:W,'Aux Matriz de rendimiento'!A24)),0)","v":0},{"$f":"IFERROR(SUMIFS('Inventario general'!V:V,'Inventario general'!W:W,'Aux Matriz de rendimiento'!M22,'Inventario general'!X:X,'Aux Matriz de rendimiento'!A24)/(SUMIFS('Inventario general'!U:U,'Inventario general'!W:W,'Aux Matriz de rendimiento'!M22,'Inventario general'!X:X,'Aux Matriz de rendimiento'!A24)),0)","v":0}]
[null,{"$f":"IFERROR(SUMIF('Inventario general'!$F$10:$H$17,A25,'Inventario general'!$M$10:$M$17)/(SUMIF('Inventario general'!$F$10:$H$17,A25,'Inventario general'!$L$10:$L$17)),0)","v":0},{"$f":"IFERROR(SUMIF('Inventario general'!$F$23:$H$30,A25,'Inventario general'!$M$23:$M$30)/(SUMIF('Inventario general'!$F$23:$H$30,A25,'Inventario general'!$L$23:$L$30)),0)","v":0},{"$f":"IFERROR(SUMIFS('Inventario general'!M:M,'Inventario general'!N:N,'Aux Matriz de rendimiento'!D23,'Inventario general'!O:O,'Aux Matriz de rendimiento'!A25)/(SUMIFS('Inventario general'!L:L,'Inventario general'!N:N,'Aux Matriz de rendimiento'!D23,'Inventario general'!O:O,'Aux Matriz de rendimiento'!A25)),0)","v":0},{"$f":"IFERROR(SUMIFS('Inventario general'!N:N,'Inventario general'!O:O,'Aux Matriz de rendimiento'!E23,'Inventario general'!P:P,'Aux Matriz de rendimiento'!A25)/(SUMIFS('Inventario general'!M:M,'Inventario general'!O:O,'Aux Matriz de rendimiento'!E23,'Inventario general'!P:P,'Aux Matriz de rendimiento'!A25)),0)","v":0},{"$f":"IFERROR(SUMIFS('Inventario general'!O:O,'Inventario general'!P:P,'Aux Matriz de rendimiento'!F23,'Inventario general'!Q:Q,'Aux Matriz de rendimiento'!A25)/(SUMIFS('Inventario general'!N:N,'Inventario general'!P:P,'Aux Matriz de rendimiento'!F23,'Inventario general'!Q:Q,'Aux Matriz de rendimiento'!C25)),0)","v":0},{"$f":"IFERROR(SUMIFS('Inventario general'!P:P,'Inventario general'!Q:Q,'Aux Matriz de rendimiento'!G23,'Inventario general'!R:R,'Aux Matriz de rendimiento'!A25)/(SUMIFS('Inventario general'!O:O,'Inventario general'!Q:Q,'Aux Matriz de rendimiento'!G23,'Inventario general'!R:R,'Aux Matriz de rendimiento'!A25)),0)","v":0},{"$f":"IFERROR(SUMIFS('Inventario general'!Q:Q,'Inventario general'!R:R,'Aux Matriz de rendimiento'!H23,'Inventario general'!S:S,'Aux Matriz de rendimiento'!A25)/(SUMIFS('Inventario general'!P:P,'Inventario general'!R:R,'Aux Matriz de rendimiento'!H23,'Inventario general'!S:S,'Aux Matriz de rendimiento'!A25)),0)","v":0},{"$f":"IFERROR(SUMIFS('Inventario general'!R:R,'Inventario general'!S:S,'Aux Matriz de rendimiento'!I23,'Inventario general'!T:T,'Aux Matriz de rendimiento'!A25)/(SUMIFS('Inventario general'!Q:Q,'Inventario general'!S:S,'Aux Matriz de rendimiento'!I23,'Inventario general'!T:T,'Aux Matriz de rendimiento'!A25)),0)","v":0},{"$f":"IFERROR(SUMIFS('Inventario general'!S:S,'Inventario general'!T:T,'Aux Matriz de rendimiento'!J23,'Inventario general'!U:U,'Aux Matriz de rendimiento'!A25)/(SUMIFS('Inventario general'!R:R,'Inventario general'!T:T,'Aux Matriz de rendimiento'!J23,'Inventario general'!U:U,'Aux Matriz de rendimiento'!A25)),0)","v":0},{"$f":"IFERROR(SUMIFS('Inventario general'!T:T,'Inventario general'!U:U,'Aux Matriz de rendimiento'!K23,'Inventario general'!V:V,'Aux Matriz de rendimiento'!A25)/(SUMIFS('Inventario general'!S:S,'Inventario general'!U:U,'Aux Matriz de rendimiento'!K23,'Inventario general'!V:V,'Aux Matriz de rendimiento'!A25)),0)","v":0},{"$f":"IFERROR(SUMIFS('Inventario general'!U:U,'Inventario general'!V:V,'Aux Matriz de rendimiento'!L23,'Inventario general'!W:W,'Aux Matriz de rendimiento'!A25)/(SUMIFS('Inventario general'!T:T,'Inventario general'!V:V,'Aux Matriz de rendimiento'!L23,'Inventario general'!W:W,'Aux Matriz de rendimiento'!A25)),0)","v":0},{"$f":"IFERROR(SUMIFS('Inventario general'!V:V,'Inventario general'!W:W,'Aux Matriz de rendimiento'!M23,'Inventario general'!X:X,'Aux Matriz de rendimiento'!A25)/(SUMIFS('Inventario general'!U:U,'Inventario general'!W:W,'Aux Matriz de rendimiento'!M23,'Inventario general'!X:X,'Aux Matriz de rendimiento'!A25)),0)","v":0}]
[null,{"$f":"IFERROR(SUMIF('Inventario general'!$F$10:$H$17,A26,'Inventario general'!$M$10:$M$17)/(SUMIF('Inventario general'!$F$10:$H$17,A26,'Inventario general'!$L$10:$L$17)),0)","v":0},{"$f":"IFERROR(SUMIF('Inventario general'!$F$23:$H$30,A26,'Inventario general'!$M$23:$M$30)/(SUMIF('Inventario general'!$F$23:$H$30,A26,'Inventario general'!$L$23:$L$30)),0)","v":0},{"$f":"IFERROR(SUMIFS('Inventario general'!M:M,'Inventario general'!N:N,'Aux Matriz de rendimiento'!D24,'Inventario general'!O:O,'Aux Matriz de rendimiento'!A26)/(SUMIFS('Inventario general'!L:L,'Inventario general'!N:N,'Aux Matriz de rendimiento'!D24,'Inventario general'!O:O,'Aux Matriz de rendimiento'!A26)),0)","v":0},{"$f":"IFERROR(SUMIFS('Inventario general'!N:N,'Inventario general'!O:O,'Aux Matriz de rendimiento'!E24,'Inventario general'!P:P,'Aux Matriz de rendimiento'!A26)/(SUMIFS('Inventario general'!M:M,'Inventario general'!O:O,'Aux Matriz de rendimiento'!E24,'Inventario general'!P:P,'Aux Matriz de rendimiento'!A26)),0)","v":0},{"$f":"IFERROR(SUMIFS('Inventario general'!O:O,'Inventario general'!P:P,'Aux Matriz de rendimiento'!F24,'Inventario general'!Q:Q,'Aux Matriz de rendimiento'!A26)/(SUMIFS('Inventario general'!N:N,'Inventario general'!P:P,'Aux Matriz de rendimiento'!F24,'Inventario general'!Q:Q,'Aux Matriz de rendimiento'!C26)),0)","v":0},{"$f":"IFERROR(SUMIFS('Inventario general'!P:P,'Inventario general'!Q:Q,'Aux Matriz de rendimiento'!G24,'Inventario general'!R:R,'Aux Matriz de rendimiento'!A26)/(SUMIFS('Inventario general'!O:O,'Inventario general'!Q:Q,'Aux Matriz de rendimiento'!G24,'Inventario general'!R:R,'Aux Matriz de rendimiento'!A26)),0)","v":0},{"$f":"IFERROR(SUMIFS('Inventario general'!Q:Q,'Inventario general'!R:R,'Aux Matriz de rendimiento'!H24,'Inventario general'!S:S,'Aux Matriz de rendimiento'!A26)/(SUMIFS('Inventario general'!P:P,'Inventario general'!R:R,'Aux Matriz de rendimiento'!H24,'Inventario general'!S:S,'Aux Matriz de rendimiento'!A26)),0)","v":0},{"$f":"IFERROR(SUMIFS('Inventario general'!R:R,'Inventario general'!S:S,'Aux Matriz de rendimiento'!I24,'Inventario general'!T:T,'Aux Matriz de rendimiento'!A26)/(SUMIFS('Inventario general'!Q:Q,'Inventario general'!S:S,'Aux Matriz de rendimiento'!I24,'Inventario general'!T:T,'Aux Matriz de rendimiento'!A26)),0)","v":0},{"$f":"IFERROR(SUMIFS('Inventario general'!S:S,'Inventario general'!T:T,'Aux Matriz de rendimiento'!J24,'Inventario general'!U:U,'Aux Matriz de rendimiento'!A26)/(SUMIFS('Inventario general'!R:R,'Inventario general'!T:T,'Aux Matriz de rendimiento'!J24,'Inventario general'!U:U,'Aux Matriz de rendimiento'!A26)),0)","v":0},{"$f":"IFERROR(SUMIFS('Inventario general'!T:T,'Inventario general'!U:U,'Aux Matriz de rendimiento'!K24,'Inventario general'!V:V,'Aux Matriz de rendimiento'!A26)/(SUMIFS('Inventario general'!S:S,'Inventario general'!U:U,'Aux Matriz de rendimiento'!K24,'Inventario general'!V:V,'Aux Matriz de rendimiento'!A26)),0)","v":0},{"$f":"IFERROR(SUMIFS('Inventario general'!U:U,'Inventario general'!V:V,'Aux Matriz de rendimiento'!L24,'Inventario general'!W:W,'Aux Matriz de rendimiento'!A26)/(SUMIFS('Inventario general'!T:T,'Inventario general'!V:V,'Aux Matriz de rendimiento'!L24,'Inventario general'!W:W,'Aux Matriz de rendimiento'!A26)),0)","v":0},{"$f":"IFERROR(SUMIFS('Inventario general'!V:V,'Inventario general'!W:W,'Aux Matriz de rendimiento'!M24,'Inventario general'!X:X,'Aux Matriz de rendimiento'!A26)/(SUMIFS('Inventario general'!U:U,'Inventario general'!W:W,'Aux Matriz de rendimiento'!M24,'Inventario general'!X:X,'Aux Matriz de rendimiento'!A26)),0)","v":0}]
[null,{"$f":"IFERROR(SUMIF('Inventario general'!$F$10:$H$17,A27,'Inventario general'!$M$10:$M$17)/(SUMIF('Inventario general'!$F$10:$H$17,A27,'Inventario general'!$L$10:$L$17)),0)","v":0},{"$f":"IFERROR(SUMIF('Inventario general'!$F$23:$H$30,A27,'Inventario general'!$M$23:$M$30)/(SUMIF('Inventario general'!$F$23:$H$30,A27,'Inventario general'!$L$23:$L$30)),0)","v":0},{"$f":"IFERROR(SUMIFS('Inventario general'!M:M,'Inventario general'!N:N,'Aux Matriz de rendimiento'!D25,'Inventario general'!O:O,'Aux Matriz de rendimiento'!A27)/(SUMIFS('Inventario general'!L:L,'Inventario general'!N:N,'Aux Matriz de rendimiento'!D25,'Inventario general'!O:O,'Aux Matriz de rendimiento'!A27)),0)","v":0},{"$f":"IFERROR(SUMIFS('Inventario general'!N:N,'Inventario general'!O:O,'Aux Matriz de rendimiento'!E25,'Inventario general'!P:P,'Aux Matriz de rendimiento'!A27)/(SUMIFS('Inventario general'!M:M,'Inventario general'!O:O,'Aux Matriz de rendimiento'!E25,'Inventario general'!P:P,'Aux Matriz de rendimiento'!A27)),0)","v":0},{"$f":"IFERROR(SUMIFS('Inventario general'!O:O,'Inventario general'!P:P,'Aux Matriz de rendimiento'!F25,'Inventario general'!Q:Q,'Aux Matriz de rendimiento'!A27)/(SUMIFS('Inventario general'!N:N,'Inventario general'!P:P,'Aux Matriz de rendimiento'!F25,'Inventario general'!Q:Q,'Aux Matriz de rendimiento'!C27)),0)","v":0},{"$f":"IFERROR(SUMIFS('Inventario general'!P:P,'Inventario general'!Q:Q,'Aux Matriz de rendimiento'!G25,'Inventario general'!R:R,'Aux Matriz de rendimiento'!A27)/(SUMIFS('Inventario general'!O:O,'Inventario general'!Q:Q,'Aux Matriz de rendimiento'!G25,'Inventario general'!R:R,'Aux Matriz de rendimiento'!A27)),0)","v":0},{"$f":"IFERROR(SUMIFS('Inventario general'!Q:Q,'Inventario general'!R:R,'Aux Matriz de rendimiento'!H25,'Inventario general'!S:S,'Aux Matriz de rendimiento'!A27)/(SUMIFS('Inventario general'!P:P,'Inventario general'!R:R,'Aux Matriz de rendimiento'!H25,'Inventario general'!S:S,'Aux Matriz de rendimiento'!A27)),0)","v":0},{"$f":"IFERROR(SUMIFS('Inventario general'!R:R,'Inventario general'!S:S,'Aux Matriz de rendimiento'!I25,'Inventario general'!T:T,'Aux Matriz de rendimiento'!A27)/(SUMIFS('Inventario general'!Q:Q,'Inventario general'!S:S,'Aux Matriz de rendimiento'!I25,'Inventario general'!T:T,'Aux Matriz de rendimiento'!A27)),0)","v":0},{"$f":"IFERROR(SUMIFS('Inventario general'!S:S,'Inventario general'!T:T,'Aux Matriz de rendimiento'!J25,'Inventario general'!U:U,'Aux Matriz de rendimiento'!A27)/(SUMIFS('Inventario general'!R:R,'Inventario general'!T:T,'Aux Matriz de rendimiento'!J25,'Inventario general'!U:U,'Aux Matriz de rendimiento'!A27)),0)","v":0},{"$f":"IFERROR(SUMIFS('Inventario general'!T:T,'Inventario general'!U:U,'Aux Matriz de rendimiento'!K25,'Inventario general'!V:V,'Aux Matriz de rendimiento'!A27)/(SUMIFS('Inventario general'!S:S,'Inventario general'!U:U,'Aux Matriz de rendimiento'!K25,'Inventario general'!V:V,'Aux Matriz de rendimiento'!A27)),0)","v":0},{"$f":"IFERROR(SUMIFS('Inventario general'!U:U,'Inventario general'!V:V,'Aux Matriz de rendimiento'!L25,'Inventario general'!W:W,'Aux Matriz de rendimiento'!A27)/(SUMIFS('Inventario general'!T:T,'Inventario general'!V:V,'Aux Matriz de rendimiento'!L25,'Inventario general'!W:W,'Aux Matriz de rendimiento'!A27)),0)","v":0},{"$f":"IFERROR(SUMIFS('Inventario general'!V:V,'Inventario general'!W:W,'Aux Matriz de rendimiento'!M25,'Inventario general'!X:X,'Aux Matriz de rendimiento'!A27)/(SUMIFS('Inventario general'!U:U,'Inventario general'!W:W,'Aux Matriz de rendimiento'!M25,'Inventario general'!X:X,'Aux Matriz de rendimiento'!A27)),0)","v":0}]
[null,{"$f":"IFERROR(SUMIF('Inventario general'!$F$10:$H$17,A28,'Inventario general'!$M$10:$M$17)/(SUMIF('Inventario general'!$F$10:$H$17,A28,'Inventario general'!$L$10:$L$17)),0)","v":0},{"$f":"IFERROR(SUMIF('Inventario general'!$F$23:$H$30,A28,'Inventario general'!$M$23:$M$30)/(SUMIF('Inventario general'!$F$23:$H$30,A28,'Inventario general'!$L$23:$L$30)),0)","v":0},{"$f":"IFERROR(SUMIFS('Inventario general'!M:M,'Inventario general'!N:N,'Aux Matriz de rendimiento'!D26,'Inventario general'!O:O,'Aux Matriz de rendimiento'!A28)/(SUMIFS('Inventario general'!L:L,'Inventario general'!N:N,'Aux Matriz de rendimiento'!D26,'Inventario general'!O:O,'Aux Matriz de rendimiento'!A28)),0)","v":0},{"$f":"IFERROR(SUMIFS('Inventario general'!N:N,'Inventario general'!O:O,'Aux Matriz de rendimiento'!E26,'Inventario general'!P:P,'Aux Matriz de rendimiento'!A28)/(SUMIFS('Inventario general'!M:M,'Inventario general'!O:O,'Aux Matriz de rendimiento'!E26,'Inventario general'!P:P,'Aux Matriz de rendimiento'!A28)),0)","v":0},{"$f":"IFERROR(SUMIFS('Inventario general'!O:O,'Inventario general'!P:P,'Aux Matriz de rendimiento'!F26,'Inventario general'!Q:Q,'Aux Matriz de rendimiento'!A28)/(SUMIFS('Inventario general'!N:N,'Inventario general'!P:P,'Aux Matriz de rendimiento'!F26,'Inventario general'!Q:Q,'Aux Matriz de rendimiento'!C28)),0)","v":0},{"$f":"IFERROR(SUMIFS('Inventario general'!P:P,'Inventario general'!Q:Q,'Aux Matriz de rendimiento'!G26,'Inventario general'!R:R,'Aux Matriz de rendimiento'!A28)/(SUMIFS('Inventario general'!O:O,'Inventario general'!Q:Q,'Aux Matriz de rendimiento'!G26,'Inventario general'!R:R,'Aux Matriz de rendimiento'!A28)),0)","v":0},{"$f":"IFERROR(SUMIFS('Inventario general'!Q:Q,'Inventario general'!R:R,'Aux Matriz de rendimiento'!H26,'Inventario general'!S:S,'Aux Matriz de rendimiento'!A28)/(SUMIFS('Inventario general'!P:P,'Inventario general'!R:R,'Aux Matriz de rendimiento'!H26,'Inventario general'!S:S,'Aux Matriz de rendimiento'!A28)),0)","v":0},{"$f":"IFERROR(SUMIFS('Inventario general'!R:R,'Inventario general'!S:S,'Aux Matriz de rendimiento'!I26,'Inventario general'!T:T,'Aux Matriz de rendimiento'!A28)/(SUMIFS('Inventario general'!Q:Q,'Inventario general'!S:S,'Aux Matriz de rendimiento'!I26,'Inventario general'!T:T,'Aux Matriz de rendimiento'!A28)),0)","v":0},{"$f":"IFERROR(SUMIFS('Inventario general'!S:S,'Inventario general'!T:T,'Aux Matriz de rendimiento'!J26,'Inventario general'!U:U,'Aux Matriz de rendimiento'!A28)/(SUMIFS('Inventario general'!R:R,'Inventario general'!T:T,'Aux Matriz de rendimiento'!J26,'Inventario general'!U:U,'Aux Matriz de rendimiento'!A28)),0)","v":0},{"$f":"IFERROR(SUMIFS('Inventario general'!T:T,'Inventario general'!U:U,'Aux Matriz de rendimiento'!K26,'Inventario general'!V:V,'Aux Matriz de rendimiento'!A28)/(SUMIFS('Inventario general'!S:S,'Inventario general'!U:U,'Aux Matriz de rendimiento'!K26,'Inventario general'!V:V,'Aux Matriz de rendimiento'!A28)),0)","v":0},{"$f":"IFERROR(SUMIFS('Inventario general'!U:U,'Inventario general'!V:V,'Aux Matriz de rendimiento'!L26,'Inventario general'!W:W,'Aux Matriz de rendimiento'!A28)/(SUMIFS('Inventario general'!T:T,'Inventario general'!V:V,'Aux Matriz de rendimiento'!L26,'Inventario general'!W:W,'Aux Matriz de rendimiento'!A28)),0)","v":0},{"$f":"IFERROR(SUMIFS('Inventario general'!V:V,'Inventario general'!W:W,'Aux Matriz de rendimiento'!M26,'Inventario general'!X:X,'Aux Matriz de rendimiento'!A28)/(SUMIFS('Inventario general'!U:U,'Inventario general'!W:W,'Aux Matriz de rendimiento'!M26,'Inventario general'!X:X,'Aux Matriz de rendimiento'!A28)),0)","v":0}]
[null,{"$f":"IFERROR(SUMIF('Inventario general'!$F$10:$H$17,A29,'Inventario general'!$M$10:$M$17)/(SUMIF('Inventario general'!$F$10:$H$17,A29,'Inventario general'!$L$10:$L$17)),0)","v":0},{"$f":"IFERROR(SUMIF('Inventario general'!$F$23:$H$30,A29,'Inventario general'!$M$23:$M$30)/(SUMIF('Inventario general'!$F$23:$H$30,A29,'Inventario general'!$L$23:$L$30)),0)","v":0},{"$f":"IFERROR(SUMIFS('Inventario general'!M:M,'Inventario general'!N:N,'Aux Matriz de rendimiento'!D27,'Inventario general'!O:O,'Aux Matriz de rendimiento'!A29)/(SUMIFS('Inventario general'!L:L,'Inventario general'!N:N,'Aux Matriz de rendimiento'!D27,'Inventario general'!O:O,'Aux Matriz de rendimiento'!A29)),0)","v":0},{"$f":"IFERROR(SUMIFS('Inventario general'!N:N,'Inventario general'!O:O,'Aux Matriz de rendimiento'!E27,'Inventario general'!P:P,'Aux Matriz de rendimiento'!A29)/(SUMIFS('Inventario general'!M:M,'Inventario general'!O:O,'Aux Matriz de rendimiento'!E27,'Inventario general'!P:P,'Aux Matriz de rendimiento'!A29)),0)","v":0},{"$f":"IFERROR(SUMIFS('Inventario general'!O:O,'Inventario general'!P:P,'Aux Matriz de rendimiento'!F27,'Inventario general'!Q:Q,'Aux Matriz de rendimiento'!A29)/(SUMIFS('Inventario general'!N:N,'Inventario general'!P:P,'Aux Matriz de rendimiento'!F27,'Inventario general'!Q:Q,'Aux Matriz de rendimiento'!C29)),0)","v":0},{"$f":"IFERROR(SUMIFS('Inventario general'!P:P,'Inventario general'!Q:Q,'Aux Matriz de rendimiento'!G27,'Inventario general'!R:R,'Aux Matriz de rendimiento'!A29)/(SUMIFS('Inventario general'!O:O,'Inventario general'!Q:Q,'Aux Matriz de rendimiento'!G27,'Inventario general'!R:R,'Aux Matriz de rendimiento'!A29)),0)","v":0},{"$f":"IFERROR(SUMIFS('Inventario general'!Q:Q,'Inventario general'!R:R,'Aux Matriz de rendimiento'!H27,'Inventario general'!S:S,'Aux Matriz de rendimiento'!A29)/(SUMIFS('Inventario general'!P:P,'Inventario general'!R:R,'Aux Matriz de rendimiento'!H27,'Inventario general'!S:S,'Aux Matriz de rendimiento'!A29)),0)","v":0},{"$f":"IFERROR(SUMIFS('Inventario general'!R:R,'Inventario general'!S:S,'Aux Matriz de rendimiento'!I27,'Inventario general'!T:T,'Aux Matriz de rendimiento'!A29)/(SUMIFS('Inventario general'!Q:Q,'Inventario general'!S:S,'Aux Matriz de rendimiento'!I27,'Inventario general'!T:T,'Aux Matriz de rendimiento'!A29)),0)","v":0},{"$f":"IFERROR(SUMIFS('Inventario general'!S:S,'Inventario general'!T:T,'Aux Matriz de rendimiento'!J27,'Inventario general'!U:U,'Aux Matriz de rendimiento'!A29)/(SUMIFS('Inventario general'!R:R,'Inventario general'!T:T,'Aux Matriz de rendimiento'!J27,'Inventario general'!U:U,'Aux Matriz de rendimiento'!A29)),0)","v":0},{"$f":"IFERROR(SUMIFS('Inventario general'!T:T,'Inventario general'!U:U,'Aux Matriz de rendimiento'!K27,'Inventario general'!V:V,'Aux Matriz de rendimiento'!A29)/(SUMIFS('Inventario general'!S:S,'Inventario general'!U:U,'Aux Matriz de rendimiento'!K27,'Inventario general'!V:V,'Aux Matriz de rendimiento'!A29)),0)","v":0},{"$f":"IFERROR(SUMIFS('Inventario general'!U:U,'Inventario general'!V:V,'Aux Matriz de rendimiento'!L27,'Inventario general'!W:W,'Aux Matriz de rendimiento'!A29)/(SUMIFS('Inventario general'!T:T,'Inventario general'!V:V,'Aux Matriz de rendimiento'!L27,'Inventario general'!W:W,'Aux Matriz de rendimiento'!A29)),0)","v":0},{"$f":"IFERROR(SUMIFS('Inventario general'!V:V,'Inventario general'!W:W,'Aux Matriz de rendimiento'!M27,'Inventario general'!X:X,'Aux Matriz de rendimiento'!A29)/(SUMIFS('Inventario general'!U:U,'Inventario general'!W:W,'Aux Matriz de rendimiento'!M27,'Inventario general'!X:X,'Aux Matriz de rendimiento'!A29)),0)","v":0}]
[null,{"$f":"IFERROR(SUMIF('Inventario general'!$F$10:$H$17,A30,'Inventario general'!$M$10:$M$17)/(SUMIF('Inventario general'!$F$10:$H$17,A30,'Inventario general'!$L$10:$L$17)),0)","v":0},{"$f":"IFERROR(SUMIF('Inventario general'!$F$23:$H$30,A30,'Inventario general'!$M$23:$M$30)/(SUMIF('Inventario general'!$F$23:$H$30,A30,'Inventario general'!$L$23:$L$30)),0)","v":0},{"$f":"IFERROR(SUMIFS('Inventario general'!M:M,'Inventario general'!N:N,'Aux Matriz de rendimiento'!D28,'Inventario general'!O:O,'Aux Matriz de rendimiento'!A30)/(SUMIFS('Inventario general'!L:L,'Inventario general'!N:N,'Aux Matriz de rendimiento'!D28,'Inventario general'!O:O,'Aux Matriz de rendimiento'!A30)),0)","v":0},{"$f":"IFERROR(SUMIFS('Inventario general'!N:N,'Inventario general'!O:O,'Aux Matriz de rendimiento'!E28,'Inventario general'!P:P,'Aux Matriz de rendimiento'!A30)/(SUMIFS('Inventario general'!M:M,'Inventario general'!O:O,'Aux Matriz de rendimiento'!E28,'Inventario general'!P:P,'Aux Matriz de rendimiento'!A30)),0)","v":0},{"$f":"IFERROR(SUMIFS('Inventario general'!O:O,'Inventario general'!P:P,'Aux Matriz de rendimiento'!F28,'Inventario general'!Q:Q,'Aux Matriz de rendimiento'!A30)/(SUMIFS('Inventario general'!N:N,'Inventario general'!P:P,'Aux Matriz de rendimiento'!F28,'Inventario general'!Q:Q,'Aux Matriz de rendimiento'!C30)),0)","v":0},{"$f":"IFERROR(SUMIFS('Inventario general'!P:P,'Inventario general'!Q:Q,'Aux Matriz de rendimiento'!G28,'Inventario general'!R:R,'Aux Matriz de rendimiento'!A30)/(SUMIFS('Inventario general'!O:O,'Inventario general'!Q:Q,'Aux Matriz de rendimiento'!G28,'Inventario general'!R:R,'Aux Matriz de rendimiento'!A30)),0)","v":0},{"$f":"IFERROR(SUMIFS('Inventario general'!Q:Q,'Inventario general'!R:R,'Aux Matriz de rendimiento'!H28,'Inventario general'!S:S,'Aux Matriz de rendimiento'!A30)/(SUMIFS('Inventario general'!P:P,'Inventario general'!R:R,'Aux Matriz de rendimiento'!H28,'Inventario general'!S:S,'Aux Matriz de rendimiento'!A30)),0)","v":0},{"$f":"IFERROR(SUMIFS('Inventario general'!R:R,'Inventario general'!S:S,'Aux Matriz de rendimiento'!I28,'Inventario general'!T:T,'Aux Matriz de rendimiento'!A30)/(SUMIFS('Inventario general'!Q:Q,'Inventario general'!S:S,'Aux Matriz de rendimiento'!I28,'Inventario general'!T:T,'Aux Matriz de rendimiento'!A30)),0)","v":0},{"$f":"IFERROR(SUMIFS('Inventario general'!S:S,'Inventario general'!T:T,'Aux Matriz de rendimiento'!J28,'Inventario general'!U:U,'Aux Matriz de rendimiento'!A30)/(SUMIFS('Inventario general'!R:R,'Inventario general'!T:T,'Aux Matriz de rendimiento'!J28,'Inventario general'!U:U,'Aux Matriz de rendimiento'!A30)),0)","v":0},{"$f":"IFERROR(SUMIFS('Inventario general'!T:T,'Inventario general'!U:U,'Aux Matriz de rendimiento'!K28,'Inventario general'!V:V,'Aux Matriz de rendimiento'!A30)/(SUMIFS('Inventario general'!S:S,'Inventario general'!U:U,'Aux Matriz de rendimiento'!K28,'Inventario general'!V:V,'Aux Matriz de rendimiento'!A30)),0)","v":0},{"$f":"IFERROR(SUMIFS('Inventario general'!U:U,'Inventario general'!V:V,'Aux Matriz de rendimiento'!L28,'Inventario general'!W:W,'Aux Matriz de rendimiento'!A30)/(SUMIFS('Inventario general'!T:T,'Inventario general'!V:V,'Aux Matriz de rendimiento'!L28,'Inventario general'!W:W,'Aux Matriz de rendimiento'!A30)),0)","v":0},{"$f":"IFERROR(SUMIFS('Inventario general'!V:V,'Inventario general'!W:W,'Aux Matriz de rendimiento'!M28,'Inventario general'!X:X,'Aux Matriz de rendimiento'!A30)/(SUMIFS('Inventario general'!U:U,'Inventario general'!W:W,'Aux Matriz de rendimiento'!M28,'Inventario general'!X:X,'Aux Matriz de rendimiento'!A30)),0)","v":0}]
[null,{"$f":"IFERROR(SUMIF('Inventario general'!$F$10:$H$17,A31,'Inventario general'!$M$10:$M$17)/(SUMIF('Inventario general'!$F$10:$H$17,A31,'Inventario general'!$L$10:$L$17)),0)","v":0},{"$f":"IFERROR(SUMIF('Inventario general'!$F$23:$H$30,A31,'Inventario general'!$M$23:$M$30)/(SUMIF('Inventario general'!$F$23:$H$30,A31,'Inventario general'!$L$23:$L$30)),0)","v":0},{"$f":"IFERROR(SUMIFS('Inventario general'!M:M,'Inventario general'!N:N,'Aux Matriz de rendimiento'!D29,'Inventario general'!O:O,'Aux Matriz de rendimiento'!A31)/(SUMIFS('Inventario general'!L:L,'Inventario general'!N:N,'Aux Matriz de rendimiento'!D29,'Inventario general'!O:O,'Aux Matriz de rendimiento'!A31)),0)","v":0},{"$f":"IFERROR(SUMIFS('Inventario general'!N:N,'Inventario general'!O:O,'Aux Matriz de rendimiento'!E29,'Inventario general'!P:P,'Aux Matriz de rendimiento'!A31)/(SUMIFS('Inventario general'!M:M,'Inventario general'!O:O,'Aux Matriz de rendimiento'!E29,'Inventario general'!P:P,'Aux Matriz de rendimiento'!A31)),0)","v":0},{"$f":"IFERROR(SUMIFS('Inventario general'!O:O,'Inventario general'!P:P,'Aux Matriz de rendimiento'!F29,'Inventario general'!Q:Q,'Aux Matriz de rendimiento'!A31)/(SUMIFS('Inventario general'!N:N,'Inventario general'!P:P,'Aux Matriz de rendimiento'!F29,'Inventario general'!Q:Q,'Aux Matriz de rendimiento'!C31)),0)","v":0},{"$f":"IFERROR(SUMIFS('Inventario general'!P:P,'Inventario general'!Q:Q,'Aux Matriz de rendimiento'!G29,'Inventario general'!R:R,'Aux Matriz de rendimiento'!A31)/(SUMIFS('Inventario general'!O:O,'Inventario general'!Q:Q,'Aux Matriz de rendimiento'!G29,'Inventario general'!R:R,'Aux Matriz de rendimiento'!A31)),0)","v":0},{"$f":"IFERROR(SUMIFS('Inventario general'!Q:Q,'Inventario general'!R:R,'Aux Matriz de rendimiento'!H29,'Inventario general'!S:S,'Aux Matriz de rendimiento'!A31)/(SUMIFS('Inventario general'!P:P,'Inventario general'!R:R,'Aux Matriz de rendimiento'!H29,'Inventario general'!S:S,'Aux Matriz de rendimiento'!A31)),0)","v":0},{"$f":"IFERROR(SUMIFS('Inventario general'!R:R,'Inventario general'!S:S,'Aux Matriz de rendimiento'!I29,'Inventario general'!T:T,'Aux Matriz de rendimiento'!A31)/(SUMIFS('Inventario general'!Q:Q,'Inventario general'!S:S,'Aux Matriz de rendimiento'!I29,'Inventario general'!T:T,'Aux Matriz de rendimiento'!A31)),0)","v":0},{"$f":"IFERROR(SUMIFS('Inventario general'!S:S,'Inventario general'!T:T,'Aux Matriz de rendimiento'!J29,'Inventario general'!U:U,'Aux Matriz de rendimiento'!A31)/(SUMIFS('Inventario general'!R:R,'Inventario general'!T:T,'Aux Matriz de rendimiento'!J29,'Inventario general'!U:U,'Aux Matriz de rendimiento'!A31)),0)","v":0},{"$f":"IFERROR(SUMIFS('Inventario general'!T:T,'Inventario general'!U:U,'Aux Matriz de rendimiento'!K29,'Inventario general'!V:V,'Aux Matriz de rendimiento'!A31)/(SUMIFS('Inventario general'!S:S,'Inventario general'!U:U,'Aux Matriz de rendimiento'!K29,'Inventario general'!V:V,'Aux Matriz de rendimiento'!A31)),0)","v":0},{"$f":"IFERROR(SUMIFS('Inventario general'!U:U,'Inventario general'!V:V,'Aux Matriz de rendimiento'!L29,'Inventario general'!W:W,'Aux Matriz de rendimiento'!A31)/(SUMIFS('Inventario general'!T:T,'Inventario general'!V:V,'Aux Matriz de rendimiento'!L29,'Inventario general'!W:W,'Aux Matriz de rendimiento'!A31)),0)","v":0},{"$f":"IFERROR(SUMIFS('Inventario general'!V:V,'Inventario general'!W:W,'Aux Matriz de rendimiento'!M29,'Inventario general'!X:X,'Aux Matriz de rendimiento'!A31)/(SUMIFS('Inventario general'!U:U,'Inventario general'!W:W,'Aux Matriz de rendimiento'!M29,'Inventario general'!X:X,'Aux Matriz de rendimiento'!A31)),0)","v":0}]
[null,{"$f":"IFERROR(SUMIF('Inventario general'!$F$10:$H$17,A32,'Inventario general'!$M$10:$M$17)/(SUMIF('Inventario general'!$F$10:$H$17,A32,'Inventario general'!$L$10:$L$17)),0)","v":0},{"$f":"IFERROR(SUMIF('Inventario general'!$F$23:$H$30,A32,'Inventario general'!$M$23:$M$30)/(SUMIF('Inventario general'!$F$23:$H$30,A32,'Inventario general'!$L$23:$L$30)),0)","v":0},{"$f":"IFERROR(SUMIFS('Inventario general'!M:M,'Inventario general'!N:N,'Aux Matriz de rendimiento'!D30,'Inventario general'!O:O,'Aux Matriz de rendimiento'!A32)/(SUMIFS('Inventario general'!L:L,'Inventario general'!N:N,'Aux Matriz de rendimiento'!D30,'Inventario general'!O:O,'Aux Matriz de rendimiento'!A32)),0)","v":0},{"$f":"IFERROR(SUMIFS('Inventario general'!N:N,'Inventario general'!O:O,'Aux Matriz de rendimiento'!E30,'Inventario general'!P:P,'Aux Matriz de rendimiento'!A32)/(SUMIFS('Inventario general'!M:M,'Inventario general'!O:O,'Aux Matriz de rendimiento'!E30,'Inventario general'!P:P,'Aux Matriz de rendimiento'!A32)),0)","v":0},{"$f":"IFERROR(SUMIFS('Inventario general'!O:O,'Inventario general'!P:P,'Aux Matriz de rendimiento'!F30,'Inventario general'!Q:Q,'Aux Matriz de rendimiento'!A32)/(SUMIFS('Inventario general'!N:N,'Inventario general'!P:P,'Aux Matriz de rendimiento'!F30,'Inventario general'!Q:Q,'Aux Matriz de rendimiento'!C32)),0)","v":0},{"$f":"IFERROR(SUMIFS('Inventario general'!P:P,'Inventario general'!Q:Q,'Aux Matriz de rendimiento'!G30,'Inventario general'!R:R,'Aux Matriz de rendimiento'!A32)/(SUMIFS('Inventario general'!O:O,'Inventario general'!Q:Q,'Aux Matriz de rendimiento'!G30,'Inventario general'!R:R,'Aux Matriz de rendimiento'!A32)),0)","v":0},{"$f":"IFERROR(SUMIFS('Inventario general'!Q:Q,'Inventario general'!R:R,'Aux Matriz de rendimiento'!H30,'Inventario general'!S:S,'Aux Matriz de rendimiento'!A32)/(SUMIFS('Inventario general'!P:P,'Inventario general'!R:R,'Aux Matriz de rendimiento'!H30,'Inventario general'!S:S,'Aux Matriz de rendimiento'!A32)),0)","v":0},{"$f":"IFERROR(SUMIFS('Inventario general'!R:R,'Inventario general'!S:S,'Aux Matriz de rendimiento'!I30,'Inventario general'!T:T,'Aux Matriz de rendimiento'!A32)/(SUMIFS('Inventario general'!Q:Q,'Inventario general'!S:S,'Aux Matriz de rendimiento'!I30,'Inventario general'!T:T,'Aux Matriz de rendimiento'!A32)),0)","v":0},{"$f":"IFERROR(SUMIFS('Inventario general'!S:S,'Inventario general'!T:T,'Aux Matriz de rendimiento'!J30,'Inventario general'!U:U,'Aux Matriz de rendimiento'!A32)/(SUMIFS('Inventario general'!R:R,'Inventario general'!T:T,'Aux Matriz de rendimiento'!J30,'Inventario general'!U:U,'Aux Matriz de rendimiento'!A32)),0)","v":0},{"$f":"IFERROR(SUMIFS('Inventario general'!T:T,'Inventario general'!U:U,'Aux Matriz de rendimiento'!K30,'Inventario general'!V:V,'Aux Matriz de rendimiento'!A32)/(SUMIFS('Inventario general'!S:S,'Inventario general'!U:U,'Aux Matriz de rendimiento'!K30,'Inventario general'!V:V,'Aux Matriz de rendimiento'!A32)),0)","v":0},{"$f":"IFERROR(SUMIFS('Inventario general'!U:U,'Inventario general'!V:V,'Aux Matriz de rendimiento'!L30,'Inventario general'!W:W,'Aux Matriz de rendimiento'!A32)/(SUMIFS('Inventario general'!T:T,'Inventario general'!V:V,'Aux Matriz de rendimiento'!L30,'Inventario general'!W:W,'Aux Matriz de rendimiento'!A32)),0)","v":0},{"$f":"IFERROR(SUMIFS('Inventario general'!V:V,'Inventario general'!W:W,'Aux Matriz de rendimiento'!M30,'Inventario general'!X:X,'Aux Matriz de rendimiento'!A32)/(SUMIFS('Inventario general'!U:U,'Inventario general'!W:W,'Aux Matriz de rendimiento'!M30,'Inventario general'!X:X,'Aux Matriz de rendimiento'!A32)),0)","v":0}]
[null,{"$f":"IFERROR(SUMIF('Inventario general'!$F$10:$H$17,A33,'Inventario general'!$M$10:$M$17)/(SUMIF('Inventario general'!$F$10:$H$17,A33,'Inventario general'!$L$10:$L$17)),0)","v":0},{"$f":"IFERROR(SUMIF('Inventario general'!$F$23:$H$30,A33,'Inventario general'!$M$23:$M$30)/(SUMIF('Inventario general'!$F$23:$H$30,A33,'Inventario general'!$L$23:$L$30)),0)","v":0},{"$f":"IFERROR(SUMIFS('Inventario general'!M:M,'Inventario general'!N:N,'Aux Matriz de rendimiento'!D31,'Inventario general'!O:O,'Aux Matriz de rendimiento'!A33)/(SUMIFS('Inventario general'!L:L,'Inventario general'!N:N,'Aux Matriz de rendimiento'!D31,'Inventario general'!O:O,'Aux Matriz de rendimiento'!A33)),0)","v":0},{"$f":"IFERROR(SUMIFS('Inventario general'!N:N,'Inventario general'!O:O,'Aux Matriz de rendimiento'!E31,'Inventario general'!P:P,'Aux Matriz de rendimiento'!A33)/(SUMIFS('Inventario general'!M:M,'Inventario general'!O:O,'Aux Matriz de rendimiento'!E31,'Inventario general'!P:P,'Aux Matriz de rendimiento'!A33)),0)","v":0},{"$f":"IFERROR(SUMIFS('Inventario general'!O:O,'Inventario general'!P:P,'Aux Matriz de rendimiento'!F31,'Inventario general'!Q:Q,'Aux Matriz de rendimiento'!A33)/(SUMIFS('Inventario general'!N:N,'Inventario general'!P:P,'Aux Matriz de rendimiento'!F31,'Inventario general'!Q:Q,'Aux Matriz de rendimiento'!C33)),0)","v":0},{"$f":"IFERROR(SUMIFS('Inventario general'!P:P,'Inventario general'!Q:Q,'Aux Matriz de rendimiento'!G31,'Inventario general'!R:R,'Aux Matriz de rendimiento'!A33)/(SUMIFS('Inventario general'!O:O,'Inventario general'!Q:Q,'Aux Matriz de rendimiento'!G31,'Inventario general'!R:R,'Aux Matriz de rendimiento'!A33)),0)","v":0},{"$f":"IFERROR(SUMIFS('Inventario general'!Q:Q,'Inventario general'!R:R,'Aux Matriz de rendimiento'!H31,'Inventario general'!S:S,'Aux Matriz de rendimiento'!A33)/(SUMIFS('Inventario general'!P:P,'Inventario general'!R:R,'Aux Matriz de rendimiento'!H31,'Inventario general'!S:S,'Aux Matriz de rendimiento'!A33)),0)","v":0},{"$f":"IFERROR(SUMIFS('Inventario general'!R:R,'Inventario general'!S:S,'Aux Matriz de rendimiento'!I31,'Inventario general'!T:T,'Aux Matriz de rendimiento'!A33)/(SUMIFS('Inventario general'!Q:Q,'Inventario general'!S:S,'Aux Matriz de rendimiento'!I31,'Inventario general'!T:T,'Aux Matriz de rendimiento'!A33)),0)","v":0},{"$f":"IFERROR(SUMIFS('Inventario general'!S:S,'Inventario general'!T:T,'Aux Matriz de rendimiento'!J31,'Inventario general'!U:U,'Aux Matriz de rendimiento'!A33)/(SUMIFS('Inventario general'!R:R,'Inventario general'!T:T,'Aux Matriz de rendimiento'!J31,'Inventario general'!U:U,'Aux Matriz de rendimiento'!A33)),0)","v":0},{"$f":"IFERROR(SUMIFS('Inventario general'!T:T,'Inventario general'!U:U,'Aux Matriz de rendimiento'!K31,'Inventario general'!V:V,'Aux Matriz de rendimiento'!A33)/(SUMIFS('Inventario general'!S:S,'Inventario general'!U:U,'Aux Matriz de rendimiento'!K31,'Inventario general'!V:V,'Aux Matriz de rendimiento'!A33)),0)","v":0},{"$f":"IFERROR(SUMIFS('Inventario general'!U:U,'Inventario general'!V:V,'Aux Matriz de rendimiento'!L31,'Inventario general'!W:W,'Aux Matriz de rendimiento'!A33)/(SUMIFS('Inventario general'!T:T,'Inventario general'!V:V,'Aux Matriz de rendimiento'!L31,'Inventario general'!W:W,'Aux Matriz de rendimiento'!A33)),0)","v":0},{"$f":"IFERROR(SUMIFS('Inventario general'!V:V,'Inventario general'!W:W,'Aux Matriz de rendimiento'!M31,'Inventario general'!X:X,'Aux Matriz de rendimiento'!A33)/(SUMIFS('Inventario general'!U:U,'Inventario general'!W:W,'Aux Matriz de rendimiento'!M31,'Inventario general'!X:X,'Aux Matriz de rendimiento'!A33)),0)","v":0}]
[null,{"$f":"IFERROR(SUMIF('Inventario general'!$F$10:$H$17,A34,'Inventario general'!$M$10:$M$17)/(SUMIF('Inventario general'!$F$10:$H$17,A34,'Inventario general'!$L$10:$L$17)),0)","v":0},{"$f":"IFERROR(SUMIF('Inventario general'!$F$23:$H$30,A34,'Inventario general'!$M$23:$M$30)/(SUMIF('Inventario general'!$F$23:$H$30,A34,'Inventario general'!$L$23:$L$30)),0)","v":0},{"$f":"IFERROR(SUMIFS('Inventario general'!M:M,'Inventario general'!N:N,'Aux Matriz de rendimiento'!D32,'Inventario general'!O:O,'Aux Matriz de rendimiento'!A34)/(SUMIFS('Inventario general'!L:L,'Inventario general'!N:N,'Aux Matriz de rendimiento'!D32,'Inventario general'!O:O,'Aux Matriz de rendimiento'!A34)),0)","v":0},{"$f":"IFERROR(SUMIFS('Inventario general'!N:N,'Inventario general'!O:O,'Aux Matriz de rendimiento'!E32,'Inventario general'!P:P,'Aux Matriz de rendimiento'!A34)/(SUMIFS('Inventario general'!M:M,'Inventario general'!O:O,'Aux Matriz de rendimiento'!E32,'Inventario general'!P:P,'Aux Matriz de rendimiento'!A34)),0)","v":0},{"$f":"IFERROR(SUMIFS('Inventario general'!O:O,'Inventario general'!P:P,'Aux Matriz de rendimiento'!F32,'Inventario general'!Q:Q,'Aux Matriz de rendimiento'!A34)/(SUMIFS('Inventario general'!N:N,'Inventario general'!P:P,'Aux Matriz de rendimiento'!F32,'Inventario general'!Q:Q,'Aux Matriz de rendimiento'!C34)),0)","v":0},{"$f":"IFERROR(SUMIFS('Inventario general'!P:P,'Inventario general'!Q:Q,'Aux Matriz de rendimiento'!G32,'Inventario general'!R:R,'Aux Matriz de rendimiento'!A34)/(SUMIFS('Inventario general'!O:O,'Inventario general'!Q:Q,'Aux Matriz de rendimiento'!G32,'Inventario general'!R:R,'Aux Matriz de rendimiento'!A34)),0)","v":0},{"$f":"IFERROR(SUMIFS('Inventario general'!Q:Q,'Inventario general'!R:R,'Aux Matriz de rendimiento'!H32,'Inventario general'!S:S,'Aux Matriz de rendimiento'!A34)/(SUMIFS('Inventario general'!P:P,'Inventario general'!R:R,'Aux Matriz de rendimiento'!H32,'Inventario general'!S:S,'Aux Matriz de rendimiento'!A34)),0)","v":0},{"$f":"IFERROR(SUMIFS('Inventario general'!R:R,'Inventario general'!S:S,'Aux Matriz de rendimiento'!I32,'Inventario general'!T:T,'Aux Matriz de rendimiento'!A34)/(SUMIFS('Inventario general'!Q:Q,'Inventario general'!S:S,'Aux Matriz de rendimiento'!I32,'Inventario general'!T:T,'Aux Matriz de rendimiento'!A34)),0)","v":0},{"$f":"IFERROR(SUMIFS('Inventario general'!S:S,'Inventario general'!T:T,'Aux Matriz de rendimiento'!J32,'Inventario general'!U:U,'Aux Matriz de rendimiento'!A34)/(SUMIFS('Inventario general'!R:R,'Inventario general'!T:T,'Aux Matriz de rendimiento'!J32,'Inventario general'!U:U,'Aux Matriz de rendimiento'!A34)),0)","v":0},{"$f":"IFERROR(SUMIFS('Inventario general'!T:T,'Inventario general'!U:U,'Aux Matriz de rendimiento'!K32,'Inventario general'!V:V,'Aux Matriz de rendimiento'!A34)/(SUMIFS('Inventario general'!S:S,'Inventario general'!U:U,'Aux Matriz de rendimiento'!K32,'Inventario general'!V:V,'Aux Matriz de rendimiento'!A34)),0)","v":0},{"$f":"IFERROR(SUMIFS('Inventario general'!U:U,'Inventario general'!V:V,'Aux Matriz de rendimiento'!L32,'Inventario general'!W:W,'Aux Matriz de rendimiento'!A34)/(SUMIFS('Inventario general'!T:T,'Inventario general'!V:V,'Aux Matriz de rendimiento'!L32,'Inventario general'!W:W,'Aux Matriz de rendimiento'!A34)),0)","v":0},{"$f":"IFERROR(SUMIFS('Inventario general'!V:V,'Inventario general'!W:W,'Aux Matriz de rendimiento'!M32,'Inventario general'!X:X,'Aux Matriz de rendimiento'!A34)/(SUMIFS('Inventario general'!U:U,'Inventario general'!W:W,'Aux Matriz de rendimiento'!M32,'Inventario general'!X:X,'Aux Matriz de rendimiento'!A34)),0)","v":0}]